Workbook

Sheet Worksheet
A1: Variables | I1: Questions described as Easiest correspond roughly to the most straightforward noncalculator skills required in an exam; those described as Medium correspond roughly to the average standard of noncalculator skills found in past exam papers; those described as Harder cover the most challenging skills that have arisen in exams, as well as other questions that go beyond the course syllabus and which can be used as extension for able pupils
F2: National 5 Applications of Maths: non-calculator practice questions | H2: Answers (this column does not print by default)
D3: =IF(K3=1,"Easiest",IF(K3=2,"Medium","Harder")) -> Easiest | F3: 1 | G3: Calculate: £224.36 – £29 – £33 | H3: £162.36 | K3: 1
D4: =IF(K4=1,"Easiest",IF(K4=2,"Medium","Harder")) -> Easiest | F4: 2 | G4: Calculate 75% of 9600 miles | H4: 7200 miles | K4: 1
D5: Easiest | F5: 3 | G5: Calculate: £325 – £49.26 – £35.46 | H5: £240.28 | K5: 1
D6: Easiest | F6: 4 | G6: What temperature is 29°C lower than 14°C ? | H6: -15°C | K6: 1
D7: Medium | F7: 5 | G7: Express the fraction in its simplest form: 16/32 | H7: 1/2 | K7: 2
D8: Medium | F8: 6 | G8: Calculate the mean: £53.35, £22.80, £33.02, £78.31, £11.00 | H8: £39.70 | K8: 2
D9: Medium | F9: 7 | G9: Round $6573.77 to 3 significant figures | H9: $6570 | K9: 2
D10: Medium | F10: 8 | G10: Calculate the square root of 10² – 6² | H10: 8 | K10: 2
D11: Medium | F11: 9 | G11: Calculate using fractions: 3 – ( 3/4 + 2/5 ) | H11: 37/20 or 1 17/20 | K11: 2
D12: Medium | F12: 10 | G12: Calculate, using π = 3.14 : (π × 7 ÷ 2) + 9 + 9 | H12: 28.99 | K12: 2
D13: Medium | F13: 11 | G13: Calculate the total in hours and minutes: 9 hours 40 minutes + 2 hours + 4 hours 40 minutes + 45 minutes | H13: 17 hr 5 min | K13: 2
D14: Medium | F14: 12 | G14: Express 124 out of 200 as a percentage | H14: 62% | K14: 2
D15: Medium | F15: 13 | G15: Calculate: £9.10 × 50 – £10.33 – £8.12 | H15: £436.55 | K15: 2
D16: Harder | F16: 14 | G16: Calculate, using π = 3.14 : (π × 30 ÷ 2) + 10 + 10 | H16: 67.1 | K16: 3
D17: Harder | F17: 15 | G17: Express 7 out of 40 as a percentage | H17: 17.5% | K17: 3
D18: Harder | F18: 16 | G18: Express the fraction in its simplest form: 1260/1512 | H18: 5/6 | K18: 3
D19: Harder | F19: 17 | G19: Calculate: £4.50 × 47 | H19: £211.50 | K19: 3
D20: Harder | F20: 18 | G20: Calculate the total in hours and minutes: 12 minutes + 9 hours 37 minutes + 6 hours + 5 hours 14 minutes | H20: 21 hr 3 min | K20: 3
D21: Harder | F21: 19 | G21: Determine which fraction is smaller: 1/11 or 5/40. Use working to justify your answer | H21: 1/11 | K21: 3
D22: Harder | F22: 20 | G22: Calculate using fractions: 3 + ( 2/7 – 3/4 ) | H22: 71/28 or 2 15/28 | K22: 3

Sheet SYSTEM FORMULAE
A1: =Worksheet!D3 -> Easiest | B1: =IF($A1="Easiest",RANDBETWEEN(1,Easy),IF($A1="Harder",RANDBETWEEN(Easy+1,Easy+Medium),IF($A1="Harder",RANDBETWEEN(Easy+Medium+1,Easy+Medium+Hard),RANDBETWEEN(1,Easy+Medium+Hard)))) -> 61 | C1: =IF(COUNTIF(B$1:B1,B1)<>1,IF($A1="Easiest",RANDBETWEEN(1,Easy),IF($A1="Medium",RANDBETWEEN(Easy+1,Easy+Medium),IF($A1="Harder",RANDBETWEEN(Easy+Medium+1,Easy+Medium+Hard),RANDBETWEEN(1,Easy+Medium+Hard)))),B1) -> 61 | D1: =IF(COUNTIF(C$1:C1,C1)<>1,IF($A1="Easiest",RANDBETWEEN(1,Easy),IF($A1="Medium",RANDBETWEEN(Easy+1,Easy+Medium),IF($A1="Harder",RANDBETWEEN(Easy+Medium+1,Easy+Medium+Hard),RANDBETWEEN(1,Easy+Medium+Hard)))),C1) -> 61 | E1: =IF(COUNTIF(D$1:D1,D1)<>1,IF($A1="Easiest",RANDBETWEEN(1,Easy),IF($A1="Medium",RANDBETWEEN(Easy+1,Easy+Medium),IF($A1="Harder",RANDBETWEEN(Easy+Medium+1,Easy+Medium+Hard),RANDBETWEEN(1,Easy+Medium+Hard)))),D1) -> 61 | F1: =IF(COUNTIF(E$1:E1,E1)<>1,IF($A1="Easiest",RANDBETWEEN(1,Easy),IF($A1="Medium",RANDBETWEEN(Easy+1,Easy+Medium),IF($A1="Harder",RANDBETWEEN(Easy+Medium+1,Easy+Medium+Hard),RANDBETWEEN(1,Easy+Medium+Hard)))),E1) -> 61 | G1: 1 | H1: =VLOOKUP($F1,'System DO NOT OPEN'!$A$8:$Q$400,12) -> Calculate 20% of 420 | I1: =VLOOKUP($F1,'System DO NOT OPEN'!$A$8:$Q$400,17) -> 84
A2: =Worksheet!D4 -> Easiest | B2: =IF($A2="Easiest",RANDBETWEEN(1,Easy),IF($A2="Medium",RANDBETWEEN(Easy+1,Easy+Medium),IF($A2="Harder",RANDBETWEEN(Easy+Medium+1,Easy+Medium+Hard),RANDBETWEEN(1,Easy+Medium+Hard)))) -> 101 | C2: =IF(COUNTIF(B$1:B2,B2)<>1,IF($A2="Easiest",RANDBETWEEN(1,Easy),IF($A2="Medium",RANDBETWEEN(Easy+1,Easy+Medium),IF($A2="Harder",RANDBETWEEN(Easy+Medium+1,Easy+Medium+Hard),RANDBETWEEN(1,Easy+Medium+Hard)))),B2) -> 101 | D2: =IF(COUNTIF(C$1:C2,C2)<>1,IF($A2="Easiest",RANDBETWEEN(1,Easy),IF($A2="Medium",RANDBETWEEN(Easy+1,Easy+Medium),IF($A2="Harder",RANDBETWEEN(Easy+Medium+1,Easy+Medium+Hard),RANDBETWEEN(1,Easy+Medium+Hard)))),C2) -> 101 | E2: =IF(COUNTIF(D$1:D2,D2)<>1,IF($A2="Easiest",RANDBETWEEN(1,Easy),IF($A2="Medium",RANDBETWEEN(Easy+1,Easy+Medium),IF($A2="Harder",RANDBETWEEN(Easy+Medium+1,Easy+Medium+Hard),RANDBETWEEN(1,Easy+Medium+Hard)))),D2) -> 101 | F2: =IF(COUNTIF(E$1:E2,E2)<>1,IF($A2="Easiest",RANDBETWEEN(1,Easy),IF($A2="Medium",RANDBETWEEN(Easy+1,Easy+Medium),IF($A2="Harder",RANDBETWEEN(Easy+Medium+1,Easy+Medium+Hard),RANDBETWEEN(1,Easy+Medium+Hard)))),E2) -> 101 | G2: 2 | H2: =VLOOKUP($F2,'System DO NOT OPEN'!$A$8:$Q$400,12) -> What temperature is 30°C higher than –19°C ? | I2: =VLOOKUP($F2,'System DO NOT OPEN'!$A$8:$Q$400,17) -> 11°C
A3: =Worksheet!D5 -> Easiest | B3: 59 | C3: =IF(COUNTIF(B$1:B3,B3)<>1,IF($A3="Easiest",RANDBETWEEN(1,Easy),IF($A3="Medium",RANDBETWEEN(Easy+1,Easy+Medium),IF($A3="Harder",RANDBETWEEN(Easy+Medium+1,Easy+Medium+Hard),RANDBETWEEN(1,Easy+Medium+Hard)))),B3) -> 59 | D3: =IF(COUNTIF(C$1:C3,C3)<>1,IF($A3="Easiest",RANDBETWEEN(1,Easy),IF($A3="Medium",RANDBETWEEN(Easy+1,Easy+Medium),IF($A3="Harder",RANDBETWEEN(Easy+Medium+1,Easy+Medium+Hard),RANDBETWEEN(1,Easy+Medium+Hard)))),C3) -> 59 | E3: =IF(COUNTIF(D$1:D3,D3)<>1,IF($A3="Easiest",RANDBETWEEN(1,Easy),IF($A3="Medium",RANDBETWEEN(Easy+1,Easy+Medium),IF($A3="Harder",RANDBETWEEN(Easy+Medium+1,Easy+Medium+Hard),RANDBETWEEN(1,Easy+Medium+Hard)))),D3) -> 59 | F3: =IF(COUNTIF(E$1:E3,E3)<>1,IF($A3="Easiest",RANDBETWEEN(1,Easy),IF($A3="Medium",RANDBETWEEN(Easy+1,Easy+Medium),IF($A3="Harder",RANDBETWEEN(Easy+Medium+1,Easy+Medium+Hard),RANDBETWEEN(1,Easy+Medium+Hard)))),E3) -> 59 | G3: 3 | H3: =VLOOKUP($F3,'System DO NOT OPEN'!$A$8:$Q$400,12) -> Add the fractions: 2/3 + 1/4. Express your answer as a fraction in its simplest form. | I3: =VLOOKUP($F3,'System DO NOT OPEN'!$A$8:$Q$400,17) -> 11/12
A4: =Worksheet!D6 -> Easiest | B4: 109 | C4: =IF(COUNTIF(B$1:B4,B4)<>1,IF($A4="Easiest",RANDBETWEEN(1,Easy),IF($A4="Medium",RANDBETWEEN(Easy+1,Easy+Medium),IF($A4="Harder",RANDBETWEEN(Easy+Medium+1,Easy+Medium+Hard),RANDBETWEEN(1,Easy+Medium+Hard)))),B4) -> 109 | D4: =IF(COUNTIF(C$1:C4,C4)<>1,IF($A4="Easiest",RANDBETWEEN(1,Easy),IF($A4="Medium",RANDBETWEEN(Easy+1,Easy+Medium),IF($A4="Harder",RANDBETWEEN(Easy+Medium+1,Easy+Medium+Hard),RANDBETWEEN(1,Easy+Medium+Hard)))),C4) -> 109 | E4: =IF(COUNTIF(D$1:D4,D4)<>1,IF($A4="Easiest",RANDBETWEEN(1,Easy),IF($A4="Medium",RANDBETWEEN(Easy+1,Easy+Medium),IF($A4="Harder",RANDBETWEEN(Easy+Medium+1,Easy+Medium+Hard),RANDBETWEEN(1,Easy+Medium+Hard)))),D4) -> 109 | F4: =IF(COUNTIF(E$1:E4,E4)<>1,IF($A4="Easiest",RANDBETWEEN(1,Easy),IF($A4="Medium",RANDBETWEEN(Easy+1,Easy+Medium),IF($A4="Harder",RANDBETWEEN(Easy+Medium+1,Easy+Medium+Hard),RANDBETWEEN(1,Easy+Medium+Hard)))),E4) -> 109 | G4: 4 | H4: =VLOOKUP($F4,'System DO NOT OPEN'!$A$8:$Q$400,12) -> Express (a) 72 centimetres and (b) 79 centimetres in millimetres | I4: =VLOOKUP($F4,'System DO NOT OPEN'!$A$8:$Q$400,17) -> 720 mm and 790 mm
A5: =Worksheet!D7 -> Medium | B5: 238 | C5: =IF(COUNTIF(B$1:B5,B5)<>1,IF($A5="Easiest",RANDBETWEEN(1,Easy),IF($A5="Medium",RANDBETWEEN(Easy+1,Easy+Medium),IF($A5="Harder",RANDBETWEEN(Easy+Medium+1,Easy+Medium+Hard),RANDBETWEEN(1,Easy+Medium+Hard)))),B5) -> 238 | D5: =IF(COUNTIF(C$1:C5,C5)<>1,IF($A5="Easiest",RANDBETWEEN(1,Easy),IF($A5="Medium",RANDBETWEEN(Easy+1,Easy+Medium),IF($A5="Harder",RANDBETWEEN(Easy+Medium+1,Easy+Medium+Hard),RANDBETWEEN(1,Easy+Medium+Hard)))),C5) -> 238 | E5: =IF(COUNTIF(D$1:D5,D5)<>1,IF($A5="Easiest",RANDBETWEEN(1,Easy),IF($A5="Medium",RANDBETWEEN(Easy+1,Easy+Medium),IF($A5="Harder",RANDBETWEEN(Easy+Medium+1,Easy+Medium+Hard),RANDBETWEEN(1,Easy+Medium+Hard)))),D5) -> 238 | F5: =IF(COUNTIF(E$1:E5,E5)<>1,IF($A5="Easiest",RANDBETWEEN(1,Easy),IF($A5="Medium",RANDBETWEEN(Easy+1,Easy+Medium),IF($A5="Harder",RANDBETWEEN(Easy+Medium+1,Easy+Medium+Hard),RANDBETWEEN(1,Easy+Medium+Hard)))),E5) -> 238 | G5: 5 | H5: =VLOOKUP($F5,'System DO NOT OPEN'!$A$8:$Q$400,12) -> Express 6.7 hours in hours and minutes | I5: =VLOOKUP($F5,'System DO NOT OPEN'!$A$8:$Q$400,17) -> 6 hours 42 minutes
A6: =Worksheet!D8 -> Medium | B6: 206 | C6: =IF(COUNTIF(B$1:B6,B6)<>1,IF($A6="Easiest",RANDBETWEEN(1,Easy),IF($A6="Medium",RANDBETWEEN(Easy+1,Easy+Medium),IF($A6="Harder",RANDBETWEEN(Easy+Medium+1,Easy+Medium+Hard),RANDBETWEEN(1,Easy+Medium+Hard)))),B6) -> 206 | D6: =IF(COUNTIF(C$1:C6,C6)<>1,IF($A6="Easiest",RANDBETWEEN(1,Easy),IF($A6="Medium",RANDBETWEEN(Easy+1,Easy+Medium),IF($A6="Harder",RANDBETWEEN(Easy+Medium+1,Easy+Medium+Hard),RANDBETWEEN(1,Easy+Medium+Hard)))),C6) -> 206 | E6: =IF(COUNTIF(D$1:D6,D6)<>1,IF($A6="Easiest",RANDBETWEEN(1,Easy),IF($A6="Medium",RANDBETWEEN(Easy+1,Easy+Medium),IF($A6="Harder",RANDBETWEEN(Easy+Medium+1,Easy+Medium+Hard),RANDBETWEEN(1,Easy+Medium+Hard)))),D6) -> 206 | F6: =IF(COUNTIF(E$1:E6,E6)<>1,IF($A6="Easiest",RANDBETWEEN(1,Easy),IF($A6="Medium",RANDBETWEEN(Easy+1,Easy+Medium),IF($A6="Harder",RANDBETWEEN(Easy+Medium+1,Easy+Medium+Hard),RANDBETWEEN(1,Easy+Medium+Hard)))),E6) -> 206 | G6: 6 | H6: =VLOOKUP($F6,'System DO NOT OPEN'!$A$8:$Q$400,12) -> Calculate: £9.10 × 40 – £8.08 – £5.43 | I6: =VLOOKUP($F6,'System DO NOT OPEN'!$A$8:$Q$400,17) -> £350.49
A7: =Worksheet!D9 -> Medium | B7: 224 | C7: =IF(COUNTIF(B$1:B7,B7)<>1,IF($A7="Easiest",RANDBETWEEN(1,Easy),IF($A7="Medium",RANDBETWEEN(Easy+1,Easy+Medium),IF($A7="Harder",RANDBETWEEN(Easy+Medium+1,Easy+Medium+Hard),RANDBETWEEN(1,Easy+Medium+Hard)))),B7) -> 224 | D7: =IF(COUNTIF(C$1:C7,C7)<>1,IF($A7="Easiest",RANDBETWEEN(1,Easy),IF($A7="Medium",RANDBETWEEN(Easy+1,Easy+Medium),IF($A7="Harder",RANDBETWEEN(Easy+Medium+1,Easy+Medium+Hard),RANDBETWEEN(1,Easy+Medium+Hard)))),C7) -> 224 | E7: =IF(COUNTIF(D$1:D7,D7)<>1,IF($A7="Easiest",RANDBETWEEN(1,Easy),IF($A7="Medium",RANDBETWEEN(Easy+1,Easy+Medium),IF($A7="Harder",RANDBETWEEN(Easy+Medium+1,Easy+Medium+Hard),RANDBETWEEN(1,Easy+Medium+Hard)))),D7) -> 224 | F7: =IF(COUNTIF(E$1:E7,E7)<>1,IF($A7="Easiest",RANDBETWEEN(1,Easy),IF($A7="Medium",RANDBETWEEN(Easy+1,Easy+Medium),IF($A7="Harder",RANDBETWEEN(Easy+Medium+1,Easy+Medium+Hard),RANDBETWEEN(1,Easy+Medium+Hard)))),E7) -> 224 | G7: 7 | H7: =VLOOKUP($F7,'System DO NOT OPEN'!$A$8:$Q$400,12) -> Express the ratio in its simplest form: 84 : 144 : 84 | I7: =VLOOKUP($F7,'System DO NOT OPEN'!$A$8:$Q$400,17) -> 7 : 12 : 7
A8: =Worksheet!D10 -> Medium | B8: 241 | C8: =IF(COUNTIF(B$1:B8,B8)<>1,IF($A8="Easiest",RANDBETWEEN(1,Easy),IF($A8="Medium",RANDBETWEEN(Easy+1,Easy+Medium),IF($A8="Harder",RANDBETWEEN(Easy+Medium+1,Easy+Medium+Hard),RANDBETWEEN(1,Easy+Medium+Hard)))),B8) -> 241 | D8: =IF(COUNTIF(C$1:C8,C8)<>1,IF($A8="Easiest",RANDBETWEEN(1,Easy),IF($A8="Medium",RANDBETWEEN(Easy+1,Easy+Medium),IF($A8="Harder",RANDBETWEEN(Easy+Medium+1,Easy+Medium+Hard),RANDBETWEEN(1,Easy+Medium+Hard)))),C8) -> 241 | E8: =IF(COUNTIF(D$1:D8,D8)<>1,IF($A8="Easiest",RANDBETWEEN(1,Easy),IF($A8="Medium",RANDBETWEEN(Easy+1,Easy+Medium),IF($A8="Harder",RANDBETWEEN(Easy+Medium+1,Easy+Medium+Hard),RANDBETWEEN(1,Easy+Medium+Hard)))),D8) -> 241 | F8: =IF(COUNTIF(E$1:E8,E8)<>1,IF($A8="Easiest",RANDBETWEEN(1,Easy),IF($A8="Medium",RANDBETWEEN(Easy+1,Easy+Medium),IF($A8="Harder",RANDBETWEEN(Easy+Medium+1,Easy+Medium+Hard),RANDBETWEEN(1,Easy+Medium+Hard)))),E8) -> 241 | G8: 8 | H8: =VLOOKUP($F8,'System DO NOT OPEN'!$A$8:$Q$400,12) -> Express 2 minutes 36 seconds in minutes (using a decimal point) | I8: =VLOOKUP($F8,'System DO NOT OPEN'!$A$8:$Q$400,17) -> 2.6 minutes
A9: =Worksheet!D11 -> Medium | B9: 240 | C9: =IF(COUNTIF(B$1:B9,B9)<>1,IF($A9="Easiest",RANDBETWEEN(1,Easy),IF($A9="Medium",RANDBETWEEN(Easy+1,Easy+Medium),IF($A9="Harder",RANDBETWEEN(Easy+Medium+1,Easy+Medium+Hard),RANDBETWEEN(1,Easy+Medium+Hard)))),B9) -> 240 | D9: =IF(COUNTIF(C$1:C9,C9)<>1,IF($A9="Easiest",RANDBETWEEN(1,Easy),IF($A9="Medium",RANDBETWEEN(Easy+1,Easy+Medium),IF($A9="Harder",RANDBETWEEN(Easy+Medium+1,Easy+Medium+Hard),RANDBETWEEN(1,Easy+Medium+Hard)))),C9) -> 240 | E9: =IF(COUNTIF(D$1:D9,D9)<>1,IF($A9="Easiest",RANDBETWEEN(1,Easy),IF($A9="Medium",RANDBETWEEN(Easy+1,Easy+Medium),IF($A9="Harder",RANDBETWEEN(Easy+Medium+1,Easy+Medium+Hard),RANDBETWEEN(1,Easy+Medium+Hard)))),D9) -> 240 | F9: =IF(COUNTIF(E$1:E9,E9)<>1,IF($A9="Easiest",RANDBETWEEN(1,Easy),IF($A9="Medium",RANDBETWEEN(Easy+1,Easy+Medium),IF($A9="Harder",RANDBETWEEN(Easy+Medium+1,Easy+Medium+Hard),RANDBETWEEN(1,Easy+Medium+Hard)))),E9) -> 240 | G9: 9 | H9: =VLOOKUP($F9,'System DO NOT OPEN'!$A$8:$Q$400,12) -> Express 6.6 minutes in minutes and seconds | I9: =VLOOKUP($F9,'System DO NOT OPEN'!$A$8:$Q$400,17) -> 6 minutes 36 seconds
A10: =Worksheet!D12 -> Medium | B10: 156 | C10: =IF(COUNTIF(B$1:B10,B10)<>1,IF($A10="Easiest",RANDBETWEEN(1,Easy),IF($A10="Medium",RANDBETWEEN(Easy+1,Easy+Medium),IF($A10="Harder",RANDBETWEEN(Easy+Medium+1,Easy+Medium+Hard),RANDBETWEEN(1,Easy+Medium+Hard)))),B10) -> 156 | D10: =IF(COUNTIF(C$1:C10,C10)<>1,IF($A10="Easiest",RANDBETWEEN(1,Easy),IF($A10="Medium",RANDBETWEEN(Easy+1,Easy+Medium),IF($A10="Harder",RANDBETWEEN(Easy+Medium+1,Easy+Medium+Hard),RANDBETWEEN(1,Easy+Medium+Hard)))),C10) -> 156 | E10: =IF(COUNTIF(D$1:D10,D10)<>1,IF($A10="Easiest",RANDBETWEEN(1,Easy),IF($A10="Medium",RANDBETWEEN(Easy+1,Easy+Medium),IF($A10="Harder",RANDBETWEEN(Easy+Medium+1,Easy+Medium+Hard),RANDBETWEEN(1,Easy+Medium+Hard)))),D10) -> 156 | F10: =IF(COUNTIF(E$1:E10,E10)<>1,IF($A10="Easiest",RANDBETWEEN(1,Easy),IF($A10="Medium",RANDBETWEEN(Easy+1,Easy+Medium),IF($A10="Harder",RANDBETWEEN(Easy+Medium+1,Easy+Medium+Hard),RANDBETWEEN(1,Easy+Medium+Hard)))),E10) -> 156 | G10: 10 | H10: =VLOOKUP($F10,'System DO NOT OPEN'!$A$8:$Q$400,12) -> Express the fraction in its simplest form: 8/16 | I10: =VLOOKUP($F10,'System DO NOT OPEN'!$A$8:$Q$400,17) -> 1/2
A11: =Worksheet!D13 -> Medium | B11: 158 | C11: =IF(COUNTIF(B$1:B11,B11)<>1,IF($A11="Easiest",RANDBETWEEN(1,Easy),IF($A11="Medium",RANDBETWEEN(Easy+1,Easy+Medium),IF($A11="Harder",RANDBETWEEN(Easy+Medium+1,Easy+Medium+Hard),RANDBETWEEN(1,Easy+Medium+Hard)))),B11) -> 158 | D11: =IF(COUNTIF(C$1:C11,C11)<>1,IF($A11="Easiest",RANDBETWEEN(1,Easy),IF($A11="Medium",RANDBETWEEN(Easy+1,Easy+Medium),IF($A11="Harder",RANDBETWEEN(Easy+Medium+1,Easy+Medium+Hard),RANDBETWEEN(1,Easy+Medium+Hard)))),C11) -> 158 | E11: =IF(COUNTIF(D$1:D11,D11)<>1,IF($A11="Easiest",RANDBETWEEN(1,Easy),IF($A11="Medium",RANDBETWEEN(Easy+1,Easy+Medium),IF($A11="Harder",RANDBETWEEN(Easy+Medium+1,Easy+Medium+Hard),RANDBETWEEN(1,Easy+Medium+Hard)))),D11) -> 158 | F11: =IF(COUNTIF(E$1:E11,E11)<>1,IF($A11="Easiest",RANDBETWEEN(1,Easy),IF($A11="Medium",RANDBETWEEN(Easy+1,Easy+Medium),IF($A11="Harder",RANDBETWEEN(Easy+Medium+1,Easy+Medium+Hard),RANDBETWEEN(1,Easy+Medium+Hard)))),E11) -> 158 | G11: 11 | H11: =VLOOKUP($F11,'System DO NOT OPEN'!$A$8:$Q$400,12) -> Express the ratio in its simplest form: 40 : 120 : 90 | I11: =VLOOKUP($F11,'System DO NOT OPEN'!$A$8:$Q$400,17) -> 4 : 12 : 9
A12: =Worksheet!D14 -> Medium | B12: 245 | C12: =IF(COUNTIF(B$1:B12,B12)<>1,IF($A12="Easiest",RANDBETWEEN(1,Easy),IF($A12="Medium",RANDBETWEEN(Easy+1,Easy+Medium),IF($A12="Harder",RANDBETWEEN(Easy+Medium+1,Easy+Medium+Hard),RANDBETWEEN(1,Easy+Medium+Hard)))),B12) -> 245 | D12: =IF(COUNTIF(C$1:C12,C12)<>1,IF($A12="Easiest",RANDBETWEEN(1,Easy),IF($A12="Medium",RANDBETWEEN(Easy+1,Easy+Medium),IF($A12="Harder",RANDBETWEEN(Easy+Medium+1,Easy+Medium+Hard),RANDBETWEEN(1,Easy+Medium+Hard)))),C12) -> 245 | E12: =IF(COUNTIF(D$1:D12,D12)<>1,IF($A12="Easiest",RANDBETWEEN(1,Easy),IF($A12="Medium",RANDBETWEEN(Easy+1,Easy+Medium),IF($A12="Harder",RANDBETWEEN(Easy+Medium+1,Easy+Medium+Hard),RANDBETWEEN(1,Easy+Medium+Hard)))),D12) -> 245 | F12: =IF(COUNTIF(E$1:E12,E12)<>1,IF($A12="Easiest",RANDBETWEEN(1,Easy),IF($A12="Medium",RANDBETWEEN(Easy+1,Easy+Medium),IF($A12="Harder",RANDBETWEEN(Easy+Medium+1,Easy+Medium+Hard),RANDBETWEEN(1,Easy+Medium+Hard)))),E12) -> 245 | G12: 12 | H12: =VLOOKUP($F12,'System DO NOT OPEN'!$A$8:$Q$400,12) -> Express 300 out of 1000 as a percentage | I12: =VLOOKUP($F12,'System DO NOT OPEN'!$A$8:$Q$400,17) -> 30%
A13: =Worksheet!D15 -> Medium | B13: 237 | C13: =IF(COUNTIF(B$1:B13,B13)<>1,IF($A13="Easiest",RANDBETWEEN(1,Easy),IF($A13="Medium",RANDBETWEEN(Easy+1,Easy+Medium),IF($A13="Harder",RANDBETWEEN(Easy+Medium+1,Easy+Medium+Hard),RANDBETWEEN(1,Easy+Medium+Hard)))),B13) -> 237 | D13: =IF(COUNTIF(C$1:C13,C13)<>1,IF($A13="Easiest",RANDBETWEEN(1,Easy),IF($A13="Medium",RANDBETWEEN(Easy+1,Easy+Medium),IF($A13="Harder",RANDBETWEEN(Easy+Medium+1,Easy+Medium+Hard),RANDBETWEEN(1,Easy+Medium+Hard)))),C13) -> 237 | E13: =IF(COUNTIF(D$1:D13,D13)<>1,IF($A13="Easiest",RANDBETWEEN(1,Easy),IF($A13="Medium",RANDBETWEEN(Easy+1,Easy+Medium),IF($A13="Harder",RANDBETWEEN(Easy+Medium+1,Easy+Medium+Hard),RANDBETWEEN(1,Easy+Medium+Hard)))),D13) -> 237 | F13: =IF(COUNTIF(E$1:E13,E13)<>1,IF($A13="Easiest",RANDBETWEEN(1,Easy),IF($A13="Medium",RANDBETWEEN(Easy+1,Easy+Medium),IF($A13="Harder",RANDBETWEEN(Easy+Medium+1,Easy+Medium+Hard),RANDBETWEEN(1,Easy+Medium+Hard)))),E13) -> 237 | G13: 13 | H13: =VLOOKUP($F13,'System DO NOT OPEN'!$A$8:$Q$400,12) -> Express (a) 4.7 centimetres and (b) 6.7 centimetres in millimetres | I13: =VLOOKUP($F13,'System DO NOT OPEN'!$A$8:$Q$400,17) -> 47 mm and 67 mm
A14: =Worksheet!D16 -> Harder | B14: 250 | C14: =IF(COUNTIF(B$1:B14,B14)<>1,IF($A14="Easiest",RANDBETWEEN(1,Easy),IF($A14="Medium",RANDBETWEEN(Easy+1,Easy+Medium),IF($A14="Harder",RANDBETWEEN(Easy+Medium+1,Easy+Medium+Hard),RANDBETWEEN(1,Easy+Medium+Hard)))),B14) -> 250 | D14: =IF(COUNTIF(C$1:C14,C14)<>1,IF($A14="Easiest",RANDBETWEEN(1,Easy),IF($A14="Medium",RANDBETWEEN(Easy+1,Easy+Medium),IF($A14="Harder",RANDBETWEEN(Easy+Medium+1,Easy+Medium+Hard),RANDBETWEEN(1,Easy+Medium+Hard)))),C14) -> 250 | E14: =IF(COUNTIF(D$1:D14,D14)<>1,IF($A14="Easiest",RANDBETWEEN(1,Easy),IF($A14="Medium",RANDBETWEEN(Easy+1,Easy+Medium),IF($A14="Harder",RANDBETWEEN(Easy+Medium+1,Easy+Medium+Hard),RANDBETWEEN(1,Easy+Medium+Hard)))),D14) -> 250 | F14: =IF(COUNTIF(E$1:E14,E14)<>1,IF($A14="Easiest",RANDBETWEEN(1,Easy),IF($A14="Medium",RANDBETWEEN(Easy+1,Easy+Medium),IF($A14="Harder",RANDBETWEEN(Easy+Medium+1,Easy+Medium+Hard),RANDBETWEEN(1,Easy+Medium+Hard)))),E14) -> 250 | G14: 14 | H14: =VLOOKUP($F14,'System DO NOT OPEN'!$A$8:$Q$400,12) -> Calculate 23² | I14: =VLOOKUP($F14,'System DO NOT OPEN'!$A$8:$Q$400,17) -> 529
A15: =Worksheet!D17 -> Harder | B15: 280 | C15: =IF(COUNTIF(B$1:B15,B15)<>1,IF($A15="Easiest",RANDBETWEEN(1,Easy),IF($A15="Medium",RANDBETWEEN(Easy+1,Easy+Medium),IF($A15="Harder",RANDBETWEEN(Easy+Medium+1,Easy+Medium+Hard),RANDBETWEEN(1,Easy+Medium+Hard)))),B15) -> 280 | D15: =IF(COUNTIF(C$1:C15,C15)<>1,IF($A15="Easiest",RANDBETWEEN(1,Easy),IF($A15="Medium",RANDBETWEEN(Easy+1,Easy+Medium),IF($A15="Harder",RANDBETWEEN(Easy+Medium+1,Easy+Medium+Hard),RANDBETWEEN(1,Easy+Medium+Hard)))),C15) -> 280 | E15: =IF(COUNTIF(D$1:D15,D15)<>1,IF($A15="Easiest",RANDBETWEEN(1,Easy),IF($A15="Medium",RANDBETWEEN(Easy+1,Easy+Medium),IF($A15="Harder",RANDBETWEEN(Easy+Medium+1,Easy+Medium+Hard),RANDBETWEEN(1,Easy+Medium+Hard)))),D15) -> 280 | F15: =IF(COUNTIF(E$1:E15,E15)<>1,IF($A15="Easiest",RANDBETWEEN(1,Easy),IF($A15="Medium",RANDBETWEEN(Easy+1,Easy+Medium),IF($A15="Harder",RANDBETWEEN(Easy+Medium+1,Easy+Medium+Hard),RANDBETWEEN(1,Easy+Medium+Hard)))),E15) -> 280 | G15: 15 | H15: =VLOOKUP($F15,'System DO NOT OPEN'!$A$8:$Q$400,12) -> Express 62 out of 400 as a percentage | I15: =VLOOKUP($F15,'System DO NOT OPEN'!$A$8:$Q$400,17) -> 15.5%
A16: =Worksheet!D18 -> Harder | B16: 297 | C16: =IF(COUNTIF(B$1:B16,B16)<>1,IF($A16="Easiest",RANDBETWEEN(1,Easy),IF($A16="Medium",RANDBETWEEN(Easy+1,Easy+Medium),IF($A16="Harder",RANDBETWEEN(Easy+Medium+1,Easy+Medium+Hard),RANDBETWEEN(1,Easy+Medium+Hard)))),B16) -> 297 | D16: =IF(COUNTIF(C$1:C16,C16)<>1,IF($A16="Easiest",RANDBETWEEN(1,Easy),IF($A16="Medium",RANDBETWEEN(Easy+1,Easy+Medium),IF($A16="Harder",RANDBETWEEN(Easy+Medium+1,Easy+Medium+Hard),RANDBETWEEN(1,Easy+Medium+Hard)))),C16) -> 297 | E16: =IF(COUNTIF(D$1:D16,D16)<>1,IF($A16="Easiest",RANDBETWEEN(1,Easy),IF($A16="Medium",RANDBETWEEN(Easy+1,Easy+Medium),IF($A16="Harder",RANDBETWEEN(Easy+Medium+1,Easy+Medium+Hard),RANDBETWEEN(1,Easy+Medium+Hard)))),D16) -> 297 | F16: =IF(COUNTIF(E$1:E16,E16)<>1,IF($A16="Easiest",RANDBETWEEN(1,Easy),IF($A16="Medium",RANDBETWEEN(Easy+1,Easy+Medium),IF($A16="Harder",RANDBETWEEN(Easy+Medium+1,Easy+Medium+Hard),RANDBETWEEN(1,Easy+Medium+Hard)))),E16) -> 297 | G16: 16 | H16: =VLOOKUP($F16,'System DO NOT OPEN'!$A$8:$Q$400,12) -> Calculate: 56882 tonnes ÷ 700 | I16: =VLOOKUP($F16,'System DO NOT OPEN'!$A$8:$Q$400,17) -> 81.26 tonnes
A17: =Worksheet!D19 -> Harder | B17: 266 | C17: =IF(COUNTIF(B$1:B17,B17)<>1,IF($A17="Easiest",RANDBETWEEN(1,Easy),IF($A17="Medium",RANDBETWEEN(Easy+1,Easy+Medium),IF($A17="Harder",RANDBETWEEN(Easy+Medium+1,Easy+Medium+Hard),RANDBETWEEN(1,Easy+Medium+Hard)))),B17) -> 266 | D17: =IF(COUNTIF(C$1:C17,C17)<>1,IF($A17="Easiest",RANDBETWEEN(1,Easy),IF($A17="Medium",RANDBETWEEN(Easy+1,Easy+Medium),IF($A17="Harder",RANDBETWEEN(Easy+Medium+1,Easy+Medium+Hard),RANDBETWEEN(1,Easy+Medium+Hard)))),C17) -> 266 | E17: =IF(COUNTIF(D$1:D17,D17)<>1,IF($A17="Easiest",RANDBETWEEN(1,Easy),IF($A17="Medium",RANDBETWEEN(Easy+1,Easy+Medium),IF($A17="Harder",RANDBETWEEN(Easy+Medium+1,Easy+Medium+Hard),RANDBETWEEN(1,Easy+Medium+Hard)))),D17) -> 266 | F17: =IF(COUNTIF(E$1:E17,E17)<>1,IF($A17="Easiest",RANDBETWEEN(1,Easy),IF($A17="Medium",RANDBETWEEN(Easy+1,Easy+Medium),IF($A17="Harder",RANDBETWEEN(Easy+Medium+1,Easy+Medium+Hard),RANDBETWEEN(1,Easy+Medium+Hard)))),E17) -> 266 | G17: 17 | H17: =VLOOKUP($F17,'System DO NOT OPEN'!$A$8:$Q$400,12) -> Calculate: 0.044 × 17000 | I17: =VLOOKUP($F17,'System DO NOT OPEN'!$A$8:$Q$400,17) -> 748
A18: =Worksheet!D20 -> Harder | B18: 309 | C18: =IF(COUNTIF(B$1:B18,B18)<>1,IF($A18="Easiest",RANDBETWEEN(1,Easy),IF($A18="Medium",RANDBETWEEN(Easy+1,Easy+Medium),IF($A18="Harder",RANDBETWEEN(Easy+Medium+1,Easy+Medium+Hard),RANDBETWEEN(1,Easy+Medium+Hard)))),B18) -> 309 | D18: =IF(COUNTIF(C$1:C18,C18)<>1,IF($A18="Easiest",RANDBETWEEN(1,Easy),IF($A18="Medium",RANDBETWEEN(Easy+1,Easy+Medium),IF($A18="Harder",RANDBETWEEN(Easy+Medium+1,Easy+Medium+Hard),RANDBETWEEN(1,Easy+Medium+Hard)))),C18) -> 309 | E18: =IF(COUNTIF(D$1:D18,D18)<>1,IF($A18="Easiest",RANDBETWEEN(1,Easy),IF($A18="Medium",RANDBETWEEN(Easy+1,Easy+Medium),IF($A18="Harder",RANDBETWEEN(Easy+Medium+1,Easy+Medium+Hard),RANDBETWEEN(1,Easy+Medium+Hard)))),D18) -> 309 | F18: =IF(COUNTIF(E$1:E18,E18)<>1,IF($A18="Easiest",RANDBETWEEN(1,Easy),IF($A18="Medium",RANDBETWEEN(Easy+1,Easy+Medium),IF($A18="Harder",RANDBETWEEN(Easy+Medium+1,Easy+Medium+Hard),RANDBETWEEN(1,Easy+Medium+Hard)))),E18) -> 309 | G18: 18 | H18: =VLOOKUP($F18,'System DO NOT OPEN'!$A$8:$Q$400,12) -> State the minimum and maximum values of 74km ± 16.27km | I18: =VLOOKUP($F18,'System DO NOT OPEN'!$A$8:$Q$400,17) -> Min: 57.73km, Max: 90.27km
A19: =Worksheet!D21 -> Harder | B19: 271 | C19: =IF(COUNTIF(B$1:B19,B19)<>1,IF($A19="Easiest",RANDBETWEEN(1,Easy),IF($A19="Medium",RANDBETWEEN(Easy+1,Easy+Medium),IF($A19="Harder",RANDBETWEEN(Easy+Medium+1,Easy+Medium+Hard),RANDBETWEEN(1,Easy+Medium+Hard)))),B19) -> 271 | D19: =IF(COUNTIF(C$1:C19,C19)<>1,IF($A19="Easiest",RANDBETWEEN(1,Easy),IF($A19="Medium",RANDBETWEEN(Easy+1,Easy+Medium),IF($A19="Harder",RANDBETWEEN(Easy+Medium+1,Easy+Medium+Hard),RANDBETWEEN(1,Easy+Medium+Hard)))),C19) -> 271 | E19: =IF(COUNTIF(D$1:D19,D19)<>1,IF($A19="Easiest",RANDBETWEEN(1,Easy),IF($A19="Medium",RANDBETWEEN(Easy+1,Easy+Medium),IF($A19="Harder",RANDBETWEEN(Easy+Medium+1,Easy+Medium+Hard),RANDBETWEEN(1,Easy+Medium+Hard)))),D19) -> 271 | F19: =IF(COUNTIF(E$1:E19,E19)<>1,IF($A19="Easiest",RANDBETWEEN(1,Easy),IF($A19="Medium",RANDBETWEEN(Easy+1,Easy+Medium),IF($A19="Harder",RANDBETWEEN(Easy+Medium+1,Easy+Medium+Hard),RANDBETWEEN(1,Easy+Medium+Hard)))),E19) -> 271 | G19: 19 | H19: =VLOOKUP($F19,'System DO NOT OPEN'!$A$8:$Q$400,12) -> Express the fraction in its simplest form: 20.8/24 | I19: =VLOOKUP($F19,'System DO NOT OPEN'!$A$8:$Q$400,17) -> 13/15
A20: =Worksheet!D22 -> Harder | B20: 249 | C20: =IF(COUNTIF(B$1:B20,B20)<>1,IF($A20="Easiest",RANDBETWEEN(1,Easy),IF($A20="Medium",RANDBETWEEN(Easy+1,Easy+Medium),IF($A20="Harder",RANDBETWEEN(Easy+Medium+1,Easy+Medium+Hard),RANDBETWEEN(1,Easy+Medium+Hard)))),B20) -> 249 | D20: =IF(COUNTIF(C$1:C20,C20)<>1,IF($A20="Easiest",RANDBETWEEN(1,Easy),IF($A20="Medium",RANDBETWEEN(Easy+1,Easy+Medium),IF($A20="Harder",RANDBETWEEN(Easy+Medium+1,Easy+Medium+Hard),RANDBETWEEN(1,Easy+Medium+Hard)))),C20) -> 249 | E20: =IF(COUNTIF(D$1:D20,D20)<>1,IF($A20="Easiest",RANDBETWEEN(1,Easy),IF($A20="Medium",RANDBETWEEN(Easy+1,Easy+Medium),IF($A20="Harder",RANDBETWEEN(Easy+Medium+1,Easy+Medium+Hard),RANDBETWEEN(1,Easy+Medium+Hard)))),D20) -> 249 | F20: =IF(COUNTIF(E$1:E20,E20)<>1,IF($A20="Easiest",RANDBETWEEN(1,Easy),IF($A20="Medium",RANDBETWEEN(Easy+1,Easy+Medium),IF($A20="Harder",RANDBETWEEN(Easy+Medium+1,Easy+Medium+Hard),RANDBETWEEN(1,Easy+Medium+Hard)))),E20) -> 249 | G20: 20 | H20: =VLOOKUP($F20,'System DO NOT OPEN'!$A$8:$Q$400,12) -> Calculate 8.8% of £6300 | I20: =VLOOKUP($F20,'System DO NOT OPEN'!$A$8:$Q$400,17) -> £554.4

Sheet System DO NOT OPEN
A1: Must be sorted by column B
A2: Number of easy questions | B2: =COUNTIF(ABC,"A") -> 114
A3: Number of medium questions | B3: =COUNTIF(ABC,"B") -> 132
A4: Number of hard questions | B4: =COUNTIF(ABC,"C") -> 69
A5: TOTAL | B5: =COUNT(Numbers) -> 218
B6: =B2+B3+B4=B5 -> FALSE
A7: Question number | B7: Difficulty | Q7: Answer
A8: =IF(ISBLANK(C8)," ",ROW(B8)-7) -> 1 | B8: A | C8: A shop offers a discount of | D8: 1 | E8: / | F8: =RANDBETWEEN(3,5) -> 5 | G8: on a price of | H8: =CHOOSE(K8,"£","£","$","€","","","","","","","") -> £ | I8: =TEXT(F8*RANDBETWEEN(51,99)/10,"#.00") -> 41.50 | J8: . What is the new price? | K8: =RANDBETWEEN(1,4) -> 2 | L8: =CONCATENATE("",C8,"",D8,"",E8,"",F8,"",G8,"",H8,"",I8,"",J8,"") -> A shop offers a discount of 1/5 on a price of £41.50. What is the new price? | M8: =H8 -> £ | N8: =TEXT(I8/F8*(F8-1),"#.00") -> 33.20 | Q8: =CONCATENATE("",M8,"",N8,"",O8,"",P8,"") -> £33.20
A9: =IF(ISBLANK(C9)," ",ROW(B9)-7) -> 2 | B9: A | C9: Add the fractions: | D9: =IF(F9=3,RANDBETWEEN(1,2),IF(F9=4,IF(RAND()<0.4,1,3),IF(F9=5,RANDBETWEEN(2,4),IF(RAND()<0.33,3,IF(RAND()<0.5,7,9))))) -> 2 | E9: / | F9: =CHOOSE(K9,3,3,3,4,4,4,5,5,5,10,10,10) -> 3 | G9: + | H9: =IF(J9=3,RANDBETWEEN(1,2),IF(J9=4,IF(RAND()<0.4,1,3),IF(J9=5,RANDBETWEEN(2,4),IF(RAND()<0.33,3,IF(RAND()<0.5,7,9))))) -> 3 | I9: / | J9: =CHOOSE(K9,4,5,10,3,5,10,3,4,10,4,5,10) -> 5 | K9: =RANDBETWEEN(1,12) -> 2 | L9: =CONCATENATE("",C9,"",D9,"",E9,"",F9,"",G9,"",H9,"",I9,"",J9,". Express your answer as a fraction in its simplest form.") -> Add the fractions: 2/3 + 3/5. Express your answer as a fraction in its simplest form. | M9: =R9/GCD(R9,S9) -> 19 | N9: / | O9: =S9/GCD(R9,S9) -> 15 | Q9: =CONCATENATE("",M9,"",N9,"",O9,"",IF(M9/O9>1,CONCATENATE(" or ",INT(M9/O9)," ",MOD(M9,O9),"/",O9),"")) -> 19/15 or 1 4/15 | R9: =D9*J9+F9*H9 -> 19 | S9: =F9*J9 -> 15
A10: =IF(ISBLANK(D10)," ",ROW(B10)-7) -> 3 | B10: A | C10: Calculate | D10: =CHOOSE(RANDBETWEEN(1,2),"25%","75%") -> 75% | E10: of | F10: =CHOOSE(K10,"£","£","$","€","","","","","","","") ->  | G10: =4*RANDBETWEEN(11,99)*10^RANDBETWEEN(1,3) -> 140000 | H10: =CHOOSE(K10,"","","","","km","m","kg"," litres"," miles","","") -> miles | K10: =RANDBETWEEN(1,11) -> 9 | L10: =CONCATENATE("",C10,"",D10,"",E10,"",F10,"",G10,"",H10,"",I10,"",J10,"") -> Calculate 75% of 140000 miles | M10: =F10 ->  | N10: =IF(D10="25%",G10/4,G10/4*3) -> 105000 | O10: =H10 -> miles | Q10: =CONCATENATE("",M10,"",N10,"",O10,"",P10,"") -> 105000 miles
A11: =IF(ISBLANK(D11)," ",ROW(B11)-7) -> 4 | B11: A | C11: Calculate | D11: =RANDBETWEEN(2,4)*10 -> 40 | E11: % of | F11: =CHOOSE(K11,"£","£","$","€","","","","","","","") ->  | G11: =10^RANDBETWEEN(1,3)*RANDBETWEEN(5,99) -> 3800 | H11: =CHOOSE(K11,"","","","","km","m","kg"," litres"," miles","","") -> m | K11: =RANDBETWEEN(1,11) -> 6 | L11: =CONCATENATE("",C11,"",D11,"",E11,"",F11,"",G11,"",H11,"",I11,"",J11,"") -> Calculate 40% of 3800m | M11: =F11 ->  | N11: =G11/100*D11 -> 1520 | O11: =H11 -> m | Q11: =CONCATENATE("",M11,"",N11,"",O11,"",P11,"") -> 1520m
A12: =IF(ISBLANK(C12)," ",ROW(B12)-7) -> 5 | B12: A | C12: Calculate | D12: =RANDBETWEEN(6,9)*10 -> 70 | E12: % of | F12: =CHOOSE(K12,"£","£","$","€","","","","","","","") ->  | G12: =10^RANDBETWEEN(1,3)*RANDBETWEEN(5,99) -> 700 | H12: =CHOOSE(K12,"","","","","km","m","kg"," litres"," miles","","") ->  | K12: =RANDBETWEEN(1,11) -> 11 | L12: =CONCATENATE("",C12,"",D12,"",E12,"",F12,"",G12,"",H12,"",I12,"",J12,"") -> Calculate 70% of 700 | M12: =F12 ->  | N12: =G12/100*D12 -> 490 | O12: =H12 ->  | Q12: =CONCATENATE("",M12,"",N12,"",O12,"",P12,"") -> 490
A13: =IF(ISBLANK(D13)," ",ROW(B13)-7) -> 6 | B13: A | C13: Calculate | D13: =RANDBETWEEN(2,9) -> 5 | E13: % of | F13: =CHOOSE(K13,"£","£","$","€","","","","","","","") -> $ | G13: =RANDBETWEEN(2,9)*10^RANDBETWEEN(2,3) -> 800 | H13: =CHOOSE(K13,"","","","","km","mm","g"," tonnes"," miles","ml","") ->  | K13: =RANDBETWEEN(1,11) -> 3 | L13: =CONCATENATE("",C13,"",D13,"",E13,"",F13,"",G13,"",H13,"",I13,"",J13,"") -> Calculate 5% of $800 | M13: =F13 -> $ | N13: =G13/100*D13 -> 40 | O13: =H13 ->  | Q13: =CONCATENATE("",M13,"",N13,"",O13,"",P13,"") -> $40
A14: =IF(ISBLANK(D14)," ",ROW(B14)-7) -> 7 | B14: A | C14: Calculate | D14: =CHOOSE(K14,3,4,5,6,10) -> 3 | E14: ² | K14: =RANDBETWEEN(1,5) -> 1 | L14: =CONCATENATE("",C14,"",D14,"",E14,"",F14,"",G14,"",H14,"",I14,"",J14,"") -> Calculate 3² | M14: =D14^2 -> 9 | Q14: =CONCATENATE("",M14,"",N14,"",O14,"",P14,"") -> 9
A15: =IF(ISBLANK(C15)," ",ROW(B15)-7) -> 8 | B15: A | C15: Calculate the fraction: | D15: =IF(F15=3,RANDBETWEEN(1,2),IF(F15=4,IF(RAND()<0.5,1,3),RANDBETWEEN(1,4))) -> 1 | E15: / | F15: =RANDBETWEEN(3,5) -> 4 | G15: of | I15: =F15*RANDBETWEEN(501,999) -> 3368 | J15: =CHOOSE(K15,"","","","","km","mm","g"," tonnes"," miles"," litres","") ->  | K15: =RANDBETWEEN(1,11) -> 4 | L15: =CONCATENATE("",C15,"",D15,"",E15,"",F15,"",G15,"",H15,"",I15,"",J15,"") -> Calculate the fraction: 1/4 of 3368 | M15: =I15/F15*D15 -> 842 | Q15: =CONCATENATE("",M15,"",N15,"",O15,"",P15,"") -> 842
A16: =IF(ISBLANK(C16)," ",ROW(B16)-7) -> 9 | B16: A | C16: Calculate the fraction: | D16: =IF(F16=3,RANDBETWEEN(1,2),IF(F16=4,IF(RAND()<0.5,1,3),RANDBETWEEN(1,4))) -> 2 | E16: / | F16: =RANDBETWEEN(3,5) -> 3 | G16: of | H16: =CHOOSE(K16,"£","£","$","€","","","","","","","") -> $ | I16: =TEXT(F16*RANDBETWEEN(51,99)/10,"#.00") -> 27.30 | K16: =RANDBETWEEN(1,4) -> 3 | L16: =CONCATENATE("",C16,"",D16,"",E16,"",F16,"",G16,"",H16,"",I16,"",J16,"") -> Calculate the fraction: 2/3 of $27.30 | M16: =H16 -> $ | N16: =TEXT(I16/F16*D16,"#.00") -> 18.20 | Q16: =CONCATENATE("",M16,"",N16,"",O16,"",P16,"") -> $18.20
A17: =IF(ISBLANK(C17)," ",ROW(B17)-7) -> 10 | B17: A | C17: Calculate the mean: | D17: =5*RANDBETWEEN(200,1999) -> 5735 | E17: =5*RANDBETWEEN(200,1999) -> 4290 | F17: =5*RANDBETWEEN(200,1999) -> 3175 | G17: =20*RANDBETWEEN(50,499)-MOD(D17+E17+F17,20) -> 3660 | H17: =IF(K17=5,5*RANDBETWEEN(200,1999),"") ->  | K17: 4 | L17: =CONCATENATE("",C17," ",D17,", ",E17,", ",F17,", ",G17,IF(K17=5,", ",""),H17,"",I17,"",J17,"") -> Calculate the mean: 5735, 4290, 3175, 3660 | M17: =IF(K17=4,AVERAGE(D17:G17),AVERAGE(D17:H17)) -> 4215 | Q17: =CONCATENATE("",M17,"",N17,"",O17,"",P17,"") -> 4215
A18: =IF(ISBLANK(C18)," ",ROW(B18)-7) -> 11 | B18: A | C18: Calculate the mean: | D18: =5*RANDBETWEEN(2000,19999) -> 93330 | E18: =5*RANDBETWEEN(2000,19999) -> 64880 | F18: =5*RANDBETWEEN(2000,19999) -> 45600 | G18: =20*RANDBETWEEN(500,4999)-MOD(D18+E18+F18,20) -> 74410 | H18: =IF(K18=5,5*RANDBETWEEN(200,1999),"") ->  | K18: 4 | L18: =CONCATENATE("",C18," ",D18,", ",E18,", ",F18,", ",G18,IF(K18=5,", ",""),H18,"",I18,"",J18,"") -> Calculate the mean: 93330, 64880, 45600, 74410 | M18: =IF(K18=4,AVERAGE(D18:G18),AVERAGE(D18:H18)) -> 69555 | Q18: =CONCATENATE("",M18,"",N18,"",O18,"",P18,"") -> 69555
A19: =IF(ISBLANK(D19)," ",ROW(B19)-7) -> 12 | B19: A | C19: Calculate the total in hours and minutes: | D19: =RANDBETWEEN(1,3) -> 3 | E19: =RANDBETWEEN(1,3) -> 3 | F19: =RANDBETWEEN(1,3) -> 2 | G19: =RANDBETWEEN(3,11)*5 -> 25 | H19: =RANDBETWEEN(6,11)*5 -> 55 | I19: =RANDBETWEEN(2,11)*5 -> 55 | K19: =RANDBETWEEN(1,3) -> 2 | L19: =CONCATENATE(C19,CHOOSE(K19,CONCATENATE(D19," hour",IF(D19>1,"s "," "),G19," minutes + ",E19," hour",IF(E19>1,"s "," "),H19," minutes + ",F19," hour",IF(F19>1,"s "," "),I19," minutes"),CONCATENATE(D19," hour",IF(D19>1,"s "," "),G19," minutes + ",E19," hour",IF(E19>1,"s + "," + "),F19," hour",IF(F19>1,"s "," "),H19," minutes + ",I19," minutes"),CONCATENATE(I19," minutes + ",D19," hour",IF(D19>1,"s "," "),G19," minutes + ",F19," hour",IF(F19>1,"s + "," + "),E19," hour",IF(E19>1,"s "," "),H19," minutes"))) -> Calculate the total in hours and minutes: 3 hours 25 minutes + 3 hours + 2 hours 55 minutes + 55 minutes | M19: =TIME(D19,0,0)+TIME(E19,0,0)+TIME(F19,0,0)+TIME(0,G19,0)+TIME(0,H19,0)+TIME(0,I19,0) -> 10:15:00 | Q19: =CONCATENATE(HOUR(M19)," hr ",MINUTE(M19)," min") -> 10 hr 15 min
A20: =IF(ISBLANK(C20)," ",ROW(B20)-7) -> 13 | B20: A | C20: Calculate using fractions: | D20: 1 – ( | E20: =IF(G20=3,1,IF(G20=4,1,IF(G20=5,RANDBETWEEN(1,2),IF(G20=6,1,IF(G20=7,RANDBETWEEN(1,3),RANDBETWEEN(1,2)*2-1))))) -> 1 | F20: / | G20: =CHOOSE(RANDBETWEEN(1,6),3,4,5,6,7,8) -> 5 | H20: + | I20: =IF(J20=3,1,IF(J20=4,1,IF(J20=5,RANDBETWEEN(1,2),IF(J20=6,1,IF(J20=7,RANDBETWEEN(1,3),RANDBETWEEN(1,2)*2-1))))) -> 1 | J20: =G20 -> 5 | L20: =CONCATENATE("",C20,"",D20,"",E20,"",F20,"",G20,"",H20,"",I20,"/",J20," )") -> Calculate using fractions: 1 – ( 1/5 + 1/5 ) | M20: =J20-I20-E20 -> 3 | N20: =G20 -> 5 | Q20: =CONCATENATE(M20/GCD(M20,N20),"/",N20/GCD(M20,N20)) -> 3/5
A21: =IF(ISBLANK(C21)," ",ROW(B21)-7) -> 14 | B21: A | C21: Calculate, using | D21: π = 3.14 : | E21: π | F21: × | G21: =10*RANDBETWEEN(2,6) -> 20 | L21: =CONCATENATE("",C21,"",D21,"",E21,"",F21,"",G21,"",H21,"",I21,"",J21,"") -> Calculate, using π = 3.14 : π × 20 | M21: =3.14*G21 -> 62.8 | Q21: =CONCATENATE("",M21,"",N21,"",O21,"",P21,"") -> 62.8
A22: =IF(ISBLANK(C22)," ",ROW(B22)-7) -> 15 | B22: A | C22: Calculate, using | D22: π = 3.14 : | E22: π | F22: × | G22: =10*RANDBETWEEN(2,6) -> 40 | H22: ÷ 2 | L22: =CONCATENATE("",C22,"",D22,"",E22,"",F22,"",G22,"",H22,"",I22,"",J22,"") -> Calculate, using π = 3.14 : π × 40 ÷ 2 | M22: =3.14*G22/2 -> 62.8 | Q22: =CONCATENATE("",M22,"",N22,"",O22,"",P22,"") -> 62.8
A23: =IF(ISBLANK(C23)," ",ROW(B23)-7) -> 16 | B23: A | C23: Calculate, using | D23: π = 3.14 : | E23: π | F23: × | G23: =RANDBETWEEN(1,10) -> 10 | H23: ² | L23: =CONCATENATE("",C23,"",D23,"",E23,"",F23,"",G23,"",H23,"",I23,"",J23,"") -> Calculate, using π = 3.14 : π × 10² | M23: =3.14*G23^2 -> 314 | Q23: =CONCATENATE("",M23,"",N23,"",O23,"",P23,"") -> 314
A24: =IF(ISBLANK(C24)," ",ROW(B24)-7) -> 17 | B24: A | C24: Calculate: | D24: =CHOOSE(K24,"£","£","£","$","€") -> £ | E24: =RANDBETWEEN(1500,3500) -> 1841 | F24: =RANDBETWEEN(5000,35000)/100 -> 133.09 | G24: =RANDBETWEEN(5000,35000)/100 -> 75.17 | H24: =RANDBETWEEN(50,350)+(1-(F24+G24-INT(F24+G24))) -> 248.74 | K24: =RANDBETWEEN(1,5) -> 1 | L24: =CONCATENATE("",C24,"",D24,"",E24," – (",D24,TEXT(F24,"#.00")," + ",D24,TEXT(G24,"#.00")," + ",D24,TEXT(H24,"#.00"),")",I24,"",J24,"") -> Calculate: £1841 – (£133.09 + £75.17 + £248.74) | M24: =E24-F24-G24-H24 -> 1384 | Q24: =CONCATENATE(D24,TEXT(M24,"#.00"),"",N24,"",O24,"",P24,"") -> £1384.00
A25: =IF(ISBLANK(C25)," ",ROW(B25)-7) -> 18 | B25: A | C25: Calculate: | D25: =CHOOSE(K25,"£","£","£","$","€") -> £ | E25: =RANDBETWEEN(150,350) -> 150 | F25: =RANDBETWEEN(2000,6000)/100 -> 43.11 | G25: =RANDBETWEEN(2000,6000)/100 -> 34.78 | K25: =RANDBETWEEN(1,5) -> 2 | L25: =CONCATENATE("",C25,"",D25,"",E25," – ",D25,TEXT(F25,"#.00")," – ",D25,TEXT(G25,"#.00"),,"",I25,"",J25,"") -> Calculate: £150 – £43.11 – £34.78 | M25: =E25-F25-G25-H25 -> 72.11 | Q25: =CONCATENATE(D25,TEXT(M25,"#.00"),"",N25,"",O25,"",P25,"") -> £72.11
A26: =IF(ISBLANK(C26)," ",ROW(B26)-7) -> 19 | B26: A | C26: Calculate: | D26: =CHOOSE(K26,"£","£","£","$","€") -> £ | E26: =RANDBETWEEN(15000,35000)/100 -> 349.81 | F26: =RANDBETWEEN(2,6)*10+RANDBETWEEN(1,9) -> 43 | G26: =RANDBETWEEN(2,6)*10+RANDBETWEEN(1,9) -> 25 | K26: =RANDBETWEEN(1,5) -> 2 | L26: =CONCATENATE("",C26,"",D26,"",TEXT(E26,"#.00")," – ",D26,F26," – ",D26,G26,"",I26,"",J26,"") -> Calculate: £349.81 – £43 – £25 | M26: =E26-F26-G26-H26 -> 281.81 | Q26: =CONCATENATE(D26,TEXT(M26,"#.00"),"",N26,"",O26,"",P26,"") -> £281.81
A27: =IF(ISBLANK(C27)," ",ROW(B27)-7) -> 20 | B27: A | C27: Calculate: | D27: =RANDBETWEEN(2,6)*10+RANDBETWEEN(1,9)*0.1 -> 30.4 | E27: + | F27: =RANDBETWEEN(2,7)+RANDBETWEEN(1,9)*0.1 -> 7.9 | G27: × | H27: =RANDBETWEEN(3,6) -> 5 | I27: + | J27: =RANDBETWEEN(1,8)+RANDBETWEEN(1,9)*0.1 -> 1.3 | L27: =CONCATENATE("",C27,"",D27," ",E27," ",F27," ",G27," ",H27," ",I27," ",J27,"") -> Calculate: 30.4 + 7.9 × 5 + 1.3 | M27: =D27+F27*H27+J27 -> 71.2 | Q27: =CONCATENATE("",M27,"",N27,"",O27,"",P27,"") -> 71.2
A28: =IF(ISBLANK(E28)," ",ROW(B28)-7) -> 21 | B28: A | C28: Calculate: | D28: =CHOOSE(K28,"£","£","£","$","€") -> £ | E28: =RANDBETWEEN(1010,9999)/100 -> 91.96 | F28: × | G28: =10*RANDBETWEEN(2,5) -> 40 | K28: =RANDBETWEEN(1,5) -> 1 | L28: =CONCATENATE("",C28,"",D28,"",TEXT(E28,"#.00"),"",F28,"",G28,"",H28,"",I28,"",J28,"") -> Calculate: £91.96 × 40 | M28: =E28*G28 -> 3678.4 | Q28: =CONCATENATE(D28,IF(M28=INT(M28),M28,TEXT(M28,"#.00")),"",N28,"",O28,"",P28,"") -> £3678.40
A29: =IF(ISBLANK(D29)," ",ROW(B29)-7) -> 22 | B29: A | C29: Calculate: | D29: =RANDBETWEEN(1010,9999) -> 3485 | E29: =CHOOSE(K29,"cm","m","kg","","km","mm","g"," tonnes"," miles","ml","") -> tonnes | F29: × | G29: =10*RANDBETWEEN(2,5) -> 40 | K29: =RANDBETWEEN(1,11) -> 8 | L29: =CONCATENATE("",C29,"",D29,"",E29,"",F29,"",G29,"",H29,"",I29,"",J29,"") -> Calculate: 3485 tonnes × 40 | M29: =D29*G29 -> 139400 | Q29: =CONCATENATE("",M29," ",E29,N29,"",O29,"",P29,"") -> 139400 tonnes
A30: =IF(ISBLANK(E30)," ",ROW(B30)-7) -> 23 | B30: A | C30: Calculate: | D30: £ | E30: =RANDBETWEEN(6,9)+RANDBETWEEN(1,9)*0.1 -> 9.5 | F30: × | G30: =RANDBETWEEN(5,9) -> 7 | H30: × 1.5 | L30: =CONCATENATE("",C30,"",D30,"",TEXT(E30,"#.00"),"",F30,"",G30,"",H30,"",I30,"",J30,"") -> Calculate: £9.50 × 7 × 1.5 | M30: =E30*G30*1.5 -> 99.75 | Q30: =CONCATENATE(D30,IF(M30=INT(M30),M30,TEXT(M30,"#.00")),"",N30,"",O30,"",P30,"") -> £99.75
A31: =IF(ISBLANK(E31)," ",ROW(B31)-7) -> 24 | B31: A | C31: Calculate: | D31: =IF(K31=1,2,1)*RANDBETWEEN(1,9) -> 3 | E31: × | F31: =IF(K31=1,1,2)*RANDBETWEEN(1,9) -> 12 | G31: ÷ 2 | K31: =RANDBETWEEN(1,2) -> 2 | L31: =CONCATENATE("",C31,"",D31,"",E31,"",F31,"",G31,"",H31,"",I31,"",J31,"") -> Calculate: 3 × 12 ÷ 2 | M31: =D31*F31/2 -> 18 | Q31: =CONCATENATE("",M31,"",N31,"",O31,"",P31,"") -> 18
A32: =IF(ISBLANK(E32)," ",ROW(B32)-7) -> 25 | B32: A | C32: Calculate: | D32: =RANDBETWEEN(2,9)*10+RANDBETWEEN(1,9) -> 23 | E32: ÷ | F32: 10 | L32: =CONCATENATE("",C32,"",D32,"",E32,"",F32,"",G32,"",H32,"",I32,"",J32,"") -> Calculate: 23 ÷ 10 | M32: =D32/10 -> 2.3 | Q32: =CONCATENATE("",M32,"",N32,"",O32,"",P32,"") -> 2.3
A33: =IF(ISBLANK(E33)," ",ROW(B33)-7) -> 26 | B33: A | C33: Calculate: | D33: =RANDBETWEEN(1,9)*100+RANDBETWEEN(1,9)*10 -> 980 | E33: =CHOOSE(K33,"cm","m","kg","","km","mm","g"," tonnes"," miles","ml","") -> g | F33: × | G33: =RANDBETWEEN(6,9) -> 8 | K33: =RANDBETWEEN(1,11) -> 7 | L33: =CONCATENATE("",C33,"",D33,"",E33,"",F33,"",G33,"",H33,"",I33,"",J33,"") -> Calculate: 980g × 8 | M33: =D33*G33 -> 7840 | Q33: =CONCATENATE("",M33," ",E33,N33,"",O33,"",P33,"") -> 7840 g
A34: =IF(ISBLANK(E34)," ",ROW(B34)-7) -> 27 | B34: A | C34: Calculate: | D34: =CHOOSE(K34,"£","£","£","$","€") -> £ | E34: =RANDBETWEEN(6,9)*G34 -> 180 | F34: ÷ | G34: =10*RANDBETWEEN(2,5) -> 20 | K34: =RANDBETWEEN(1,5) -> 3 | L34: =CONCATENATE("",C34,"",D34,"",E34,"",F34,"",G34,"",H34,"",I34,"",J34,"") -> Calculate: £180 ÷ 20 | M34: =E34/G34 -> 9 | Q34: =CONCATENATE(D34,IF(M34=INT(M34),M34,TEXT(M34,"#.00")),"",N34,"",O34,"",P34,"") -> £9
A35: =IF(ISBLANK(D35)," ",ROW(B35)-7) -> 28 | B35: A | C35: Calculate: | D35: =RANDBETWEEN(50,99)*G35 -> 1200 | E35: =CHOOSE(K35,"cm","m","kg","","km","mm","g"," tonnes"," miles","ml","") ->  | F35: ÷ | G35: =10*RANDBETWEEN(2,5) -> 20 | K35: =RANDBETWEEN(1,11) -> 4 | L35: =CONCATENATE("",C35,"",D35,"",E35,"",F35,"",G35,"",H35,"",I35,"",J35,"") -> Calculate: 1200 ÷ 20 | M35: =D35/G35 -> 60 | Q35: =CONCATENATE("",M35," ",E35,N35,"",O35,"",P35,"") -> 60
A36: =IF(ISBLANK(D36)," ",ROW(B36)-7) -> 29 | B36: A | C36: Calculate: | D36: =RANDBETWEEN(1,3)*10+RANDBETWEEN(1,9) -> 38 | E36: × | F36: =RANDBETWEEN(1,9)*10+RANDBETWEEN(1,9) -> 25 | L36: =CONCATENATE("",C36,"",D36,"",E36,"",F36,"",G36,"",H36,"",I36,"",J36,"") -> Calculate: 38 × 25 | M36: =D36*F36 -> 950 | Q36: =CONCATENATE("",M36,"",N36,"",O36,"",P36,"") -> 950
A37: =IF(ISBLANK(D37)," ",ROW(B37)-7) -> 30 | B37: A | C37: Calculate: | D37: £ | E37: =RANDBETWEEN(1001,9999) -> 6154 | F37: × | G37: =RANDBETWEEN(6,9) -> 7 | L37: =CONCATENATE("",C37,"",D37,"",E37,"",F37,"",G37,"",H37,"",I37,"",J37,"") -> Calculate: £6154 × 7 | M37: £ | N37: =E37*G37 -> 43078 | Q37: =CONCATENATE("",M37,"",N37,"",O37,"",P37,"") -> £43078
A38: =IF(ISBLANK(C38)," ",ROW(B38)-7) -> 31 | B38: A | C38: Calculate: | D38: =RANDBETWEEN(11,19) -> 14 | E38: × | F38: =RANDBETWEEN(4,9) -> 5 | G38: × | H38: =RANDBETWEEN(4,9) -> 6 | L38: =CONCATENATE("",C38,"",D38,"",E38,"",F38,"",G38,"",H38,"",I38,"",J38,"") -> Calculate: 14 × 5 × 6 | M38: =D38*F38*H38 -> 420 | Q38: =CONCATENATE("",M38,"",N38,"",O38,"",P38,"") -> 420
A39: =IF(ISBLANK(D39)," ",ROW(B39)-7) -> 32 | B39: A | C39: Calculate: | D39: =RANDBETWEEN(2,9)*10 -> 50 | E39: + | F39: =RANDBETWEEN(12,15) -> 15 | G39: × | H39: =RANDBETWEEN(12,19) -> 16 | L39: =CONCATENATE("",C39,"",D39,"",E39,"",F39,"",G39,"",H39,"",I39,"",J39,"") -> Calculate: 50 + 15 × 16 | M39: =D39+F39*H39 -> 290 | Q39: =CONCATENATE("",M39,"",N39,"",O39,"",P39,"") -> 290
A40: =IF(ISBLANK(C40)," ",ROW(B40)-7) -> 33 | B40: A | C40: Calculate: | D40: =RANDBETWEEN(20,99) -> 69 | E40: =RANDBETWEEN(3,9) -> 3 | F40: =RANDBETWEEN(20,99) -> 79 | G40: =RANDBETWEEN(3,9) -> 8 | H40: =RANDBETWEEN(20,99) -> 94 | I40: =RANDBETWEEN(3,9) -> 3 | J40: =CHOOSE(K40,"£","£","£","$","€") -> £ | K40: =RANDBETWEEN(1,5) -> 2 | L40: =CONCATENATE("",C40,"",J40,D40," × ",E40," + ",J40,F40," × ",G40," + ",J40,H40," × ",I40) -> Calculate: £69 × 3 + £79 × 8 + £94 × 3 | M40: =D40*E40+F40*G40+H40*I40 -> 1121 | Q40: =CONCATENATE(J40,M40,"",N40,"",O40,"",P40,"") -> £1121
A41: =IF(ISBLANK(C41)," ",ROW(B41)-7) -> 34 | B41: A | C41: Calculate: | D41: =CHOOSE(K41,"£","£","£","$","€") -> £ | E41: =J41*RANDBETWEEN(1001,9999)/100 -> 789.75 | F41: ÷ | G41: =J41 -> 9 | J41: =RANDBETWEEN(6,9) -> 9 | K41: =RANDBETWEEN(1,5) -> 2 | L41: =CONCATENATE("",C41,"",D41,"",TEXT(E41,"#.00"),"",F41,"",G41,"",H41,"",I41,"") -> Calculate: £789.75 ÷ 9 | M41: =E41/G41 -> 87.75 | Q41: =CONCATENATE(D41,TEXT(M41,"#.00"),"",N41,"",O41,"",P41,"") -> £87.75
A42: =IF(ISBLANK(C42)," ",ROW(B42)-7) -> 35 | B42: A | C42: Express the fraction in its simplest form: | D42: =RANDBETWEEN(1,F42-1) -> 6 | E42: / | F42: =RANDBETWEEN(3,10) -> 9 | K42: =CHOOSE(RANDBETWEEN(1,4),4,20,10,6) -> 10 | L42: =CONCATENATE("",C42,"",D42*K42,"",E42,"",F42*K42,"",G42,"",H42,"",I42,"",J42,"") -> Express the fraction in its simplest form: 60/90 | M42: =D42/GCD(D42,F42) -> 2 | N42: / | O42: =F42/GCD(D42,F42) -> 3 | Q42: =CONCATENATE("",M42,"",N42,"",O42,"",P42,"") -> 2/3
A43: =IF(ISBLANK(C43)," ",ROW(B43)-7) -> 36 | B43: A | C43: Express the fraction in its simplest form: | D43: =RANDBETWEEN(1,F43-1) -> 3 | E43: / | F43: =RANDBETWEEN(3,10) -> 4 | K43: =CHOOSE(RANDBETWEEN(1,4),8,10,100,6) -> 8 | L43: =CONCATENATE("",C43,"",D43*K43,"",E43,"",F43*K43,"",G43,"",H43,"",I43,"",J43,"") -> Express the fraction in its simplest form: 24/32 | M43: =D43/GCD(D43,F43) -> 3 | N43: / | O43: =F43/GCD(D43,F43) -> 4 | Q43: =CONCATENATE("",M43,"",N43,"",O43,"",P43,"") -> 3/4
A44: =IF(ISBLANK(C44)," ",ROW(B44)-7) -> 37 | B44: A | C44: Express the ratio in its simplest form: | D44: =RANDBETWEEN(2,10) -> 8 | E44: : | F44: =RANDBETWEEN(5,10) -> 10 | G44: : | H44: =RANDBETWEEN(1,8) -> 3 | K44: =CHOOSE(RANDBETWEEN(1,4),4,20,10,6) -> 6 | L44: =CONCATENATE("",C44,"",D44*K44,"",E44,"",F44*K44,"",G44,"",H44*K44,"",I44,"",J44,"") -> Express the ratio in its simplest form: 48 : 60 : 18 | M44: =D44/GCD(D44,F44,H44) -> 8 | N44: =F44/GCD(D44,F44,H44) -> 10 | O44: =H44/GCD(D44,F44,H44) -> 3 | Q44: =CONCATENATE("",M44," : ",N44," : ",O44,"",P44,"") -> 8 : 10 : 3
A45: =IF(ISBLANK(D45)," ",ROW(B45)-7) -> 38 | B45: A | C45: Round | D45: =RANDBETWEEN(1,99)+RANDBETWEEN(0,9)/10+RANDBETWEEN(0,9)/100+RANDBETWEEN(IF(K45=2,1,5),9)/1000 -> 52.927 | E45: to 2 decimal places | K45: =IF(RAND()<0.8,1,2) -> 1 | L45: =CONCATENATE("",C45,"",D45,"",E45,"",F45,"",G45,"",H45,"",I45,"",J45,"") -> Round 52.927 to 2 decimal places | M45: =TEXT(MROUND(D45,0.01),"#.00") -> 52.93 | Q45: =CONCATENATE("",M45,"",N45,"",O45,"",P45,"") -> 52.93
A46: =IF(ISBLANK(D46)," ",ROW(B46)-7) -> 39 | B46: A | C46: Round | D46: =(RANDBETWEEN(1,8)+10*RANDBETWEEN(1,8)+100*RANDBETWEEN(1,8))*10^K46 -> 568000 | E46: to | F46: =RANDBETWEEN(1,2) -> 1 | G46: significant figure | H46: =IF(F46=1,"","s") ->  | K46: =RANDBETWEEN(1,3) -> 3 | L46: =CONCATENATE("",C46,"",TEXT(D46,"### ### ###"),"",E46,"",F46,"",G46,"",H46,"",I46,"",J46,"") -> Round 568 000 to 1 significant figure | M46: =IF(F46=1,CHOOSE(K46,MROUND(D46,1000),MROUND(D46,10000),MROUND(D46,100000)),IF(F46=2,CHOOSE(K46,MROUND(D46,100),MROUND(D46,1000),MROUND(D46,10000)),CHOOSE(K46,MROUND(D46,10),MROUND(D46,100),MROUND(D46,1000)))) -> 600000 | Q46: =CONCATENATE("",TEXT(M46,"### ###"),"",N46,"",O46,"",P46,"") -> 600 000
A47: =IF(ISBLANK(C47)," ",ROW(B47)-7) -> 40 | B47: A | C47: State the minimum and maximum values of | D47: =CHOOSE(K47,"£","£","$","€","","","","","","","") ->  | E47: =10^RANDBETWEEN(2,3)*RANDBETWEEN(1,99) -> 44000 | F47: =CHOOSE(K47,"","","","","km","m","kg"," litres"," miles","","") ->  | G47: ± | H47: =D47 ->  | I47: =RANDBETWEEN(50,0.5*E47) -> 15464 | J47: =F47 ->  | K47: =RANDBETWEEN(1,11) -> 11 | L47: =CONCATENATE("",C47,"",D47,"",E47,"",F47,"",G47,"",H47,"",I47,"",J47,"") -> State the minimum and maximum values of 44000 ± 15464 | M47: Min: | N47: =E47-I47 -> 28536 | O47: , Max: | P47: =E47+I47 -> 59464 | Q47: =CONCATENATE("",M47,D47,N47,F47,O47,D47,P47,F47) -> Min: 28536, Max: 59464
A48: =IF(ISBLANK(C48)," ",ROW(B48)-7) -> 41 | B48: A | C48: State which fraction is | D48: =IF(K48=1,"smaller: ","larger: ") -> larger: | E48: =RANDBETWEEN(1,4) -> 1 | F48: =IF(J48=1,RANDBETWEEN(5,20),RANDBETWEEN(H48+1,30)) -> 21 | G48: =E48 -> 1 | H48: =IF(J48=2,RANDBETWEEN(5,20),RANDBETWEEN(F48+1,30)) -> 8 | J48: =RANDBETWEEN(1,2) -> 2 | K48: =RANDBETWEEN(1,2) -> 2 | L48: =CONCATENATE("",C48,"",D48,E48,"/",F48," or ",G48,"/",H48) -> State which fraction is larger: 1/21 or 1/8 | M48: =IF($K48=2,IF($E48/$F48>$G48/$H48,$E48,$G48),IF($E48/$F48<$G48/$H48,$E48,$G48)) -> 1 | N48: / | O48: =IF($K48=2,IF($E48/$F48>$G48/$H48,$F48,$H48),IF($E48/$F48<$G48/$H48,$F48,$H48)) -> 8 | Q48: =CONCATENATE("",M48,"",N48,"",O48,"",P48,"") -> 1/8
A49: =IF(ISBLANK(C49)," ",ROW(B49)-7) -> 42 | B49: A | C49: State which fraction is | D49: =IF(K49=1,"smaller: ","larger: ") -> larger: | E49: =IF(J49=1,RANDBETWEEN(5,20),RANDBETWEEN(G49+1,29)) -> 10 | F49: =RANDBETWEEN(30,50) -> 48 | G49: =IF(J49=2,RANDBETWEEN(5,20),RANDBETWEEN(E49+1,29)) -> 6 | H49: =F49 -> 48 | J49: =RANDBETWEEN(1,2) -> 2 | K49: =RANDBETWEEN(1,2) -> 2 | L49: =CONCATENATE("",C49,"",D49,E49,"/",F49," or ",G49,"/",H49) -> State which fraction is larger: 10/48 or 6/48 | M49: =IF($K49=2,IF($E49/$F49>$G49/$H49,$E49,$G49),IF($E49/$F49<$G49/$H49,$E49,$G49)) -> 10 | N49: / | O49: =IF($K49=2,IF($E49/$F49>$G49/$H49,$F49,$H49),IF($E49/$F49<$G49/$H49,$F49,$H49)) -> 48 | Q49: =CONCATENATE("",M49,"",N49,"",O49,"",P49,"") -> 10/48
A50: =IF(ISBLANK(D50)," ",ROW(B50)-7) -> 43 | B50: A | C50: What is the square root of | D50: =CHOOSE(K50,3,4,5,6,10)^2 -> 36 | E50: ? | K50: =RANDBETWEEN(1,5) -> 4 | L50: =CONCATENATE("",C50,"",D50,"",E50,"",F50,"",G50,"",H50,"",I50,"",J50,"") -> What is the square root of 36? | M50: =SQRT(D50) -> 6 | Q50: =CONCATENATE("",M50,"",N50,"",O50,"",P50,"") -> 6
A51: =IF(ISBLANK(D51)," ",ROW(B51)-7) -> 44 | B51: A | C51: What temperature is | D51: =RANDBETWEEN(20,40) -> 36 | E51: °C higher than – | F51: =RANDBETWEEN(10,50) -> 17 | G51: °C ? | L51: =CONCATENATE("",C51,"",D51,"",E51,"",F51,"",G51,"",H51,"",I51,"",J51,"") -> What temperature is 36°C higher than –17°C ? | M51: =-1*F51+D51 -> 19 | N51: °C | Q51: =CONCATENATE("",M51,"",N51,"",O51,"",P51,"") -> 19°C
A52: =IF(ISBLANK(D52)," ",ROW(B52)-7) -> 45 | B52: A | C52: What temperature is | D52: =RANDBETWEEN(20,40) -> 35 | E52: °C lower than | F52: =RANDBETWEEN(10,50) -> 18 | G52: °C ? | L52: =CONCATENATE("",C52,"",D52,"",E52,"",F52,"",G52,"",H52,"",I52,"",J52,"") -> What temperature is 35°C lower than 18°C ? | M52: =F52-D52 -> -17 | N52: °C | Q52: =CONCATENATE("",M52,"",N52,"",O52,"",P52,"") -> -17°C
A53: =IF(ISBLANK(D53)," ",ROW(B53)-7) -> 46 | B53: A | C53: What time is | D53: =RANDBETWEEN(1,5) -> 2 | E53: =5*RANDBETWEEN(5,11) -> 30 | F53: =IF(K53<3,IF(RAND()<0.4,"before ","earlier than "),IF(RAND()<0.4,"after ","later than ")) -> before | G53: =IF(ISODD(K53),J53,IF(J53=12,12,MOD(J53,12))) -> 2 | H53: =RANDBETWEEN(1,11)*5 -> 50 | I53: =IF(ISODD(K53),"",IF(J53>12,"pm","am")) ->  | J53: =RANDBETWEEN(1,23) -> 2 | K53: =RANDBETWEEN(1,4) -> 1 | L53: =CONCATENATE("",C53,"",D53," hour",IF(D53=1," ","s "),E53," minutes ",F53,"",IF(ISODD(K53),TEXT(G53,"00"),G53),":",TEXT(H53,"00"),"",I53,"?") -> What time is 2 hours 30 minutes before 02:50? | M53: =IF(K53<3,TIME(J53,H53,0)-TIME(D53,E53,0)+24,TIME(J53,H53,0)+TIME(D53,E53,0)) -> 24.01388889 | Q53: =CONCATENATE("",IF(ISODD(K53),TEXT(M53,"hh:mm"),TEXT(M53,"h:mm AM/PM")),"",N53,"",O53,"",P53,"") -> 00:20
A54: =IF(ISBLANK(D54)," ",ROW(B54)-7) -> 47 | B54: A | C54: What time is | D54: =RANDBETWEEN(1,5) -> 5 | E54: =5*RANDBETWEEN(5,11) -> 50 | F54: =IF(K54<3,IF(RAND()<0.4,"before ","earlier than "),IF(RAND()<0.4,"after ","later than ")) -> earlier than | G54: =IF(ISODD(K54),J54,IF(J54=12,12,MOD(J54,12))) -> 6 | H54: =RANDBETWEEN(1,11)*5 -> 15 | I54: =IF(ISODD(K54),"",IF(J54>12,"pm","am")) ->  | J54: =RANDBETWEEN(1,23) -> 6 | K54: =RANDBETWEEN(1,4) -> 1 | L54: =CONCATENATE("",C54,"",D54," hour",IF(D54=1," ","s "),E54," minutes ",F54,"",IF(ISODD(K54),TEXT(G54,"00"),G54),":",TEXT(H54,"00"),"",I54,"?") -> What time is 5 hours 50 minutes earlier than 06:15? | M54: =IF(K54<3,TIME(J54,H54,0)-TIME(D54,E54,0)+24,TIME(J54,H54,0)+TIME(D54,E54,0)) -> 24.01736111 | Q54: =CONCATENATE("",IF(ISODD(K54),TEXT(M54,"hh:mm"),TEXT(M54,"h:mm AM/PM")),"",N54,"",O54,"",P54,"") -> 00:25
A55: =IF(ISBLANK(D55)," ",ROW(B55)-7) -> 48 | B55: A | C55: Express (a) | D55: =IF(K55=1,100,1)*RANDBETWEEN(2,25) -> 2200 | E55: =IF(K55=1," centimetres and "," metres and ") -> centimetres and | F55: =IF(K55=1,100,1)*RANDBETWEEN(2,25) -> 1200 | G55: =IF(K55=1," centimetres in metres"," metres in centimetres") -> centimetres in metres | K55: =RANDBETWEEN(1,2) -> 1 | L55: =CONCATENATE("",C55,"",D55,"",E55," (b) ",F55,"",G55,"",H55,"",I55,"",J55,"") -> Express (a) 2200 centimetres and (b) 1200 centimetres in metres | M55: =IF(K55=1,D55/100,D55*100) -> 22 | N55: =IF(K55=1," metres and "," cm and ") -> metres and | O55: =IF(K55=1,F55/100,F55*100) -> 12 | P55: =IF(K55=1," metres"," cm") -> metres | Q55: =CONCATENATE("",M55,"",N55,"",O55,"",P55,"") -> 22 metres and 12 metres
A56: =IF(ISBLANK(D56)," ",ROW(B56)-7) -> 49 | B56: A | C56: Express (a) | D56: =IF(K56=1,1000,1)*RANDBETWEEN(2,25) -> 7000 | E56: =IF(K56=1," grams and "," kilograms and ") -> grams and | F56: =IF(K56=1,1000,1)*RANDBETWEEN(2,25) -> 10000 | G56: =IF(K56=1," grams in kilograms"," kilograms in grams") -> grams in kilograms | K56: =RANDBETWEEN(1,2) -> 1 | L56: =CONCATENATE("",C56,"",D56,"",E56," (b) ",F56,"",G56,"",H56,"",I56,"",J56,"") -> Express (a) 7000 grams and (b) 10000 grams in kilograms | M56: =IF(K56=1,D56/1000,D56*1000) -> 7 | N56: =IF(K56=1," kg and "," grams and ") -> kg and | O56: =IF(K56=1,F56/1000,F56*1000) -> 10 | P56: =IF(K56=1," kg"," grams") -> kg | Q56: =CONCATENATE("",M56,"",N56,"",O56,"",P56,"") -> 7 kg and 10 kg
A57: =IF(ISBLANK(D57)," ",ROW(B57)-7) -> 50 | B57: A | C57: Express (a) | D57: =IF(K57=1,1000,1)*RANDBETWEEN(2,25) -> 16000 | E57: =IF(K57=1," metres and "," kilometres and ") -> metres and | F57: =IF(K57=1,1000,1)*RANDBETWEEN(2,25) -> 23000 | G57: =IF(K57=1," metres in kilometres"," kilometres in metres") -> metres in kilometres | K57: =RANDBETWEEN(1,2) -> 1 | L57: =CONCATENATE("",C57,"",D57,"",E57," (b) ",F57,"",G57,"",H57,"",I57,"",J57,"") -> Express (a) 16000 metres and (b) 23000 metres in kilometres | M57: =IF(K57=1,D57/1000,D57*1000) -> 16 | N57: =IF(K57=1," km and "," metres and ") -> km and | O57: =IF(K57=1,F57/1000,F57*1000) -> 23 | P57: =IF(K57=1," km"," metres") -> km | Q57: =CONCATENATE("",M57,"",N57,"",O57,"",P57,"") -> 16 km and 23 km
A58: =IF(ISBLANK(D58)," ",ROW(B58)-7) -> 51 | B58: A | C58: Express (a) | D58: =IF(K58=1,1000,1)*RANDBETWEEN(2,25) -> 19 | E58: =IF(K58=1," millilitres and "," litres and ") -> litres and | F58: =IF(K58=1,1000,1)*RANDBETWEEN(2,25) -> 11 | G58: =IF(K58=1," millilitres in litres"," litres in millilitres") -> litres in millilitres | K58: =RANDBETWEEN(1,2) -> 2 | L58: =CONCATENATE("",C58,"",D58,"",E58," (b) ",F58,"",G58,"",H58,"",I58,"",J58,"") -> Express (a) 19 litres and (b) 11 litres in millilitres | M58: =IF(K58=1,D58/1000,D58*1000) -> 19000 | N58: =IF(K58=1," litres and "," ml and ") -> ml and | O58: =IF(K58=1,F58/1000,F58*1000) -> 11000 | P58: =IF(K58=1," litres"," ml") -> ml | Q58: =CONCATENATE("",M58,"",N58,"",O58,"",P58,"") -> 19000 ml and 11000 ml
A59: =IF(ISBLANK(D59)," ",ROW(B59)-7) -> 52 | B59: A | C59: Express (a) | D59: =IF(K59=1,10,1)*RANDBETWEEN(15,95) -> 39 | E59: =IF(K59=1," millimetres and "," centimetres and ") -> centimetres and | F59: =IF(K59=1,10,1)*RANDBETWEEN(15,95) -> 80 | G59: =IF(K59=1," millimetres in centimetres"," centimetres in millimetres") -> centimetres in millimetres | K59: =RANDBETWEEN(1,2) -> 2 | L59: =CONCATENATE("",C59,"",D59,"",E59," (b) ",F59,"",G59,"",H59,"",I59,"",J59,"") -> Express (a) 39 centimetres and (b) 80 centimetres in millimetres | M59: =IF(K59=1,D59/10,D59*10) -> 390 | N59: =IF(K59=1," cm and "," mm and ") -> mm and | O59: =IF(K59=1,F59/10,F59*10) -> 800 | P59: =IF(K59=1," cm"," mm") -> mm | Q59: =CONCATENATE("",M59,"",N59,"",O59,"",P59,"") -> 390 mm and 800 mm
A60: =IF(ISBLANK(D60)," ",ROW(B60)-7) -> 53 | B60: A | C60: Express | D60: =RANDBETWEEN(0,9)+CHOOSE(RANDBETWEEN(1,3),0.25,0.75,0.5) -> 7.25 | E60: hours in hours and minutes | L60: =CONCATENATE("",C60,"",D60,"",E60,"",F60,"",G60,"",H60,"",I60,"",J60,"") -> Express 7.25 hours in hours and minutes | M60: =INT(D60) -> 7 | N60: =CONCATENATE(" hour",IF(M60=1," ","s ")) -> hours | O60: =(D60-INT(D60))*60 -> 15 | P60: minutes | Q60: =CONCATENATE("",M60,"",N60,"",O60,"",P60,"") -> 7 hours 15 minutes
A61: =IF(ISBLANK(D61)," ",ROW(B61)-7) -> 54 | B61: A | C61: Express | D61: =RANDBETWEEN(2,9) -> 4 | E61: hours | F61: =15*RANDBETWEEN(1,3) -> 30 | G61: minutes in hours (using a decimal point) | L61: =CONCATENATE("",C61,"",D61,"",E61,"",F61,"",G61,"",H61,"",I61,"",J61,"") -> Express 4 hours 30 minutes in hours (using a decimal point) | M61: =D61+F61/60 -> 4.5 | N61: =CONCATENATE(" hour",IF(M61=1," ","s ")) -> hours | Q61: =CONCATENATE("",M61,"",N61,"",O61,"",P61,"") -> 4.5 hours
A62: =IF(ISBLANK(D62)," ",ROW(B62)-7) -> 55 | B62: A | C62: Express | D62: =RANDBETWEEN(0,9)+CHOOSE(RANDBETWEEN(1,3),0.25,0.75,0.5) -> 2.75 | E62: minutes in minutes and seconds | L62: =CONCATENATE("",C62,"",D62,"",E62,"",F62,"",G62,"",H62,"",I62,"",J62,"") -> Express 2.75 minutes in minutes and seconds | M62: =INT(D62) -> 2 | N62: =CONCATENATE(" minute",IF(M62=1," ","s ")) -> minutes | O62: =(D62-INT(D62))*60 -> 45 | P62: seconds | Q62: =CONCATENATE("",M62,"",N62,"",O62,"",P62,"") -> 2 minutes 45 seconds
A63: =IF(ISBLANK(D63)," ",ROW(B63)-7) -> 56 | B63: A | C63: Express | D63: =RANDBETWEEN(2,9) -> 8 | E63: minutes | F63: =15*RANDBETWEEN(1,3) -> 30 | G63: seconds in minutes (using a decimal point) | L63: =CONCATENATE("",C63,"",D63," ",E63," ",F63," ",G63,"",H63,"",I63,"",J63,"") -> Express 8 minutes 30 seconds in minutes (using a decimal point) | M63: =D63+F63/60 -> 8.5 | N63: =CONCATENATE(" minute",IF(M63=1," ","s ")) -> minutes | Q63: =CONCATENATE("",M63,"",N63,"",O63,"",P63,"") -> 8.5 minutes
A64: =IF(ISBLANK(D64)," ",ROW(B64)-7) -> 57 | B64: A | C64: Express | D64: =RANDBETWEEN(2,9) -> 4 | E64: out of 10 as a percentage | L64: =CONCATENATE("",C64,"",D64,"",E64,"",F64,"",G64,"",H64,"",I64,"",J64,"") -> Express 4 out of 10 as a percentage | M64: =D64*10 -> 40 | N64: % | Q64: =CONCATENATE("",M64,"",N64,"",O64,"",P64,"") -> 40%
A65: =IF(ISBLANK(C65)," ",ROW(B65)-7) -> 58 | B65: A | C65: A shop offers a discount of | D65: 1 | E65: / | F65: =RANDBETWEEN(3,5) -> 5 | G65: on a price of | H65: =CHOOSE(K65,"£","£","$","€","","","","","","","") -> £ | I65: =TEXT(F65*RANDBETWEEN(51,99)/10,"#.00") -> 44.00 | J65: . What is the new price? | K65: =RANDBETWEEN(1,4) -> 2 | L65: =CONCATENATE("",C65,"",D65,"",E65,"",F65,"",G65,"",H65,"",I65,"",J65,"") -> A shop offers a discount of 1/5 on a price of £44.00. What is the new price? | M65: =H65 -> £ | N65: =TEXT(I65/F65*(F65-1),"#.00") -> 35.20 | Q65: =CONCATENATE("",M65,"",N65,"",O65,"",P65,"") -> £35.20
A66: =IF(ISBLANK(C66)," ",ROW(B66)-7) -> 59 | B66: A | C66: Add the fractions: | D66: =IF(F66=3,RANDBETWEEN(1,2),IF(F66=4,IF(RAND()<0.4,1,3),IF(F66=5,RANDBETWEEN(2,4),IF(RAND()<0.33,3,IF(RAND()<0.5,7,9))))) -> 2 | E66: / | F66: =CHOOSE(K66,3,3,3,4,4,4,5,5,5,10,10,10) -> 3 | G66: + | H66: =IF(J66=3,RANDBETWEEN(1,2),IF(J66=4,IF(RAND()<0.4,1,3),IF(J66=5,RANDBETWEEN(2,4),IF(RAND()<0.33,3,IF(RAND()<0.5,7,9))))) -> 1 | I66: / | J66: =CHOOSE(K66,4,5,10,3,5,10,3,4,10,4,5,10) -> 4 | K66: =RANDBETWEEN(1,12) -> 1 | L66: =CONCATENATE("",C66,"",D66,"",E66,"",F66,"",G66,"",H66,"",I66,"",J66,". Express your answer as a fraction in its simplest form.") -> Add the fractions: 2/3 + 1/4. Express your answer as a fraction in its simplest form. | M66: =R66/GCD(R66,S66) -> 11 | N66: / | O66: =S66/GCD(R66,S66) -> 12 | Q66: =CONCATENATE("",M66,"",N66,"",O66,"",IF(M66/O66>1,CONCATENATE(" or ",INT(M66/O66)," ",MOD(M66,O66),"/",O66),"")) -> 11/12 | R66: =D66*J66+F66*H66 -> 11 | S66: =F66*J66 -> 12
A67: =IF(ISBLANK(D67)," ",ROW(B67)-7) -> 60 | B67: A | C67: Calculate | D67: =CHOOSE(RANDBETWEEN(1,2),"25%","75%") -> 25% | E67: of | F67: =CHOOSE(K67,"£","£","$","€","","","","","","","") ->  | G67: =4*RANDBETWEEN(11,99)*10^RANDBETWEEN(1,3) -> 232000 | H67: =CHOOSE(K67,"","","","","km","m","kg"," litres"," miles","","") -> litres | K67: =RANDBETWEEN(1,11) -> 8 | L67: =CONCATENATE("",C67,"",D67,"",E67,"",F67,"",G67,"",H67,"",I67,"",J67,"") -> Calculate 25% of 232000 litres | M67: =F67 ->  | N67: =IF(D67="25%",G67/4,G67/4*3) -> 58000 | O67: =H67 -> litres | Q67: =CONCATENATE("",M67,"",N67,"",O67,"",P67,"") -> 58000 litres
A68: =IF(ISBLANK(D68)," ",ROW(B68)-7) -> 61 | B68: A | C68: Calculate | D68: =RANDBETWEEN(2,4)*10 -> 20 | E68: % of | F68: =CHOOSE(K68,"£","£","$","€","","","","","","","") ->  | G68: =10^RANDBETWEEN(1,3)*RANDBETWEEN(5,99) -> 420 | H68: =CHOOSE(K68,"","","","","km","m","kg"," litres"," miles","","") ->  | K68: =RANDBETWEEN(1,11) -> 10 | L68: =CONCATENATE("",C68,"",D68,"",E68,"",F68,"",G68,"",H68,"",I68,"",J68,"") -> Calculate 20% of 420 | M68: =F68 ->  | N68: =G68/100*D68 -> 84 | O68: =H68 ->  | Q68: =CONCATENATE("",M68,"",N68,"",O68,"",P68,"") -> 84
A69: =IF(ISBLANK(C69)," ",ROW(B69)-7) -> 62 | B69: A | C69: Calculate | D69: =RANDBETWEEN(6,9)*10 -> 90 | E69: % of | F69: =CHOOSE(K69,"£","£","$","€","","","","","","","") -> £ | G69: =10^RANDBETWEEN(1,3)*RANDBETWEEN(5,99) -> 3300 | H69: =CHOOSE(K69,"","","","","km","m","kg"," litres"," miles","","") ->  | K69: =RANDBETWEEN(1,11) -> 2 | L69: =CONCATENATE("",C69,"",D69,"",E69,"",F69,"",G69,"",H69,"",I69,"",J69,"") -> Calculate 90% of £3300 | M69: =F69 -> £ | N69: =G69/100*D69 -> 2970 | O69: =H69 ->  | Q69: =CONCATENATE("",M69,"",N69,"",O69,"",P69,"") -> £2970
A70: =IF(ISBLANK(D70)," ",ROW(B70)-7) -> 63 | B70: A | C70: Calculate | D70: =RANDBETWEEN(2,9) -> 3 | E70: % of | F70: =CHOOSE(K70,"£","£","$","€","","","","","","","") -> £ | G70: =RANDBETWEEN(2,9)*10^RANDBETWEEN(2,3) -> 200 | H70: =CHOOSE(K70,"","","","","km","mm","g"," tonnes"," miles","ml","") ->  | K70: =RANDBETWEEN(1,11) -> 2 | L70: =CONCATENATE("",C70,"",D70,"",E70,"",F70,"",G70,"",H70,"",I70,"",J70,"") -> Calculate 3% of £200 | M70: =F70 -> £ | N70: =G70/100*D70 -> 6 | O70: =H70 ->  | Q70: =CONCATENATE("",M70,"",N70,"",O70,"",P70,"") -> £6
A71: =IF(ISBLANK(D71)," ",ROW(B71)-7) -> 64 | B71: A | C71: Calculate | D71: =CHOOSE(K71,3,4,5,6,10) -> 3 | E71: ² | K71: =RANDBETWEEN(1,5) -> 1 | L71: =CONCATENATE("",C71,"",D71,"",E71,"",F71,"",G71,"",H71,"",I71,"",J71,"") -> Calculate 3² | M71: =D71^2 -> 9 | Q71: =CONCATENATE("",M71,"",N71,"",O71,"",P71,"") -> 9
A72: =IF(ISBLANK(C72)," ",ROW(B72)-7) -> 65 | B72: A | C72: Calculate the fraction: | D72: =IF(F72=3,RANDBETWEEN(1,2),IF(F72=4,IF(RAND()<0.5,1,3),RANDBETWEEN(1,4))) -> 1 | E72: / | F72: =RANDBETWEEN(3,5) -> 4 | G72: of | I72: =F72*RANDBETWEEN(501,999) -> 3256 | J72: =CHOOSE(K72,"","","","","km","mm","g"," tonnes"," miles"," litres","") -> km | K72: =RANDBETWEEN(1,11) -> 5 | L72: =CONCATENATE("",C72,"",D72,"",E72,"",F72,"",G72,"",H72,"",I72,"",J72,"") -> Calculate the fraction: 1/4 of 3256km | M72: =I72/F72*D72 -> 814 | Q72: =CONCATENATE("",M72,"",N72,"",O72,"",P72,"") -> 814
A73: =IF(ISBLANK(C73)," ",ROW(B73)-7) -> 66 | B73: A | C73: Calculate the fraction: | D73: =IF(F73=3,RANDBETWEEN(1,2),IF(F73=4,IF(RAND()<0.5,1,3),RANDBETWEEN(1,4))) -> 1 | E73: / | F73: =RANDBETWEEN(3,5) -> 3 | G73: of | H73: =CHOOSE(K73,"£","£","$","€","","","","","","","") -> € | I73: =TEXT(F73*RANDBETWEEN(51,99)/10,"#.00") -> 16.80 | K73: =RANDBETWEEN(1,4) -> 4 | L73: =CONCATENATE("",C73,"",D73,"",E73,"",F73,"",G73,"",H73,"",I73,"",J73,"") -> Calculate the fraction: 1/3 of €16.80 | M73: =H73 -> € | N73: =TEXT(I73/F73*D73,"#.00") -> 5.60 | Q73: =CONCATENATE("",M73,"",N73,"",O73,"",P73,"") -> €5.60
A74: =IF(ISBLANK(C74)," ",ROW(B74)-7) -> 67 | B74: A | C74: Calculate the mean: | D74: =5*RANDBETWEEN(200,1999) -> 5500 | E74: =5*RANDBETWEEN(200,1999) -> 1700 | F74: =5*RANDBETWEEN(200,1999) -> 1860 | G74: =20*RANDBETWEEN(50,499)-MOD(D74+E74+F74,20) -> 4480 | H74: =IF(K74=5,5*RANDBETWEEN(200,1999),"") ->  | K74: 4 | L74: =CONCATENATE("",C74," ",D74,", ",E74,", ",F74,", ",G74,IF(K74=5,", ",""),H74,"",I74,"",J74,"") -> Calculate the mean: 5500, 1700, 1860, 4480 | M74: =IF(K74=4,AVERAGE(D74:G74),AVERAGE(D74:H74)) -> 3385 | Q74: =CONCATENATE("",M74,"",N74,"",O74,"",P74,"") -> 3385
A75: =IF(ISBLANK(C75)," ",ROW(B75)-7) -> 68 | B75: A | C75: Calculate the mean: | D75: =5*RANDBETWEEN(2000,19999) -> 88050 | E75: =5*RANDBETWEEN(2000,19999) -> 24495 | F75: =5*RANDBETWEEN(2000,19999) -> 82605 | G75: =20*RANDBETWEEN(500,4999)-MOD(D75+E75+F75,20) -> 19030 | H75: =IF(K75=5,5*RANDBETWEEN(200,1999),"") ->  | K75: 4 | L75: =CONCATENATE("",C75," ",D75,", ",E75,", ",F75,", ",G75,IF(K75=5,", ",""),H75,"",I75,"",J75,"") -> Calculate the mean: 88050, 24495, 82605, 19030 | M75: =IF(K75=4,AVERAGE(D75:G75),AVERAGE(D75:H75)) -> 53545 | Q75: =CONCATENATE("",M75,"",N75,"",O75,"",P75,"") -> 53545
A76: =IF(ISBLANK(D76)," ",ROW(B76)-7) -> 69 | B76: A | C76: Calculate the total in hours and minutes: | D76: =RANDBETWEEN(1,3) -> 2 | E76: =RANDBETWEEN(1,3) -> 1 | F76: =RANDBETWEEN(1,3) -> 3 | G76: =RANDBETWEEN(3,11)*5 -> 20 | H76: =RANDBETWEEN(6,11)*5 -> 40 | I76: =RANDBETWEEN(2,11)*5 -> 50 | K76: =RANDBETWEEN(1,3) -> 2 | L76: =CONCATENATE(C76,CHOOSE(K76,CONCATENATE(D76," hour",IF(D76>1,"s "," "),G76," minutes + ",E76," hour",IF(E76>1,"s "," "),H76," minutes + ",F76," hour",IF(F76>1,"s "," "),I76," minutes"),CONCATENATE(D76," hour",IF(D76>1,"s "," "),G76," minutes + ",E76," hour",IF(E76>1,"s + "," + "),F76," hour",IF(F76>1,"s "," "),H76," minutes + ",I76," minutes"),CONCATENATE(I76," minutes + ",D76," hour",IF(D76>1,"s "," "),G76," minutes + ",F76," hour",IF(F76>1,"s + "," + "),E76," hour",IF(E76>1,"s "," "),H76," minutes"))) -> Calculate the total in hours and minutes: 2 hours 20 minutes + 1 hour + 3 hours 40 minutes + 50 minutes | M76: =TIME(D76,0,0)+TIME(E76,0,0)+TIME(F76,0,0)+TIME(0,G76,0)+TIME(0,H76,0)+TIME(0,I76,0) -> 07:50:00 | Q76: =CONCATENATE(HOUR(M76)," hr ",MINUTE(M76)," min") -> 7 hr 50 min
A77: =IF(ISBLANK(C77)," ",ROW(B77)-7) -> 70 | B77: A | C77: Calculate using fractions: | D77: 1 – ( | E77: =IF(G77=3,1,IF(G77=4,1,IF(G77=5,RANDBETWEEN(1,2),IF(G77=6,1,IF(G77=7,RANDBETWEEN(1,3),RANDBETWEEN(1,2)*2-1))))) -> 1 | F77: / | G77: =CHOOSE(RANDBETWEEN(1,6),3,4,5,6,7,8) -> 6 | H77: + | I77: =IF(J77=3,1,IF(J77=4,1,IF(J77=5,RANDBETWEEN(1,2),IF(J77=6,1,IF(J77=7,RANDBETWEEN(1,3),RANDBETWEEN(1,2)*2-1))))) -> 1 | J77: =G77 -> 6 | L77: =CONCATENATE("",C77,"",D77,"",E77,"",F77,"",G77,"",H77,"",I77,"/",J77," )") -> Calculate using fractions: 1 – ( 1/6 + 1/6 ) | M77: =J77-I77-E77 -> 4 | N77: =G77 -> 6 | Q77: =CONCATENATE(M77/GCD(M77,N77),"/",N77/GCD(M77,N77)) -> 2/3
A78: =IF(ISBLANK(C78)," ",ROW(B78)-7) -> 71 | B78: A | C78: Calculate, using | D78: π = 3.14 : | E78: π | F78: × | G78: =10*RANDBETWEEN(2,6) -> 20 | L78: =CONCATENATE("",C78,"",D78,"",E78,"",F78,"",G78,"",H78,"",I78,"",J78,"") -> Calculate, using π = 3.14 : π × 20 | M78: =3.14*G78 -> 62.8 | Q78: =CONCATENATE("",M78,"",N78,"",O78,"",P78,"") -> 62.8
A79: =IF(ISBLANK(C79)," ",ROW(B79)-7) -> 72 | B79: A | C79: Calculate, using | D79: π = 3.14 : | E79: π | F79: × | G79: =10*RANDBETWEEN(2,6) -> 60 | H79: ÷ 2 | L79: =CONCATENATE("",C79,"",D79,"",E79,"",F79,"",G79,"",H79,"",I79,"",J79,"") -> Calculate, using π = 3.14 : π × 60 ÷ 2 | M79: =3.14*G79/2 -> 94.2 | Q79: =CONCATENATE("",M79,"",N79,"",O79,"",P79,"") -> 94.2
A80: =IF(ISBLANK(C80)," ",ROW(B80)-7) -> 73 | B80: A | C80: Calculate, using | D80: π = 3.14 : | E80: π | F80: × | G80: =RANDBETWEEN(1,10) -> 1 | H80: ² | L80: =CONCATENATE("",C80,"",D80,"",E80,"",F80,"",G80,"",H80,"",I80,"",J80,"") -> Calculate, using π = 3.14 : π × 1² | M80: =3.14*G80^2 -> 3.14 | Q80: =CONCATENATE("",M80,"",N80,"",O80,"",P80,"") -> 3.14
A81: =IF(ISBLANK(C81)," ",ROW(B81)-7) -> 74 | B81: A | C81: Calculate: | D81: =CHOOSE(K81,"£","£","£","$","€") -> £ | E81: =RANDBETWEEN(1500,3500) -> 2030 | F81: =RANDBETWEEN(5000,35000)/100 -> 98.92 | G81: =RANDBETWEEN(5000,35000)/100 -> 188.9 | H81: =RANDBETWEEN(50,350)+(1-(F81+G81-INT(F81+G81))) -> 147.18 | K81: =RANDBETWEEN(1,5) -> 2 | L81: =CONCATENATE("",C81,"",D81,"",E81," – (",D81,TEXT(F81,"#.00")," + ",D81,TEXT(G81,"#.00")," + ",D81,TEXT(H81,"#.00"),")",I81,"",J81,"") -> Calculate: £2030 – (£98.92 + £188.90 + £147.18) | M81: =E81-F81-G81-H81 -> 1595 | Q81: =CONCATENATE(D81,TEXT(M81,"#.00"),"",N81,"",O81,"",P81,"") -> £1595.00
A82: =IF(ISBLANK(C82)," ",ROW(B82)-7) -> 75 | B82: A | C82: Calculate: | D82: =CHOOSE(K82,"£","£","£","$","€") -> £ | E82: =RANDBETWEEN(150,350) -> 287 | F82: =RANDBETWEEN(2000,6000)/100 -> 24.77 | G82: =RANDBETWEEN(2000,6000)/100 -> 31.66 | K82: =RANDBETWEEN(1,5) -> 3 | L82: =CONCATENATE("",C82,"",D82,"",E82," – ",D82,TEXT(F82,"#.00")," – ",D82,TEXT(G82,"#.00"),,"",I82,"",J82,"") -> Calculate: £287 – £24.77 – £31.66 | M82: =E82-F82-G82-H82 -> 230.57 | Q82: =CONCATENATE(D82,TEXT(M82,"#.00"),"",N82,"",O82,"",P82,"") -> £230.57
A83: =IF(ISBLANK(C83)," ",ROW(B83)-7) -> 76 | B83: A | C83: Calculate: | D83: =CHOOSE(K83,"£","£","£","$","€") -> $ | E83: =RANDBETWEEN(15000,35000)/100 -> 190.37 | F83: =RANDBETWEEN(2,6)*10+RANDBETWEEN(1,9) -> 34 | G83: =RANDBETWEEN(2,6)*10+RANDBETWEEN(1,9) -> 37 | K83: =RANDBETWEEN(1,5) -> 4 | L83: =CONCATENATE("",C83,"",D83,"",TEXT(E83,"#.00")," – ",D83,F83," – ",D83,G83,"",I83,"",J83,"") -> Calculate: $190.37 – $34 – $37 | M83: =E83-F83-G83-H83 -> 119.37 | Q83: =CONCATENATE(D83,TEXT(M83,"#.00"),"",N83,"",O83,"",P83,"") -> $119.37
A84: =IF(ISBLANK(C84)," ",ROW(B84)-7) -> 77 | B84: A | C84: Calculate: | D84: =RANDBETWEEN(2,6)*10+RANDBETWEEN(1,9)*0.1 -> 60.6 | E84: + | F84: =RANDBETWEEN(2,7)+RANDBETWEEN(1,9)*0.1 -> 5.3 | G84: × | H84: =RANDBETWEEN(3,6) -> 4 | I84: + | J84: =RANDBETWEEN(1,8)+RANDBETWEEN(1,9)*0.1 -> 5.9 | L84: =CONCATENATE("",C84,"",D84," ",E84," ",F84," ",G84," ",H84," ",I84," ",J84,"") -> Calculate: 60.6 + 5.3 × 4 + 5.9 | M84: =D84+F84*H84+J84 -> 87.7 | Q84: =CONCATENATE("",M84,"",N84,"",O84,"",P84,"") -> 87.7
A85: =IF(ISBLANK(E85)," ",ROW(B85)-7) -> 78 | B85: A | C85: Calculate: | D85: =CHOOSE(K85,"£","£","£","$","€") -> $ | E85: =RANDBETWEEN(1010,9999)/100 -> 42.03 | F85: × | G85: =10*RANDBETWEEN(2,5) -> 50 | K85: =RANDBETWEEN(1,5) -> 4 | L85: =CONCATENATE("",C85,"",D85,"",TEXT(E85,"#.00"),"",F85,"",G85,"",H85,"",I85,"",J85,"") -> Calculate: $42.03 × 50 | M85: =E85*G85 -> 2101.5 | Q85: =CONCATENATE(D85,IF(M85=INT(M85),M85,TEXT(M85,"#.00")),"",N85,"",O85,"",P85,"") -> $2101.50
A86: =IF(ISBLANK(D86)," ",ROW(B86)-7) -> 79 | B86: A | C86: Calculate: | D86: =RANDBETWEEN(1010,9999) -> 6334 | E86: =CHOOSE(K86,"cm","m","kg","","km","mm","g"," tonnes"," miles","ml","") -> ml | F86: × | G86: =10*RANDBETWEEN(2,5) -> 30 | K86: =RANDBETWEEN(1,11) -> 10 | L86: =CONCATENATE("",C86,"",D86,"",E86,"",F86,"",G86,"",H86,"",I86,"",J86,"") -> Calculate: 6334ml × 30 | M86: =D86*G86 -> 190020 | Q86: =CONCATENATE("",M86," ",E86,N86,"",O86,"",P86,"") -> 190020 ml
A87: =IF(ISBLANK(E87)," ",ROW(B87)-7) -> 80 | B87: A | C87: Calculate: | D87: £ | E87: =RANDBETWEEN(6,9)+RANDBETWEEN(1,9)*0.1 -> 6.5 | F87: × | G87: =RANDBETWEEN(5,9) -> 8 | H87: × 1.5 | L87: =CONCATENATE("",C87,"",D87,"",TEXT(E87,"#.00"),"",F87,"",G87,"",H87,"",I87,"",J87,"") -> Calculate: £6.50 × 8 × 1.5 | M87: =E87*G87*1.5 -> 78 | Q87: =CONCATENATE(D87,IF(M87=INT(M87),M87,TEXT(M87,"#.00")),"",N87,"",O87,"",P87,"") -> £78
A88: =IF(ISBLANK(E88)," ",ROW(B88)-7) -> 81 | B88: A | C88: Calculate: | D88: =IF(K88=1,2,1)*RANDBETWEEN(1,9) -> 16 | E88: × | F88: =IF(K88=1,1,2)*RANDBETWEEN(1,9) -> 2 | G88: ÷ 2 | K88: =RANDBETWEEN(1,2) -> 1 | L88: =CONCATENATE("",C88,"",D88,"",E88,"",F88,"",G88,"",H88,"",I88,"",J88,"") -> Calculate: 16 × 2 ÷ 2 | M88: =D88*F88/2 -> 16 | Q88: =CONCATENATE("",M88,"",N88,"",O88,"",P88,"") -> 16
A89: =IF(ISBLANK(E89)," ",ROW(B89)-7) -> 82 | B89: A | C89: Calculate: | D89: =RANDBETWEEN(2,9)*10+RANDBETWEEN(1,9) -> 82 | E89: ÷ | F89: 10 | L89: =CONCATENATE("",C89,"",D89,"",E89,"",F89,"",G89,"",H89,"",I89,"",J89,"") -> Calculate: 82 ÷ 10 | M89: =D89/10 -> 8.2 | Q89: =CONCATENATE("",M89,"",N89,"",O89,"",P89,"") -> 8.2
A90: =IF(ISBLANK(E90)," ",ROW(B90)-7) -> 83 | B90: A | C90: Calculate: | D90: =RANDBETWEEN(1,9)*100+RANDBETWEEN(1,9)*10 -> 510 | E90: =CHOOSE(K90,"cm","m","kg","","km","mm","g"," tonnes"," miles","ml","") -> ml | F90: × | G90: =RANDBETWEEN(6,9) -> 8 | K90: =RANDBETWEEN(1,11) -> 10 | L90: =CONCATENATE("",C90,"",D90,"",E90,"",F90,"",G90,"",H90,"",I90,"",J90,"") -> Calculate: 510ml × 8 | M90: =D90*G90 -> 4080 | Q90: =CONCATENATE("",M90," ",E90,N90,"",O90,"",P90,"") -> 4080 ml
A91: =IF(ISBLANK(E91)," ",ROW(B91)-7) -> 84 | B91: A | C91: Calculate: | D91: =CHOOSE(K91,"£","£","£","$","€") -> € | E91: =RANDBETWEEN(6,9)*G91 -> 400 | F91: ÷ | G91: =10*RANDBETWEEN(2,5) -> 50 | K91: =RANDBETWEEN(1,5) -> 5 | L91: =CONCATENATE("",C91,"",D91,"",E91,"",F91,"",G91,"",H91,"",I91,"",J91,"") -> Calculate: €400 ÷ 50 | M91: =E91/G91 -> 8 | Q91: =CONCATENATE(D91,IF(M91=INT(M91),M91,TEXT(M91,"#.00")),"",N91,"",O91,"",P91,"") -> €8
A92: =IF(ISBLANK(D92)," ",ROW(B92)-7) -> 85 | B92: A | C92: Calculate: | D92: =RANDBETWEEN(50,99)*G92 -> 2580 | E92: =CHOOSE(K92,"cm","m","kg","","km","mm","g"," tonnes"," miles","ml","") -> miles | F92: ÷ | G92: =10*RANDBETWEEN(2,5) -> 30 | K92: =RANDBETWEEN(1,11) -> 9 | L92: =CONCATENATE("",C92,"",D92,"",E92,"",F92,"",G92,"",H92,"",I92,"",J92,"") -> Calculate: 2580 miles ÷ 30 | M92: =D92/G92 -> 86 | Q92: =CONCATENATE("",M92," ",E92,N92,"",O92,"",P92,"") -> 86 miles
A93: =IF(ISBLANK(D93)," ",ROW(B93)-7) -> 86 | B93: A | C93: Calculate: | D93: =RANDBETWEEN(1,3)*10+RANDBETWEEN(1,9) -> 29 | E93: × | F93: =RANDBETWEEN(1,9)*10+RANDBETWEEN(1,9) -> 94 | L93: =CONCATENATE("",C93,"",D93,"",E93,"",F93,"",G93,"",H93,"",I93,"",J93,"") -> Calculate: 29 × 94 | M93: =D93*F93 -> 2726 | Q93: =CONCATENATE("",M93,"",N93,"",O93,"",P93,"") -> 2726
A94: =IF(ISBLANK(D94)," ",ROW(B94)-7) -> 87 | B94: A | C94: Calculate: | D94: £ | E94: =RANDBETWEEN(1001,9999) -> 3735 | F94: × | G94: =RANDBETWEEN(6,9) -> 9 | L94: =CONCATENATE("",C94,"",D94,"",E94,"",F94,"",G94,"",H94,"",I94,"",J94,"") -> Calculate: £3735 × 9 | M94: £ | N94: =E94*G94 -> 33615 | Q94: =CONCATENATE("",M94,"",N94,"",O94,"",P94,"") -> £33615
A95: =IF(ISBLANK(C95)," ",ROW(B95)-7) -> 88 | B95: A | C95: Calculate: | D95: =RANDBETWEEN(11,19) -> 17 | E95: × | F95: =RANDBETWEEN(4,9) -> 7 | G95: × | H95: =RANDBETWEEN(4,9) -> 4 | L95: =CONCATENATE("",C95,"",D95,"",E95,"",F95,"",G95,"",H95,"",I95,"",J95,"") -> Calculate: 17 × 7 × 4 | M95: =D95*F95*H95 -> 476 | Q95: =CONCATENATE("",M95,"",N95,"",O95,"",P95,"") -> 476
A96: =IF(ISBLANK(D96)," ",ROW(B96)-7) -> 89 | B96: A | C96: Calculate: | D96: =RANDBETWEEN(2,9)*10 -> 80 | E96: + | F96: =RANDBETWEEN(12,15) -> 13 | G96: × | H96: =RANDBETWEEN(12,19) -> 19 | L96: =CONCATENATE("",C96,"",D96,"",E96,"",F96,"",G96,"",H96,"",I96,"",J96,"") -> Calculate: 80 + 13 × 19 | M96: =D96+F96*H96 -> 327 | Q96: =CONCATENATE("",M96,"",N96,"",O96,"",P96,"") -> 327
A97: =IF(ISBLANK(C97)," ",ROW(B97)-7) -> 90 | B97: A | C97: Calculate: | D97: =RANDBETWEEN(20,99) -> 35 | E97: =RANDBETWEEN(3,9) -> 5 | F97: =RANDBETWEEN(20,99) -> 63 | G97: =RANDBETWEEN(3,9) -> 7 | H97: =RANDBETWEEN(20,99) -> 97 | I97: =RANDBETWEEN(3,9) -> 9 | J97: =CHOOSE(K97,"£","£","£","$","€") -> $ | K97: =RANDBETWEEN(1,5) -> 4 | L97: =CONCATENATE("",C97,"",J97,D97," × ",E97," + ",J97,F97," × ",G97," + ",J97,H97," × ",I97) -> Calculate: $35 × 5 + $63 × 7 + $97 × 9 | M97: =D97*E97+F97*G97+H97*I97 -> 1489 | Q97: =CONCATENATE(J97,M97,"",N97,"",O97,"",P97,"") -> $1489
A98: =IF(ISBLANK(C98)," ",ROW(B98)-7) -> 91 | B98: A | C98: Calculate: | D98: =CHOOSE(K98,"£","£","£","$","€") -> € | E98: =J98*RANDBETWEEN(1001,9999)/100 -> 743.44 | F98: ÷ | G98: =J98 -> 8 | J98: =RANDBETWEEN(6,9) -> 8 | K98: =RANDBETWEEN(1,5) -> 5 | L98: =CONCATENATE("",C98,"",D98,"",TEXT(E98,"#.00"),"",F98,"",G98,"",H98,"",I98,"") -> Calculate: €743.44 ÷ 8 | M98: =E98/G98 -> 92.93 | Q98: =CONCATENATE(D98,TEXT(M98,"#.00"),"",N98,"",O98,"",P98,"") -> €92.93
A99: =IF(ISBLANK(C99)," ",ROW(B99)-7) -> 92 | B99: A | C99: Express the fraction in its simplest form: | D99: =RANDBETWEEN(1,F99-1) -> 4 | E99: / | F99: =RANDBETWEEN(3,10) -> 6 | K99: =CHOOSE(RANDBETWEEN(1,4),4,20,10,6) -> 4 | L99: =CONCATENATE("",C99,"",D99*K99,"",E99,"",F99*K99,"",G99,"",H99,"",I99,"",J99,"") -> Express the fraction in its simplest form: 16/24 | M99: =D99/GCD(D99,F99) -> 2 | N99: / | O99: =F99/GCD(D99,F99) -> 3 | Q99: =CONCATENATE("",M99,"",N99,"",O99,"",P99,"") -> 2/3
A100: =IF(ISBLANK(C100)," ",ROW(B100)-7) -> 93 | B100: A | C100: Express the fraction in its simplest form: | D100: =RANDBETWEEN(1,F100-1) -> 6 | E100: / | F100: =RANDBETWEEN(3,10) -> 7 | K100: =CHOOSE(RANDBETWEEN(1,4),8,10,100,6) -> 8 | L100: =CONCATENATE("",C100,"",D100*K100,"",E100,"",F100*K100,"",G100,"",H100,"",I100,"",J100,"") -> Express the fraction in its simplest form: 48/56 | M100: =D100/GCD(D100,F100) -> 6 | N100: / | O100: =F100/GCD(D100,F100) -> 7 | Q100: =CONCATENATE("",M100,"",N100,"",O100,"",P100,"") -> 6/7
A101: =IF(ISBLANK(C101)," ",ROW(B101)-7) -> 94 | B101: A | C101: Express the ratio in its simplest form: | D101: =RANDBETWEEN(2,10) -> 8 | E101: : | F101: =RANDBETWEEN(5,10) -> 5 | G101: : | H101: =RANDBETWEEN(1,8) -> 8 | K101: =CHOOSE(RANDBETWEEN(1,4),4,20,10,6) -> 20 | L101: =CONCATENATE("",C101,"",D101*K101,"",E101,"",F101*K101,"",G101,"",H101*K101,"",I101,"",J101,"") -> Express the ratio in its simplest form: 160 : 100 : 160 | M101: =D101/GCD(D101,F101,H101) -> 8 | N101: =F101/GCD(D101,F101,H101) -> 5 | O101: =H101/GCD(D101,F101,H101) -> 8 | Q101: =CONCATENATE("",M101," : ",N101," : ",O101,"",P101,"") -> 8 : 5 : 8
A102: =IF(ISBLANK(D102)," ",ROW(B102)-7) -> 95 | B102: A | C102: Round | D102: =RANDBETWEEN(1,99)+RANDBETWEEN(0,9)/10+RANDBETWEEN(0,9)/100+RANDBETWEEN(IF(K102=2,1,5),9)/1000 -> 79.868 | E102: to 2 decimal places | K102: =IF(RAND()<0.8,1,2) -> 1 | L102: =CONCATENATE("",C102,"",D102,"",E102,"",F102,"",G102,"",H102,"",I102,"",J102,"") -> Round 79.868 to 2 decimal places | M102: =TEXT(MROUND(D102,0.01),"#.00") -> 79.87 | Q102: =CONCATENATE("",M102,"",N102,"",O102,"",P102,"") -> 79.87
A103: =IF(ISBLANK(D103)," ",ROW(B103)-7) -> 96 | B103: A | C103: Round | D103: =(RANDBETWEEN(1,8)+10*RANDBETWEEN(1,8)+100*RANDBETWEEN(1,8))*10^K103 -> 363000 | E103: to | F103: =RANDBETWEEN(1,2) -> 2 | G103: significant figure | H103: =IF(F103=1,"","s") -> s | K103: =RANDBETWEEN(1,3) -> 3 | L103: =CONCATENATE("",C103,"",TEXT(D103,"### ### ###"),"",E103,"",F103,"",G103,"",H103,"",I103,"",J103,"") -> Round 363 000 to 2 significant figures | M103: =IF(F103=1,CHOOSE(K103,MROUND(D103,1000),MROUND(D103,10000),MROUND(D103,100000)),IF(F103=2,CHOOSE(K103,MROUND(D103,100),MROUND(D103,1000),MROUND(D103,10000)),CHOOSE(K103,MROUND(D103,10),MROUND(D103,100),MROUND(D103,1000)))) -> 360000 | Q103: =CONCATENATE("",TEXT(M103,"### ###"),"",N103,"",O103,"",P103,"") -> 360 000
A104: =IF(ISBLANK(C104)," ",ROW(B104)-7) -> 97 | B104: A | C104: State the minimum and maximum values of | D104: =CHOOSE(K104,"£","£","$","€","","","","","","","") -> £ | E104: =10^RANDBETWEEN(2,3)*RANDBETWEEN(1,99) -> 9000 | F104: =CHOOSE(K104,"","","","","km","m","kg"," litres"," miles","","") ->  | G104: ± | H104: =D104 -> £ | I104: =RANDBETWEEN(50,0.5*E104) -> 1642 | J104: =F104 ->  | K104: =RANDBETWEEN(1,11) -> 1 | L104: =CONCATENATE("",C104,"",D104,"",E104,"",F104,"",G104,"",H104,"",I104,"",J104,"") -> State the minimum and maximum values of £9000 ± £1642 | M104: Min: | N104: =E104-I104 -> 7358 | O104: , Max: | P104: =E104+I104 -> 10642 | Q104: =CONCATENATE("",M104,D104,N104,F104,O104,D104,P104,F104) -> Min: £7358, Max: £10642
A105: =IF(ISBLANK(C105)," ",ROW(B105)-7) -> 98 | B105: A | C105: State which fraction is | D105: =IF(K105=1,"smaller: ","larger: ") -> smaller: | E105: =RANDBETWEEN(1,4) -> 2 | F105: =IF(J105=1,RANDBETWEEN(5,20),RANDBETWEEN(H105+1,30)) -> 13 | G105: =E105 -> 2 | H105: =IF(J105=2,RANDBETWEEN(5,20),RANDBETWEEN(F105+1,30)) -> 7 | J105: =RANDBETWEEN(1,2) -> 2 | K105: =RANDBETWEEN(1,2) -> 1 | L105: =CONCATENATE("",C105,"",D105,E105,"/",F105," or ",G105,"/",H105) -> State which fraction is smaller: 2/13 or 2/7 | M105: =IF($K105=2,IF($E105/$F105>$G105/$H105,$E105,$G105),IF($E105/$F105<$G105/$H105,$E105,$G105)) -> 2 | N105: / | O105: =IF($K105=2,IF($E105/$F105>$G105/$H105,$F105,$H105),IF($E105/$F105<$G105/$H105,$F105,$H105)) -> 13 | Q105: =CONCATENATE("",M105,"",N105,"",O105,"",P105,"") -> 2/13
A106: =IF(ISBLANK(C106)," ",ROW(B106)-7) -> 99 | B106: A | C106: State which fraction is | D106: =IF(K106=1,"smaller: ","larger: ") -> larger: | E106: =IF(J106=1,RANDBETWEEN(5,20),RANDBETWEEN(G106+1,29)) -> 20 | F106: =RANDBETWEEN(30,50) -> 39 | G106: =IF(J106=2,RANDBETWEEN(5,20),RANDBETWEEN(E106+1,29)) -> 8 | H106: =F106 -> 39 | J106: =RANDBETWEEN(1,2) -> 2 | K106: =RANDBETWEEN(1,2) -> 2 | L106: =CONCATENATE("",C106,"",D106,E106,"/",F106," or ",G106,"/",H106) -> State which fraction is larger: 20/39 or 8/39 | M106: =IF($K106=2,IF($E106/$F106>$G106/$H106,$E106,$G106),IF($E106/$F106<$G106/$H106,$E106,$G106)) -> 20 | N106: / | O106: =IF($K106=2,IF($E106/$F106>$G106/$H106,$F106,$H106),IF($E106/$F106<$G106/$H106,$F106,$H106)) -> 39 | Q106: =CONCATENATE("",M106,"",N106,"",O106,"",P106,"") -> 20/39
A107: =IF(ISBLANK(D107)," ",ROW(B107)-7) -> 100 | B107: A | C107: What is the square root of | D107: =CHOOSE(K107,3,4,5,6,10)^2 -> 16 | E107: ? | K107: =RANDBETWEEN(1,5) -> 2 | L107: =CONCATENATE("",C107,"",D107,"",E107,"",F107,"",G107,"",H107,"",I107,"",J107,"") -> What is the square root of 16? | M107: =SQRT(D107) -> 4 | Q107: =CONCATENATE("",M107,"",N107,"",O107,"",P107,"") -> 4
A108: =IF(ISBLANK(D108)," ",ROW(B108)-7) -> 101 | B108: A | C108: What temperature is | D108: =RANDBETWEEN(20,40) -> 30 | E108: °C higher than – | F108: =RANDBETWEEN(10,50) -> 19 | G108: °C ? | L108: =CONCATENATE("",C108,"",D108,"",E108,"",F108,"",G108,"",H108,"",I108,"",J108,"") -> What temperature is 30°C higher than –19°C ? | M108: =-1*F108+D108 -> 11 | N108: °C | Q108: =CONCATENATE("",M108,"",N108,"",O108,"",P108,"") -> 11°C
A109: =IF(ISBLANK(D109)," ",ROW(B109)-7) -> 102 | B109: A | C109: What temperature is | D109: =RANDBETWEEN(20,40) -> 40 | E109: °C lower than | F109: =RANDBETWEEN(10,50) -> 22 | G109: °C ? | L109: =CONCATENATE("",C109,"",D109,"",E109,"",F109,"",G109,"",H109,"",I109,"",J109,"") -> What temperature is 40°C lower than 22°C ? | M109: =F109-D109 -> -18 | N109: °C | Q109: =CONCATENATE("",M109,"",N109,"",O109,"",P109,"") -> -18°C
A110: =IF(ISBLANK(D110)," ",ROW(B110)-7) -> 103 | B110: A | C110: What time is | D110: =RANDBETWEEN(1,5) -> 5 | E110: =5*RANDBETWEEN(5,11) -> 25 | F110: =IF(K110<3,IF(RAND()<0.4,"before ","earlier than "),IF(RAND()<0.4,"after ","later than ")) -> earlier than | G110: =IF(ISODD(K110),J110,IF(J110=12,12,MOD(J110,12))) -> 9 | H110: =RANDBETWEEN(1,11)*5 -> 10 | I110: =IF(ISODD(K110),"",IF(J110>12,"pm","am")) -> am | J110: =RANDBETWEEN(1,23) -> 9 | K110: =RANDBETWEEN(1,4) -> 2 | L110: =CONCATENATE("",C110,"",D110," hour",IF(D110=1," ","s "),E110," minutes ",F110,"",IF(ISODD(K110),TEXT(G110,"00"),G110),":",TEXT(H110,"00"),"",I110,"?") -> What time is 5 hours 25 minutes earlier than 9:10am? | M110: =IF(K110<3,TIME(J110,H110,0)-TIME(D110,E110,0)+24,TIME(J110,H110,0)+TIME(D110,E110,0)) -> 24.15625 | Q110: =CONCATENATE("",IF(ISODD(K110),TEXT(M110,"hh:mm"),TEXT(M110,"h:mm AM/PM")),"",N110,"",O110,"",P110,"") -> 3:45 AM
A111: =IF(ISBLANK(D111)," ",ROW(B111)-7) -> 104 | B111: A | C111: What time is | D111: =RANDBETWEEN(1,5) -> 2 | E111: =5*RANDBETWEEN(5,11) -> 40 | F111: =IF(K111<3,IF(RAND()<0.4,"before ","earlier than "),IF(RAND()<0.4,"after ","later than ")) -> after | G111: =IF(ISODD(K111),J111,IF(J111=12,12,MOD(J111,12))) -> 1 | H111: =RANDBETWEEN(1,11)*5 -> 45 | I111: =IF(ISODD(K111),"",IF(J111>12,"pm","am")) -> pm | J111: =RANDBETWEEN(1,23) -> 13 | K111: =RANDBETWEEN(1,4) -> 4 | L111: =CONCATENATE("",C111,"",D111," hour",IF(D111=1," ","s "),E111," minutes ",F111,"",IF(ISODD(K111),TEXT(G111,"00"),G111),":",TEXT(H111,"00"),"",I111,"?") -> What time is 2 hours 40 minutes after 1:45pm? | M111: =IF(K111<3,TIME(J111,H111,0)-TIME(D111,E111,0)+24,TIME(J111,H111,0)+TIME(D111,E111,0)) -> 0.6840277778 | Q111: =CONCATENATE("",IF(ISODD(K111),TEXT(M111,"hh:mm"),TEXT(M111,"h:mm AM/PM")),"",N111,"",O111,"",P111,"") -> 4:25 PM
A112: =IF(ISBLANK(D112)," ",ROW(B112)-7) -> 105 | B112: A | C112: Express (a) | D112: =IF(K112=1,100,1)*RANDBETWEEN(2,25) -> 2400 | E112: =IF(K112=1," centimetres and "," metres and ") -> centimetres and | F112: =IF(K112=1,100,1)*RANDBETWEEN(2,25) -> 300 | G112: =IF(K112=1," centimetres in metres"," metres in centimetres") -> centimetres in metres | K112: =RANDBETWEEN(1,2) -> 1 | L112: =CONCATENATE("",C112,"",D112,"",E112," (b) ",F112,"",G112,"",H112,"",I112,"",J112,"") -> Express (a) 2400 centimetres and (b) 300 centimetres in metres | M112: =IF(K112=1,D112/100,D112*100) -> 24 | N112: =IF(K112=1," metres and "," cm and ") -> metres and | O112: =IF(K112=1,F112/100,F112*100) -> 3 | P112: =IF(K112=1," metres"," cm") -> metres | Q112: =CONCATENATE("",M112,"",N112,"",O112,"",P112,"") -> 24 metres and 3 metres
A113: =IF(ISBLANK(D113)," ",ROW(B113)-7) -> 106 | B113: A | C113: Express (a) | D113: =IF(K113=1,1000,1)*RANDBETWEEN(2,25) -> 11000 | E113: =IF(K113=1," grams and "," kilograms and ") -> grams and | F113: =IF(K113=1,1000,1)*RANDBETWEEN(2,25) -> 17000 | G113: =IF(K113=1," grams in kilograms"," kilograms in grams") -> grams in kilograms | K113: =RANDBETWEEN(1,2) -> 1 | L113: =CONCATENATE("",C113,"",D113,"",E113," (b) ",F113,"",G113,"",H113,"",I113,"",J113,"") -> Express (a) 11000 grams and (b) 17000 grams in kilograms | M113: =IF(K113=1,D113/1000,D113*1000) -> 11 | N113: =IF(K113=1," kg and "," grams and ") -> kg and | O113: =IF(K113=1,F113/1000,F113*1000) -> 17 | P113: =IF(K113=1," kg"," grams") -> kg | Q113: =CONCATENATE("",M113,"",N113,"",O113,"",P113,"") -> 11 kg and 17 kg
A114: =IF(ISBLANK(D114)," ",ROW(B114)-7) -> 107 | B114: A | C114: Express (a) | D114: =IF(K114=1,1000,1)*RANDBETWEEN(2,25) -> 11 | E114: =IF(K114=1," metres and "," kilometres and ") -> kilometres and | F114: =IF(K114=1,1000,1)*RANDBETWEEN(2,25) -> 13 | G114: =IF(K114=1," metres in kilometres"," kilometres in metres") -> kilometres in metres | K114: =RANDBETWEEN(1,2) -> 2 | L114: =CONCATENATE("",C114,"",D114,"",E114," (b) ",F114,"",G114,"",H114,"",I114,"",J114,"") -> Express (a) 11 kilometres and (b) 13 kilometres in metres | M114: =IF(K114=1,D114/1000,D114*1000) -> 11000 | N114: =IF(K114=1," km and "," metres and ") -> metres and | O114: =IF(K114=1,F114/1000,F114*1000) -> 13000 | P114: =IF(K114=1," km"," metres") -> metres | Q114: =CONCATENATE("",M114,"",N114,"",O114,"",P114,"") -> 11000 metres and 13000 metres
A115: =IF(ISBLANK(D115)," ",ROW(B115)-7) -> 108 | B115: A | C115: Express (a) | D115: =IF(K115=1,1000,1)*RANDBETWEEN(2,25) -> 21 | E115: =IF(K115=1," millilitres and "," litres and ") -> litres and | F115: =IF(K115=1,1000,1)*RANDBETWEEN(2,25) -> 14 | G115: =IF(K115=1," millilitres in litres"," litres in millilitres") -> litres in millilitres | K115: =RANDBETWEEN(1,2) -> 2 | L115: =CONCATENATE("",C115,"",D115,"",E115," (b) ",F115,"",G115,"",H115,"",I115,"",J115,"") -> Express (a) 21 litres and (b) 14 litres in millilitres | M115: =IF(K115=1,D115/1000,D115*1000) -> 21000 | N115: =IF(K115=1," litres and "," ml and ") -> ml and | O115: =IF(K115=1,F115/1000,F115*1000) -> 14000 | P115: =IF(K115=1," litres"," ml") -> ml | Q115: =CONCATENATE("",M115,"",N115,"",O115,"",P115,"") -> 21000 ml and 14000 ml
A116: =IF(ISBLANK(D116)," ",ROW(B116)-7) -> 109 | B116: A | C116: Express (a) | D116: =IF(K116=1,10,1)*RANDBETWEEN(15,95) -> 72 | E116: =IF(K116=1," millimetres and "," centimetres and ") -> centimetres and | F116: =IF(K116=1,10,1)*RANDBETWEEN(15,95) -> 79 | G116: =IF(K116=1," millimetres in centimetres"," centimetres in millimetres") -> centimetres in millimetres | K116: =RANDBETWEEN(1,2) -> 2 | L116: =CONCATENATE("",C116,"",D116,"",E116," (b) ",F116,"",G116,"",H116,"",I116,"",J116,"") -> Express (a) 72 centimetres and (b) 79 centimetres in millimetres | M116: =IF(K116=1,D116/10,D116*10) -> 720 | N116: =IF(K116=1," cm and "," mm and ") -> mm and | O116: =IF(K116=1,F116/10,F116*10) -> 790 | P116: =IF(K116=1," cm"," mm") -> mm | Q116: =CONCATENATE("",M116,"",N116,"",O116,"",P116,"") -> 720 mm and 790 mm
A117: =IF(ISBLANK(D117)," ",ROW(B117)-7) -> 110 | B117: A | C117: Express | D117: =RANDBETWEEN(0,9)+CHOOSE(RANDBETWEEN(1,3),0.25,0.75,0.5) -> 5.75 | E117: hours in hours and minutes | L117: =CONCATENATE("",C117,"",D117,"",E117,"",F117,"",G117,"",H117,"",I117,"",J117,"") -> Express 5.75 hours in hours and minutes | M117: =INT(D117) -> 5 | N117: =CONCATENATE(" hour",IF(M117=1," ","s ")) -> hours | O117: =(D117-INT(D117))*60 -> 45 | P117: minutes | Q117: =CONCATENATE("",M117,"",N117,"",O117,"",P117,"") -> 5 hours 45 minutes
A118: =IF(ISBLANK(D118)," ",ROW(B118)-7) -> 111 | B118: A | C118: Express | D118: =RANDBETWEEN(2,9) -> 4 | E118: hours | F118: =15*RANDBETWEEN(1,3) -> 15 | G118: minutes in hours (using a decimal point) | L118: =CONCATENATE("",C118,"",D118,"",E118,"",F118,"",G118,"",H118,"",I118,"",J118,"") -> Express 4 hours 15 minutes in hours (using a decimal point) | M118: =D118+F118/60 -> 4.25 | N118: =CONCATENATE(" hour",IF(M118=1," ","s ")) -> hours | Q118: =CONCATENATE("",M118,"",N118,"",O118,"",P118,"") -> 4.25 hours
A119: =IF(ISBLANK(D119)," ",ROW(B119)-7) -> 112 | B119: A | C119: Express | D119: =RANDBETWEEN(0,9)+CHOOSE(RANDBETWEEN(1,3),0.25,0.75,0.5) -> 5.75 | E119: minutes in minutes and seconds | L119: =CONCATENATE("",C119,"",D119,"",E119,"",F119,"",G119,"",H119,"",I119,"",J119,"") -> Express 5.75 minutes in minutes and seconds | M119: =INT(D119) -> 5 | N119: =CONCATENATE(" minute",IF(M119=1," ","s ")) -> minutes | O119: =(D119-INT(D119))*60 -> 45 | P119: seconds | Q119: =CONCATENATE("",M119,"",N119,"",O119,"",P119,"") -> 5 minutes 45 seconds
A120: =IF(ISBLANK(D120)," ",ROW(B120)-7) -> 113 | B120: A | C120: Express | D120: =RANDBETWEEN(2,9) -> 4 | E120: minutes | F120: =15*RANDBETWEEN(1,3) -> 45 | G120: seconds in minutes (using a decimal point) | L120: =CONCATENATE("",C120,"",D120," ",E120," ",F120," ",G120,"",H120,"",I120,"",J120,"") -> Express 4 minutes 45 seconds in minutes (using a decimal point) | M120: =D120+F120/60 -> 4.75 | N120: =CONCATENATE(" minute",IF(M120=1," ","s ")) -> minutes | Q120: =CONCATENATE("",M120,"",N120,"",O120,"",P120,"") -> 4.75 minutes
A121: =IF(ISBLANK(D121)," ",ROW(B121)-7) -> 114 | B121: A | C121: Express | D121: =RANDBETWEEN(2,9) -> 7 | E121: out of 10 as a percentage | L121: =CONCATENATE("",C121,"",D121,"",E121,"",F121,"",G121,"",H121,"",I121,"",J121,"") -> Express 7 out of 10 as a percentage | M121: =D121*10 -> 70 | N121: % | Q121: =CONCATENATE("",M121,"",N121,"",O121,"",P121,"") -> 70%
A122: =IF(ISBLANK(C122)," ",ROW(B122)-7) -> 115 | B122: B | C122: A shop offers a discount of | D122: 1 | E122: / | F122: =RANDBETWEEN(5,9) -> 7 | G122: on a price of | H122: =CHOOSE(K122,"£","£","$","€","","","","","","","") -> $ | I122: =TEXT(F122*RANDBETWEEN(501,999)/100,"#.00") -> 62.65 | J122: . What is the new price? | K122: =RANDBETWEEN(1,4) -> 3 | L122: =CONCATENATE("",C122,"",D122,"",E122,"",F122,"",G122,"",H122,"",I122,"",J122,"") -> A shop offers a discount of 1/7 on a price of $62.65. What is the new price? | M122: =H122 -> $ | N122: =TEXT(I122/F122*(F122-1),"#.00") -> 53.70 | Q122: =CONCATENATE("",M122,"",N122,"",O122,"",P122,"") -> $53.70
A123: =IF(ISBLANK(C123)," ",ROW(B123)-7) -> 116 | B123: B | C123: Add the fractions: | D123: =CHOOSE(F123,1,1,2,3,RANDBETWEEN(2,4),5,RANDBETWEEN(1,6),2*RANDBETWEEN(1,3)+1,2*RANDBETWEEN(1,2)) -> 5 | E123: / | F123: =CHOOSE(K123,5,5,5,4,3,6,6,8,9) -> 6 | G123: + | H123: =CHOOSE(J123,1,1,2,3,RANDBETWEEN(2,4),5,RANDBETWEEN(1,6),2*RANDBETWEEN(1,3)+1,2*RANDBETWEEN(1,2)) -> 6 | I123: / | J123: =CHOOSE(K123,3,7,8,7,8,5,7,9,4) -> 7 | K123: =RANDBETWEEN(1,9) -> 7 | L123: =CONCATENATE("",C123,"",D123,"",E123,"",F123,"",G123,"",H123,"",I123,"",J123,". Express your answer as a fraction in its simplest form.") -> Add the fractions: 5/6 + 6/7. Express your answer as a fraction in its simplest form. | M123: =R123/GCD(R123,S123) -> 71 | N123: / | O123: =S123/GCD(R123,S123) -> 42 | Q123: =CONCATENATE("",M123,"",N123,"",O123,"",IF(M123/O123>1,CONCATENATE(" or ",INT(M123/O123)," ",MOD(M123,O123),"/",O123),"")) -> 71/42 or 1 29/42 | R123: =D123*J123+F123*H123 -> 71 | S123: =F123*J123 -> 42
A124: =IF(ISBLANK(C124)," ",ROW(B124)-7) -> 117 | B124: B | C124: Calculate | D124: =RANDBETWEEN(2,4)*20 -> 80 | E124: % of | F124: =CHOOSE(K124,"£","£","$","€","","","","","","","") ->  | G124: =10^RANDBETWEEN(1,2)*RANDBETWEEN(2,9)+5 -> 305 | H124: =CHOOSE(K124,"","","","","km","m","kg"," litres"," miles","","") ->  | K124: =RANDBETWEEN(1,11) -> 11 | L124: =CONCATENATE("",C124,"",D124,"",E124,"",F124,"",G124,"",H124,"",I124,"",J124,"") -> Calculate 80% of 305 | M124: =F124 ->  | N124: =G124/100*D124 -> 244 | O124: =H124 ->  | Q124: =CONCATENATE("",M124,"",N124,"",O124,"",P124,"") -> 244
A125: =IF(ISBLANK(C125)," ",ROW(B125)-7) -> 118 | B125: B | C125: Calculate | D125: =2.5*CHOOSE(RANDBETWEEN(1,2),1,3) -> 7.5 | E125: % of | F125: =CHOOSE(K125,"£","£","$","€","","","","","","","") -> $ | G125: =10^RANDBETWEEN(2,3)*(10*RANDBETWEEN(2,9)+RANDBETWEEN(1,4)*2) -> 5600 | H125: =CHOOSE(K125,"","","","","km","m","kg"," litres"," miles","","") ->  | K125: =RANDBETWEEN(1,11) -> 3 | L125: =CONCATENATE("",C125,"",D125,"",E125,"",F125,"",G125,"",H125,"",I125,"",J125,"") -> Calculate 7.5% of $5600 | M125: =F125 -> $ | N125: =G125/100*D125 -> 420 | O125: =H125 ->  | Q125: =CONCATENATE("",M125,"",N125,"",O125,"",P125,"") -> $420
A126: =IF(ISBLANK(C126)," ",ROW(B126)-7) -> 119 | B126: B | C126: Calculate | D126: =RANDBETWEEN(2,4)*20 -> 60 | E126: % of | F126: £ | G126: =10*RANDBETWEEN(3,9)+RANDBETWEEN(0,9)+RANDBETWEEN(1,4)*0.2 -> 38.4 | H126: 0 | K126: =RANDBETWEEN(1,11) -> 8 | L126: =CONCATENATE("",C126,"",D126,"",E126,"",F126,"",G126,"",H126,"",I126,"",J126,"") -> Calculate 60% of £38.40 | M126: £ | N126: =G126/100*D126 -> 23.04 | Q126: =CONCATENATE("",M126,"",N126,"",O126,"",P126,"") -> £23.04
A127: =IF(ISBLANK(D127)," ",ROW(B127)-7) -> 120 | B127: B | C127: Calculate | D127: =RANDBETWEEN(1,9)+0.5 -> 2.5 | E127: % of | F127: =CHOOSE(K127,"£","£","$","€","","","","","","","") ->  | G127: =RANDBETWEEN(2,9)*10^RANDBETWEEN(2,3) -> 3000 | H127: =CHOOSE(K127,"","","","","km","mm","g"," tonnes"," miles","ml","") ->  | K127: =RANDBETWEEN(1,11) -> 11 | L127: =CONCATENATE("",C127,"",D127,"",E127,"",F127,"",G127,"",H127,"",I127,"",J127,"") -> Calculate 2.5% of 3000 | M127: =F127 ->  | N127: =G127/100*D127 -> 75 | O127: =H127 ->  | Q127: =CONCATENATE("",M127,"",N127,"",O127,"",P127,"") -> 75
A128: =IF(ISBLANK(D128)," ",ROW(B128)-7) -> 121 | B128: B | C128: Calculate | D128: 15 | E128: % of | F128: =CHOOSE(K128,"£","£","$","€","","","","","","","") -> £ | G128: =10*RANDBETWEEN(11,99) -> 880 | H128: =CHOOSE(K128,"","","","","km","mm","g"," tonnes"," miles","ml","") ->  | K128: =RANDBETWEEN(1,11) -> 1 | L128: =CONCATENATE("",C128,"",D128,"",E128,"",F128,"",G128,"",H128,"",I128,"",J128,"") -> Calculate 15% of £880 | M128: =F128 -> £ | N128: =G128/100*D128 -> 132 | O128: =H128 ->  | Q128: =CONCATENATE("",M128,"",N128,"",O128,"",P128,"") -> £132
A129: =IF(ISBLANK(D129)," ",ROW(B129)-7) -> 122 | B129: B | C129: Calculate | D129: =CHOOSE(K129,6,7,8,9,11,12,13,14,15) -> 14 | E129: ² | K129: =RANDBETWEEN(1,9) -> 8 | L129: =CONCATENATE("",C129,"",D129,"",E129,"",F129,"",G129,"",H129,"",I129,"",J129,"") -> Calculate 14² | M129: =D129^2 -> 196 | Q129: =CONCATENATE("",M129,"",N129,"",O129,"",P129,"") -> 196
A130: =IF(ISBLANK(D130)," ",ROW(B130)-7) -> 123 | B130: B | C130: Calculate | D130: =RANDBETWEEN(2,9)*10^RANDBETWEEN(1,2) -> 200 | E130: ² | K130: =RANDBETWEEN(1,9) -> 8 | L130: =CONCATENATE("",C130,"",D130,"",E130,"",F130,"",G130,"",H130,"",I130,"",J130,"") -> Calculate 200² | M130: =D130^2 -> 40000 | Q130: =CONCATENATE("",M130,"",N130,"",O130,"",P130,"") -> 40000
A131: =IF(ISBLANK(C131)," ",ROW(B131)-7) -> 124 | B131: B | C131: Calculate the fraction: | D131: =IF(F131=5,RANDBETWEEN(2,4),IF(F131=7,RANDBETWEEN(2,6),IF(F131=6,5,IF(F131=8,RANDBETWEEN(1,3)*2+1,CHOOSE(INT(RAND()*5+1),2,4,5,7,8))))) -> 2 | E131: / | F131: =RANDBETWEEN(5,9) -> 9 | G131: of | H131: =CHOOSE(K131,"£","£","$","€","","","","","","","") -> $ | I131: =F131*RANDBETWEEN(501,999) -> 7749 | J131: =CHOOSE(K131,"","","","","km","mm","g"," tonnes"," miles"," litres","") ->  | K131: =RANDBETWEEN(1,11) -> 3 | L131: =CONCATENATE("",C131,"",D131,"",E131,"",F131,"",G131,"",H131,"",I131,"",J131,"") -> Calculate the fraction: 2/9 of $7749 | M131: =I131/F131*D131 -> 1722 | Q131: =CONCATENATE("",M131,"",N131,"",O131,"",P131,"") -> 1722
A132: =IF(ISBLANK(C132)," ",ROW(B132)-7) -> 125 | B132: B | C132: Calculate the fraction: | D132: =IF(F132=5,RANDBETWEEN(2,4),IF(F132=7,RANDBETWEEN(2,6),IF(F132=6,5,IF(F132=8,RANDBETWEEN(1,3)*2+1,CHOOSE(INT(RAND()*5+1),2,4,5,7,8))))) -> 6 | E132: / | F132: =RANDBETWEEN(5,9) -> 7 | G132: of | H132: =CHOOSE(K132,"£","£","$","€","","","","","","","") -> $ | I132: =TEXT(F132*RANDBETWEEN(501,999)/100,"#.00") -> 65.52 | K132: =RANDBETWEEN(1,4) -> 3 | L132: =CONCATENATE("",C132,"",D132,"",E132,"",F132,"",G132,"",H132,"",I132,"",J132,"") -> Calculate the fraction: 6/7 of $65.52 | M132: =H132 -> $ | N132: =TEXT(I132/F132*D132,"#.00") -> 56.16 | Q132: =CONCATENATE("",M132,"",N132,"",O132,"",P132,"") -> $56.16
A133: =IF(ISBLANK(C133)," ",ROW(B133)-7) -> 126 | B133: B | C133: Calculate the mean: | D133: =RANDBETWEEN(1001,9999) -> 9018 | E133: =RANDBETWEEN(1001,9999) -> 6872 | F133: =RANDBETWEEN(1001,9999) -> 6945 | G133: =2*RANDBETWEEN(501,4999)+MOD(D133+E133+F133,2) -> 8927 | H133: =IF(K133=5,5*RANDBETWEEN(200,1999),"") -> 3415 | K133: =RANDBETWEEN(4,5) -> 5 | L133: =CONCATENATE("",C133," ",D133,", ",E133,", ",F133,", ",G133,IF(K133=5,", ",""),H133,"",I133,"",J133,"") -> Calculate the mean: 9018, 6872, 6945, 8927, 3415 | M133: =IF(K133=4,AVERAGE(D133:G133),AVERAGE(D133:H133)) -> 7035.4 | Q133: =CONCATENATE("",M133,"",N133,"",O133,"",P133,"") -> 7035.4
A134: =IF(ISBLANK(C134)," ",ROW(B134)-7) -> 127 | B134: B | C134: Calculate the mean: | D134: =RANDBETWEEN(10001,99999) -> 62573 | E134: =RANDBETWEEN(10001,99999) -> 33206 | F134: =RANDBETWEEN(10001,99999) -> 16138 | G134: =2*RANDBETWEEN(5001,49999)+MOD(D134+E134+F134,2) -> 23303 | H134: =IF(K134=5,5*RANDBETWEEN(200,1999),"") ->  | K134: =RANDBETWEEN(4,5) -> 4 | L134: =CONCATENATE("",C134," ",D134,", ",E134,", ",F134,", ",G134,IF(K134=5,", ",""),H134,"",I134,"",J134,"") -> Calculate the mean: 62573, 33206, 16138, 23303 | M134: =IF(K134=4,AVERAGE(D134:G134),AVERAGE(D134:H134)) -> 33805 | Q134: =CONCATENATE("",M134,"",N134,"",O134,"",P134,"") -> 33805
A135: =IF(ISBLANK(C135)," ",ROW(B135)-7) -> 128 | B135: B | C135: Calculate the mean: | D135: =RANDBETWEEN(1001,9999) -> 6414 | E135: =RANDBETWEEN(1001,9999) -> 2224 | F135: =RANDBETWEEN(1001,9999) -> 8513 | G135: =2*RANDBETWEEN(501,4999)+MOD(D135+E135+F135,20) -> 2523 | H135: =IF(K135=5,20*RANDBETWEEN(50,499),"") -> 6940 | K135: =RANDBETWEEN(4,5) -> 5 | L135: =CONCATENATE("",C135," £",TEXT(D135/100,"#.00"),", £",TEXT(E135/100,"#.00"),", £",TEXT(F135/100,"#.00"),", £",TEXT(G135/100,"#.00"),IF(K135=5,", £",""),IF(K135=5,TEXT(H135/100,"#.00"),""),"",I135,"",J135,"") -> Calculate the mean: £64.14, £22.24, £85.13, £25.23, £69.40 | M135: =TEXT(IF(K135=4,AVERAGE(D135:G135)/100,AVERAGE(D135:H135)/100),"£#.00") -> £53.23 | Q135: =CONCATENATE("",M135,"",N135,"",O135,"",P135,"") -> £53.23
A136: =IF(ISBLANK(D136)," ",ROW(B136)-7) -> 129 | B136: B | C136: Calculate the square root of | D136: =CHOOSE(K136,3,4,5,5) -> 5 | E136: ² | F136: =CHOOSE(K136," + "," + "," – "," – ") -> – | G136: =CHOOSE(K136,4,3,4,3) -> 4 | H136: ² | K136: =RANDBETWEEN(1,4) -> 3 | L136: =CONCATENATE("",C136,"",D136,"",E136,"",F136,"",G136,"",H136,"",I136,"",J136,"") -> Calculate the square root of 5² – 4² | M136: =CHOOSE(K136,5,5,3,4) -> 3 | Q136: =CONCATENATE("",M136,"",N136,"",O136,"",P136,"") -> 3
A137: =IF(ISBLANK(D137)," ",ROW(B137)-7) -> 130 | B137: B | C137: Calculate the square root of | D137: =CHOOSE(K137,5,12,13,13) -> 13 | E137: ² | F137: =CHOOSE(K137," + "," + "," – "," – ") -> – | G137: =CHOOSE(K137,12,5,12,5) -> 5 | H137: ² | K137: =RANDBETWEEN(1,4) -> 4 | L137: =CONCATENATE("",C137,"",D137,"",E137,"",F137,"",G137,"",H137,"",I137,"",J137,"") -> Calculate the square root of 13² – 5² | M137: =CHOOSE(K137,13,13,5,12) -> 12 | Q137: =CONCATENATE("",M137,"",N137,"",O137,"",P137,"") -> 12
A138: =IF(ISBLANK(D138)," ",ROW(B138)-7) -> 131 | B138: B | C138: Calculate the square root of | D138: =CHOOSE(K138,6,8,10,10) -> 6 | E138: ² | F138: =CHOOSE(K138," + "," + "," – "," – ") -> + | G138: =CHOOSE(K138,8,6,8,6) -> 8 | H138: ² | K138: =RANDBETWEEN(1,4) -> 1 | L138: =CONCATENATE("",C138,"",D138,"",E138,"",F138,"",G138,"",H138,"",I138,"",J138,"") -> Calculate the square root of 6² + 8² | M138: =CHOOSE(K138,10,10,6,8) -> 10 | Q138: =CONCATENATE("",M138,"",N138,"",O138,"",P138,"") -> 10
A139: =IF(ISBLANK(D139)," ",ROW(B139)-7) -> 132 | B139: B | C139: Calculate the time that is | D139: =RANDBETWEEN(2,8) -> 8 | E139: =RANDBETWEEN(11,59) -> 16 | F139: =IF(K139<3,IF(RAND()<0.4,"before ","earlier than "),IF(RAND()<0.4,"after ","later than ")) -> earlier than | G139: =IF(ISODD(K139),J139,IF(J139=12,12,MOD(J139,12))) -> 8 | H139: =RANDBETWEEN(1,11)*5 -> 45 | I139: =IF(ISODD(K139),"",IF(J139>12,"pm","am")) -> am | J139: =RANDBETWEEN(5,17) -> 8 | K139: =RANDBETWEEN(1,4) -> 2 | L139: =CONCATENATE("",C139,"",D139," hour",IF(D139=1," ","s "),E139," minutes ",F139,"",IF(ISODD(K139),TEXT(G139,"00"),G139),":",TEXT(H139,"00"),"",I139,", and then",IF(S139=1," add on "," go back "),R139," hours.") -> Calculate the time that is 8 hours 16 minutes earlier than 8:45am, and then go back 4 hours. | M139: =IF(K139<3,TIME(J139,H139,0)-TIME(D139,E139,0),TIME(J139,H139,0)+TIME(D139,E139,0))+IF(S139=1,TIME(R139,0,0),0)-IF(S139=1,0,TIME(R139,0,0))+24 -> 23.85347222 | Q139: =CONCATENATE("",IF(ISODD(K139),TEXT(M139,"hh:mm"),TEXT(M139,"h:mm AM/PM")),"",N139,"",O139,"",P139,"") -> 8:29 PM | R139: =RANDBETWEEN(4,10) -> 4 | S139: =RANDBETWEEN(1,2) -> 2
A140: =IF(ISBLANK(D140)," ",ROW(B140)-7) -> 133 | B140: B | C140: Calculate the total in hours and minutes: | D140: =RANDBETWEEN(2,9) -> 7 | E140: =RANDBETWEEN(2,7) -> 3 | F140: =RANDBETWEEN(2,6) -> 2 | G140: =RANDBETWEEN(3,11)*5 -> 35 | H140: =RANDBETWEEN(6,11)*5 -> 40 | I140: =RANDBETWEEN(2,11)*5 -> 50 | K140: =RANDBETWEEN(1,3) -> 1 | L140: =CONCATENATE(C140,CHOOSE(K140,CONCATENATE(D140," hour",IF(D140>1,"s "," "),G140," minutes + ",E140," hour",IF(E140>1,"s "," "),H140," minutes + ",F140," hour",IF(F140>1,"s "," "),I140," minutes"),CONCATENATE(D140," hour",IF(D140>1,"s "," "),G140," minutes + ",E140," hour",IF(E140>1,"s + "," + "),F140," hour",IF(F140>1,"s "," "),H140," minutes + ",I140," minutes"),CONCATENATE(I140," minutes + ",D140," hour",IF(D140>1,"s "," "),G140," minutes + ",F140," hour",IF(F140>1,"s + "," + "),E140," hour",IF(E140>1,"s "," "),H140," minutes"))) -> Calculate the total in hours and minutes: 7 hours 35 minutes + 3 hours 40 minutes + 2 hours 50 minutes | M140: =TIME(D140,0,0)+TIME(E140,0,0)+TIME(F140,0,0)+TIME(0,G140,0)+TIME(0,H140,0)+TIME(0,I140,0) -> 14:05:00 | Q140: =CONCATENATE(HOUR(M140)," hr ",MINUTE(M140)," min") -> 14 hr 5 min
A141: =IF(ISBLANK(C141)," ",ROW(B141)-7) -> 134 | B141: B | C141: Calculate using fractions: | D141: 1 – ( | E141: =IF(G141=3,1,IF(G141=4,1,IF(G141=5,RANDBETWEEN(1,2),IF(G141=6,1,IF(G141=7,RANDBETWEEN(1,3),RANDBETWEEN(1,2)*2-1))))) -> 1 | F141: / | G141: =CHOOSE(RANDBETWEEN(1,6),3,4,5,6,7,8) -> 3 | H141: + | I141: =IF(J141=3,1,IF(J141=4,1,IF(J141=5,RANDBETWEEN(1,2),IF(J141=6,1,IF(J141=7,RANDBETWEEN(1,3),RANDBETWEEN(1,2)*2-1))))) -> 1 | J141: =CHOOSE(RANDBETWEEN(1,6),3,4,5,6,7,8) -> 6 | L141: =CONCATENATE("",C141,"",D141,"",E141,"",F141,"",G141,"",H141,"",I141,"/",J141," )") -> Calculate using fractions: 1 – ( 1/3 + 1/6 ) | M141: =R141/GCD(R141,S141) -> 1 | N141: / | O141: =S141/GCD(R141,S141) -> 2 | Q141: =CONCATENATE("",M141,"",N141,"",O141,"",IF(M141/O141>1,CONCATENATE(" or ",INT(M141/O141)," ",MOD(M141,O141),"/",O141),"")) -> 1/2 | R141: =G141*J141-E141*J141-I141*G141 -> 9 | S141: =G141*J141 -> 18
A142: =IF(ISBLANK(C142)," ",ROW(B142)-7) -> 135 | B142: B | C142: Calculate using fractions: | D142: =RANDBETWEEN(2,4) -> 2 | E142: =IF(G142=3,RANDBETWEEN(1,2),IF(G142=4,RANDBETWEEN(1,2)*2-1,IF(G142=5,RANDBETWEEN(1,4),IF(G142=6,RANDBETWEEN(1,2)*4-3,IF(G142=7,RANDBETWEEN(1,6),RANDBETWEEN(1,4)*2-1))))) -> 7 | F142: / | G142: =CHOOSE(RANDBETWEEN(1,6),3,4,5,6,7,8) -> 8 | H142: + | I142: =IF(J142=3,RANDBETWEEN(1,2),IF(J142=4,RANDBETWEEN(1,2)*2-1,IF(J142=5,RANDBETWEEN(1,4),IF(J142=6,RANDBETWEEN(1,2)*4-3,IF(J142=7,RANDBETWEEN(1,6),RANDBETWEEN(1,4)*2-1))))) -> 1 | J142: =CHOOSE(RANDBETWEEN(1,6),3,4,5,6,7,8) -> 6 | L142: =CONCATENATE("",C142,"",D142," – ( ",E142,"",F142,"",G142,"",H142,"",I142,"/",J142," )") -> Calculate using fractions: 2 – ( 7/8 + 1/6 ) | M142: =R142/GCD(R142,S142) -> 23 | N142: / | O142: =S142/GCD(R142,S142) -> 24 | Q142: =CONCATENATE("",M142,"",N142,"",O142,"",IF(M142/O142>1,CONCATENATE(" or ",INT(M142/O142)," ",MOD(M142,O142),"/",O142),"")) -> 23/24 | R142: =D142*G142*J142-E142*J142-I142*G142 -> 46 | S142: =G142*J142 -> 48
A143: =IF(ISBLANK(C143)," ",ROW(B143)-7) -> 136 | B143: B | C143: Calculate, using | D143: π = 3.14 : | E143: π | F143: × | G143: =RANDBETWEEN(3,10) -> 10 | H143: ÷ 2) + | I143: =RANDBETWEEN(5,15) -> 14 | J143: =I143 -> 14 | L143: =CONCATENATE("",C143,"",D143,"(",E143,"",F143,"",G143,"",H143,"",I143," + ",J143,"") -> Calculate, using π = 3.14 : (π × 10 ÷ 2) + 14 + 14 | M143: =3.14*G143/2+I143+J143 -> 43.7 | Q143: =CONCATENATE("",M143,"",N143,"",O143,"",P143,"") -> 43.7
A144: =IF(ISBLANK(C144)," ",ROW(B144)-7) -> 137 | B144: B | C144: Calculate, using | D144: π = 3.14 : | E144: π | F144: × | G144: =RANDBETWEEN(1,10) -> 9 | H144: ² ÷ 2 | L144: =CONCATENATE("",C144,"",D144,"",E144,"",F144,"",G144,"",H144,"",I144,"",J144,"") -> Calculate, using π = 3.14 : π × 9² ÷ 2 | M144: =3.14*G144^2/2 -> 127.17 | Q144: =CONCATENATE("",M144,"",N144,"",O144,"",P144,"") -> 127.17
A145: =IF(ISBLANK(E145)," ",ROW(B145)-7) -> 138 | B145: B | C145: Calculate, using | D145: π = 3.14 : | E145: π × | F145: =CHOOSE(RANDBETWEEN(1,3),2,3,10) -> 10 | G145: ² × | H145: =RANDBETWEEN(2,5) -> 5 | L145: =CONCATENATE("",C145,"",D145,"",E145,"",F145,"",G145,"",H145,"",I145,"",J145,"") -> Calculate, using π = 3.14 : π × 10² × 5 | M145: =3.14*F145^2*H145 -> 1570 | Q145: =CONCATENATE("",M145,"",N145,"",O145,"",P145,"") -> 1570
A146: =IF(ISBLANK(C146)," ",ROW(B146)-7) -> 139 | B146: B | C146: Calculate: | D146: =CHOOSE(K146,"£","£","£","$","€") -> £ | E146: =RANDBETWEEN(1500,3500) -> 2235 | F146: =RANDBETWEEN(5000,35000)/100 -> 299.27 | G146: =RANDBETWEEN(5000,35000)/100 -> 251.46 | H146: =RANDBETWEEN(5000,35000)/100 -> 142.92 | K146: =RANDBETWEEN(1,5) -> 1 | L146: =CONCATENATE("",C146,"",D146,"",E146," – ",D146,TEXT(F146,"#.00")," – ",D146,TEXT(G146,"#.00")," – ",D146,TEXT(H146,"#.00"),"",I146,"",J146,"") -> Calculate: £2235 – £299.27 – £251.46 – £142.92 | M146: =E146-F146-G146-H146 -> 1541.35 | Q146: =CONCATENATE(D146,TEXT(M146,"#.00"),"",N146,"",O146,"",P146,"") -> £1541.35
A147: =IF(ISBLANK(C147)," ",ROW(B147)-7) -> 140 | B147: B | C147: Calculate: | D147: =CHOOSE(K147,"£","£","£","£","£") -> £ | E147: =(RANDBETWEEN(7,9)+RANDBETWEEN(1,9)*0.1) -> 7.5 | F147: =RANDBETWEEN(2,6)*10 -> 30 | G147: =RANDBETWEEN(500,1500)/100 -> 7.54 | H147: =RANDBETWEEN(500,1500)/100 -> 11.95 | K147: =RANDBETWEEN(1,5) -> 2 | L147: =CONCATENATE("",C147,"",D147,"",TEXT(E147,"#.00")," × ",F147," – ",D147,TEXT(G147,"#.00")," – ",D147,TEXT(H147,"#.00"),"",I147,"",J147,"") -> Calculate: £7.50 × 30 – £7.54 – £11.95 | M147: =E147*F147-G147-H147 -> 205.51 | Q147: =CONCATENATE(D147,TEXT(M147,"#.00"),"",N147,"",O147,"",P147,"") -> £205.51
A148: =IF(ISBLANK(C148)," ",ROW(B148)-7) -> 141 | B148: B | C148: Calculate: | D148: =RANDBETWEEN(5,8)*10+RANDBETWEEN(1,9)*0.1 -> 80.4 | E148: – | F148: =RANDBETWEEN(2,7)+RANDBETWEEN(1,9)*0.1 -> 5.1 | G148: × | H148: =RANDBETWEEN(3,6) -> 6 | I148: + | J148: =RANDBETWEEN(1,8)+RANDBETWEEN(1,9)*0.1 -> 4.1 | L148: =CONCATENATE("",C148,"",D148," ",E148," ",F148," ",G148," ",H148," ",I148," ",J148,"") -> Calculate: 80.4 – 5.1 × 6 + 4.1 | M148: =D148-F148*H148+J148 -> 53.9 | Q148: =CONCATENATE("",M148,"",N148,"",O148,"",P148,"") -> 53.9
A149: =IF(ISBLANK(E149)," ",ROW(B149)-7) -> 142 | B149: B | C149: Calculate: | D149: =CHOOSE(K149,"£","£","£","$","€") -> £ | E149: =RANDBETWEEN(1010,9999)/100 -> 65.79 | F149: × | G149: =10^RANDBETWEEN(1,3)*RANDBETWEEN(2,9) -> 30 | K149: =RANDBETWEEN(1,5) -> 3 | L149: =CONCATENATE("",C149,"",D149,"",TEXT(E149,"#.00"),"",F149,"",G149,"",H149,"",I149,"",J149,"") -> Calculate: £65.79 × 30 | M149: =E149*G149 -> 1973.7 | Q149: =CONCATENATE(D149,IF(M149=INT(M149),M149,TEXT(M149,"#.00")),"",N149,"",O149,"",P149,"") -> £1973.70
A150: =IF(ISBLANK(D150)," ",ROW(B150)-7) -> 143 | B150: B | C150: Calculate: | D150: =RANDBETWEEN(1010,9999) -> 9952 | E150: =CHOOSE(K150,"cm","m","kg","","km","mm","g"," tonnes"," miles","ml","") -> miles | F150: × | G150: =10^RANDBETWEEN(1,3)*RANDBETWEEN(2,9) -> 6000 | K150: =RANDBETWEEN(1,11) -> 9 | L150: =CONCATENATE("",C150,"",D150,"",E150,"",F150,"",G150,"",H150,"",I150,"",J150,"") -> Calculate: 9952 miles × 6000 | M150: =D150*G150 -> 59712000 | Q150: =CONCATENATE("",M150," ",E150,N150,"",O150,"",P150,"") -> 59712000 miles
A151: =IF(ISBLANK(E151)," ",ROW(B151)-7) -> 144 | B151: B | C151: Calculate: | D151: £ | E151: =RANDBETWEEN(8,15)+RANDBETWEEN(1,9)*0.1 -> 13.2 | F151: × | G151: =RANDBETWEEN(2,5)*10 -> 40 | H151: × 1.5 | L151: =CONCATENATE("",C151,"",D151,"",TEXT(E151,"#.00"),"",F151,"",G151,"",H151,"",I151,"",J151,"") -> Calculate: £13.20 × 40 × 1.5 | M151: =E151*G151*1.5 -> 792 | Q151: =CONCATENATE(D151,IF(M151=INT(M151),M151,TEXT(M151,"#.00")),"",N151,"",O151,"",P151,"") -> £792
A152: =IF(ISBLANK(E152)," ",ROW(B152)-7) -> 145 | B152: B | C152: Calculate: | D152: =IF(K152=1,2,1)*RANDBETWEEN(1,9)+IF(K152=1,0.5,0) -> 14.5 | E152: × | F152: =IF(K152=1,1,2)*RANDBETWEEN(1,9)+IF(K152=1,0,0.5) -> 3 | G152: ÷ 2 | K152: =RANDBETWEEN(1,2) -> 1 | L152: =CONCATENATE("",C152,"",D152,"",E152,"",F152,"",G152,"",H152,"",I152,"",J152,"") -> Calculate: 14.5 × 3 ÷ 2 | M152: =D152*F152/2 -> 21.75 | Q152: =CONCATENATE("",M152,"",N152,"",O152,"",P152,"") -> 21.75
A153: =IF(ISBLANK(E153)," ",ROW(B153)-7) -> 146 | B153: B | C153: Calculate: | D153: =CHOOSE(K153,"£","£","£","$","€") -> £ | E153: =G153*(RANDBETWEEN(10,29)+RANDBETWEEN(1,9)*0.1) -> 384 | F153: ÷ | G153: =10*RANDBETWEEN(2,9) -> 30 | K153: =RANDBETWEEN(1,5) -> 2 | L153: =CONCATENATE("",C153,"",D153,"",E153,"",F153,"",G153,"",H153,"",I153,"",J153,"") -> Calculate: £384 ÷ 30 | M153: =E153/G153 -> 12.8 | Q153: =CONCATENATE(D153,IF(M153=INT(M153),M153,TEXT(M153,"#.00")),"",N153,"",O153,"",P153,"") -> £12.80
A154: =IF(ISBLANK(D154)," ",ROW(B154)-7) -> 147 | B154: B | C154: Calculate: | D154: =(RANDBETWEEN(20,49)+RANDBETWEEN(1,9)*0.1)*G154*10 -> 7960 | E154: =CHOOSE(K154,"cm","m","kg","","km","mm","g"," tonnes"," miles","ml","") -> mm | F154: ÷ | G154: =10*CHOOSE(RANDBETWEEN(1,3),4,5,2) -> 20 | K154: =RANDBETWEEN(1,11) -> 6 | L154: =CONCATENATE("",C154,"",D154,"",E154,"",F154,"",G154,"",H154,"",I154,"",J154,"") -> Calculate: 7960mm ÷ 20 | M154: =D154/G154 -> 398 | Q154: =CONCATENATE("",M154," ",E154,N154,"",O154,"",P154,"") -> 398 mm
A155: =IF(ISBLANK(D155)," ",ROW(B155)-7) -> 148 | B155: B | C155: Calculate: | D155: =(RANDBETWEEN(20,49)+RANDBETWEEN(1,9)*0.1)*G155*10 -> 13920 | E155: =CHOOSE(K155,"cm","m","kg","","km","mm","g"," tonnes"," miles","ml","") -> cm | F155: ÷ | G155: =10*CHOOSE(RANDBETWEEN(1,3),4,5,2) -> 40 | K155: =RANDBETWEEN(1,11) -> 1 | L155: =CONCATENATE("",C155,"",D155,"",E155,"",F155,"",G155,"",H155,"",I155,"",J155,"") -> Calculate: 13920cm ÷ 40 | M155: =D155/G155 -> 348 | Q155: =CONCATENATE("",M155," ",E155,N155,"",O155,"",P155,"") -> 348 cm
A156: =IF(ISBLANK(D156)," ",ROW(B156)-7) -> 149 | B156: B | C156: Calculate: | D156: =RANDBETWEEN(1,9)*10+RANDBETWEEN(1,9) -> 39 | E156: × | F156: =RANDBETWEEN(1,9)*10+RANDBETWEEN(1,9) -> 43 | L156: =CONCATENATE("",C156,"",D156,"",E156,"",F156,"",G156,"",H156,"",I156,"",J156,"") -> Calculate: 39 × 43 | M156: =D156*F156 -> 1677 | Q156: =CONCATENATE("",M156,"",N156,"",O156,"",P156,"") -> 1677
A157: =IF(ISBLANK(D157)," ",ROW(B157)-7) -> 150 | B157: B | C157: Calculate: | D157: =RANDBETWEEN(2,9)/100 -> 0.09 | E157: × | F157: =RANDBETWEEN(1,9)*10^RANDBETWEEN(2,3) -> 6000 | G157: =CHOOSE(K157,"cm","m","kg","","km","mm","g"," tonnes"," miles","ml","") -> km | K157: =RANDBETWEEN(1,11) -> 5 | L157: =CONCATENATE("",C157,"",D157,"",E157,"",F157,"",G157,"",H157,"",I157,"",J157,"") -> Calculate: 0.09 × 6000km | M157: =D157*F157 -> 540 | Q157: =CONCATENATE("",M157,G157,N157,"",O157,"",P157,"") -> 540km
A158: =IF(ISBLANK(C158)," ",ROW(B158)-7) -> 151 | B158: B | C158: Calculate: | D158: =RANDBETWEEN(8,25)+RANDBETWEEN(1,9)*0.1 -> 16.5 | E158: =RANDBETWEEN(3,9) -> 3 | F158: =RANDBETWEEN(8,25)+RANDBETWEEN(1,9)*0.1 -> 19.7 | G158: =RANDBETWEEN(3,9) -> 5 | H158: =RANDBETWEEN(8,25)+RANDBETWEEN(1,9)*0.1 -> 23.4 | I158: =RANDBETWEEN(3,9) -> 5 | J158: =CHOOSE(K158,"£","£","£","$","€") -> £ | K158: =RANDBETWEEN(1,5) -> 2 | L158: =CONCATENATE("",C158,"",J158,TEXT(D158,"#.00")," × ",E158," + ",J158,TEXT(F158,"#.00")," × ",G158," + ",J158,TEXT(H158,"#.00")," × ",I158) -> Calculate: £16.50 × 3 + £19.70 × 5 + £23.40 × 5 | M158: =D158*E158+F158*G158+H158*I158 -> 265 | Q158: =CONCATENATE(J158,TEXT(M158,"#.00"),"",N158,"",O158,"",P158,"") -> £265.00
A159: =IF(ISBLANK(C159)," ",ROW(B159)-7) -> 152 | B159: B | C159: Calculate: | D159: =J159*I159*RANDBETWEEN(101,999) -> 25440 | E159: =CHOOSE(K159,"cm","m","kg","","km","mm","g"," tonnes"," miles","ml","") ->  | F159: ÷ | G159: =J159 -> 8 | H159: =I159 -> 5 | I159: =CHOOSE(RANDBETWEEN(1,3),3,7,5) -> 5 | J159: =CHOOSE(RANDBETWEEN(1,3),8,6,4) -> 8 | K159: =RANDBETWEEN(1,11) -> 4 | L159: =CONCATENATE("",C159,"",D159,"",E159,"",F159,"",G159," ÷ ",H159) -> Calculate: 25440 ÷ 8 ÷ 5 | M159: =(D159/G159)/H159 -> 636 | Q159: =CONCATENATE("",M159," ",E159,N159,"",O159,"",P159,"") -> 636
A160: =IF(ISBLANK(C160)," ",ROW(B160)-7) -> 153 | B160: B | C160: Determine which fraction is | D160: =IF(K160=1,"smaller: ","larger: ") -> smaller: | E160: =IF(K160=1,CHOOSE(J160,3,7,9,11,13,17,19),CHOOSE(J160,1,2,2,3,3,4,4)) -> 9 | F160: =IF(K160=1,20,5) -> 20 | G160: =IF(K160=2,CHOOSE(J160,3,7,9,11,13,17,19),CHOOSE(J160,1,2,2,3,3,4,4)) -> 2 | H160: =IF(K160=1,5,20) -> 5 | J160: =RANDBETWEEN(1,7) -> 3 | K160: =RANDBETWEEN(1,2) -> 1 | L160: =CONCATENATE("",C160,"",D160,E160,"/",F160," or ",G160,"/",H160,". Use working to justify your answer") -> Determine which fraction is smaller: 9/20 or 2/5. Use working to justify your answer | M160: =IF($K160=2,IF($E160/$F160>$G160/$H160,$E160,$G160),IF($E160/$F160<$G160/$H160,$E160,$G160)) -> 2 | N160: / | O160: =IF($K160=2,IF($E160/$F160>$G160/$H160,$F160,$H160),IF($E160/$F160<$G160/$H160,$F160,$H160)) -> 5 | Q160: =CONCATENATE("",M160,"",N160,"",O160,"",P160,"") -> 2/5
A161: =IF(ISBLANK(C161)," ",ROW(B161)-7) -> 154 | B161: B | C161: Determine which fraction is | D161: =IF(K161=1,"smaller: ","larger: ") -> smaller: | E161: =IF(K161=1,1,2) -> 1 | F161: =IF(J161=1,RANDBETWEEN(9,20),RANDBETWEEN(H161-5,H161-1)) -> 16 | G161: =IF(K161=2,1,2) -> 2 | H161: =IF(J161=2,RANDBETWEEN(9,20),RANDBETWEEN(F161-5,F161-1)) -> 19 | J161: =RANDBETWEEN(1,2) -> 2 | K161: =RANDBETWEEN(1,2) -> 1 | L161: =CONCATENATE("",C161,"",D161,E161,"/",F161," or ",G161,"/",H161,". Use working to justify your answer") -> Determine which fraction is smaller: 1/16 or 2/19. Use working to justify your answer | M161: =IF($K161=2,IF($E161/$F161>$G161/$H161,$E161,$G161),IF($E161/$F161<$G161/$H161,$E161,$G161)) -> 1 | N161: / | O161: =IF($K161=2,IF($E161/$F161>$G161/$H161,$F161,$H161),IF($E161/$F161<$G161/$H161,$F161,$H161)) -> 16 | Q161: =CONCATENATE("",M161,"",N161,"",O161,"",P161,"") -> 1/16
A162: =IF(ISBLANK(C162)," ",ROW(B162)-7) -> 155 | B162: B | C162: Determine which fraction is | D162: =IF(K162=1,"smaller: ","larger: ") -> smaller: | E162: =IF(K162=1,RANDBETWEEN(2,5),J162*G162) -> 5 | F162: =IF(K162=1,RANDBETWEEN(6,9),(H162+RANDBETWEEN(1,3))*J162) -> 7 | G162: =IF(K162=2,RANDBETWEEN(2,5),J162*E162) -> 10 | H162: =IF(K162=2,RANDBETWEEN(6,9),(F162+RANDBETWEEN(1,3))*J162) -> 16 | J162: =RANDBETWEEN(2,5) -> 2 | K162: =RANDBETWEEN(1,2) -> 1 | L162: =CONCATENATE("",C162,"",D162,E162,"/",F162," or ",G162,"/",H162,". Use working to justify your answer") -> Determine which fraction is smaller: 5/7 or 10/16. Use working to justify your answer | M162: =IF($K162=2,IF($E162/$F162>$G162/$H162,$E162,$G162),IF($E162/$F162<$G162/$H162,$E162,$G162)) -> 10 | N162: / | O162: =IF($K162=2,IF($E162/$F162>$G162/$H162,$F162,$H162),IF($E162/$F162<$G162/$H162,$F162,$H162)) -> 16 | Q162: =CONCATENATE("",M162,"",N162,"",O162,"",P162,"") -> 10/16
A163: =IF(ISBLANK(C163)," ",ROW(B163)-7) -> 156 | B163: B | C163: Express the fraction in its simplest form: | D163: =RANDBETWEEN(1,F163-1) -> 2 | E163: / | F163: =RANDBETWEEN(3,20) -> 4 | K163: =2^RANDBETWEEN(0,2)*3^RANDBETWEEN(0,1)*5^RANDBETWEEN(0,2) -> 4 | L163: =CONCATENATE("",C163,"",D163*K163,"",E163,"",F163*K163,"",G163,"",H163,"",I163,"",J163,"") -> Express the fraction in its simplest form: 8/16 | M163: =D163/GCD(D163,F163) -> 1 | N163: / | O163: =F163/GCD(D163,F163) -> 2 | Q163: =CONCATENATE("",M163,"",N163,"",O163,"",P163,"") -> 1/2
A164: =IF(ISBLANK(C164)," ",ROW(B164)-7) -> 157 | B164: B | C164: Express the fraction in its simplest form: | D164: =RANDBETWEEN(0,(-1+F164/2))*2+1 -> 9 | E164: / | F164: =RANDBETWEEN(3,12)*2 -> 24 | K164: =10^RANDBETWEEN(1,2)*3^RANDBETWEEN(0,1)*5^RANDBETWEEN(0,1)*2^RANDBETWEEN(1,3) -> 600 | L164: =CONCATENATE("",C164,"",D164*K164,"",E164,"",F164*K164,"",G164,"",H164,"",I164,"",J164,"") -> Express the fraction in its simplest form: 5400/14400 | M164: =D164/GCD(D164,F164) -> 3 | N164: / | O164: =F164/GCD(D164,F164) -> 8 | Q164: =CONCATENATE("",M164,"",N164,"",O164,"",P164,"") -> 3/8
A165: =IF(ISBLANK(C165)," ",ROW(B165)-7) -> 158 | B165: B | C165: Express the ratio in its simplest form: | D165: =RANDBETWEEN(2,12) -> 4 | E165: : | F165: =RANDBETWEEN(5,12) -> 12 | G165: : | H165: =RANDBETWEEN(1,12) -> 9 | K165: =2^RANDBETWEEN(0,2)*3^RANDBETWEEN(0,1)*5^RANDBETWEEN(0,2) -> 10 | L165: =CONCATENATE("",C165,"",D165*K165,"",E165,"",F165*K165,"",G165,"",H165*K165,"",I165,"",J165,"") -> Express the ratio in its simplest form: 40 : 120 : 90 | M165: =D165/GCD(D165,F165,H165) -> 4 | N165: =F165/GCD(D165,F165,H165) -> 12 | O165: =H165/GCD(D165,F165,H165) -> 9 | Q165: =CONCATENATE("",M165," : ",N165," : ",O165,"",P165,"") -> 4 : 12 : 9
A166: =IF(ISBLANK(D166)," ",ROW(B166)-7) -> 159 | B166: B | C166: Round | D166: =RANDBETWEEN(0,9)+RANDBETWEEN(0,9)/10+RANDBETWEEN(1,9)/100+RANDBETWEEN(IF(K166=2,1,5),9)/1000+RANDBETWEEN(IF(K166=2,1,5),9)/10000+RANDBETWEEN(10,999)/10000000 -> 3.5767284 | E166: to | F166: =RANDBETWEEN(2,3) -> 3 | G166: decimal places | K166: =IF(RAND()<0.8,1,2) -> 1 | L166: =CONCATENATE("",C166,"",D166,"",E166,"",F166,"",G166,"",H166,"",I166,"",J166,"") -> Round 3.5767284 to 3 decimal places | M166: =TEXT(MROUND(D166,IF(F166=2,0.01,0.001)),IF(F166=2,"0.00","0.000")) -> 3.577 | Q166: =CONCATENATE("",M166,"",N166,"",O166,"",P166,"") -> 3.577
A167: =IF(ISBLANK(D167)," ",ROW(B167)-7) -> 160 | B167: B | C167: Round | D167: =CHOOSE(K167,"£","£","$","€") -> £ | E167: =TEXT(RANDBETWEEN(101,989)*10+RANDBETWEEN(1,9)+RANDBETWEEN(1,99)/100,"#.00") -> 2678.25 | F167: to | G167: =RANDBETWEEN(2,3) -> 2 | H167: significant figures | K167: =RANDBETWEEN(1,4) -> 2 | L167: =CONCATENATE("",C167,"",TEXT(D167,"### ### ###"),"",E167,"",F167,"",G167,"",H167,"",I167,"",J167,"") -> Round £2678.25 to 2 significant figures | M167: =D167 -> £ | N167: =IF(G167=2,MROUND(E167,100),MROUND(E167,10)) -> 2700 | Q167: =CONCATENATE("",M167,"",N167,"",O167,"",P167,"") -> £2700
A168: =IF(ISBLANK(D168)," ",ROW(B168)-7) -> 161 | B168: B | C168: Round | D168: =CHOOSE(K168,"£","£","$","€") -> € | E168: =TEXT(RANDBETWEEN(101,989)*100+RANDBETWEEN(11,99)+RANDBETWEEN(1,99)/100,"#.00") -> 62162.82 | F168: to | G168: =RANDBETWEEN(2,3) -> 3 | H168: significant figures | K168: =RANDBETWEEN(1,4) -> 4 | L168: =CONCATENATE("",C168,"",TEXT(D168,"### ### ###"),"",E168,"",F168,"",G168,"",H168,"",I168,"",J168,"") -> Round €62162.82 to 3 significant figures | M168: =D168 -> € | N168: =IF(G168=2,MROUND(E168,1000),MROUND(E168,100)) -> 62200 | Q168: =CONCATENATE("",M168,"",N168,"",O168,"",P168,"") -> €62200
A169: =IF(ISBLANK(C169)," ",ROW(B169)-7) -> 162 | B169: B | C169: State the minimum and maximum values of | D169: =CHOOSE(K169,"£","£","$","€","","","","","","","") -> € | E169: =10^RANDBETWEEN(2,3)*RANDBETWEEN(1,9) -> 4000 | F169: =CHOOSE(K169,"","","","","km","m","kg"," litres"," miles","","") ->  | G169: ± | H169: =RANDBETWEEN(2,6) -> 4 | I169: % | K169: =RANDBETWEEN(1,11) -> 4 | L169: =CONCATENATE("",C169,"",D169,"",E169,"",F169,"",G169,"",H169,"",I169,"",J169,"") -> State the minimum and maximum values of €4000 ± 4% | M169: Min: | N169: =E169*(100-H169)/100 -> 3840 | O169: , Max: | P169: =E169*(100+H169)/100 -> 4160 | Q169: =CONCATENATE("",M169,D169,N169,F169,O169,D169,P169,F169) -> Min: €3840, Max: €4160
A170: =IF(ISBLANK(C170)," ",ROW(B170)-7) -> 163 | B170: B | C170: State the minimum and maximum values of | D170: =10*RANDBETWEEN(2,9)+RANDBETWEEN(0,9) -> 47 | E170: =CHOOSE(K170,"cm","mm","g","ml","km","m","kg"," litres"," miles"," tonnes","") -> cm | F170: ± | G170: =RANDBETWEEN(1,12)+RANDBETWEEN(1,9)/10 -> 4.9 | H170: =E170 -> cm | K170: =RANDBETWEEN(1,11) -> 1 | L170: =CONCATENATE("",C170,"",D170,"",E170,"",F170,"",G170,"",H170,"",I170,"",J170,"") -> State the minimum and maximum values of 47cm ± 4.9cm | M170: Min: | N170: =D170-G170 -> 42.1 | O170: , Max: | P170: =D170+G170 -> 51.9 | Q170: =CONCATENATE("",M170,"",N170,E170,O170,"",P170,E170) -> Min: 42.1cm, Max: 51.9cm
A171: =IF(ISBLANK(D171)," ",ROW(B171)-7) -> 164 | B171: B | C171: What is the square root of | D171: =CHOOSE(K162,6,7,8,9,11,12,13,14,15)^2 -> 36 | E171: ? | K171: =RANDBETWEEN(1,9) -> 4 | L171: =CONCATENATE("",C171,"",D171,"",E171,"",F171,"",G171,"",H171,"",I171,"",J171,"") -> What is the square root of 36? | M171: =SQRT(D171) -> 6 | Q171: =CONCATENATE("",M171,"",N171,"",O171,"",P171,"") -> 6
A172: =IF(ISBLANK(D172)," ",ROW(B172)-7) -> 165 | B172: B | C172: What time is | D172: =RANDBETWEEN(2,8) -> 6 | E172: =RANDBETWEEN(11,59) -> 11 | F172: =IF(K172<3,IF(RAND()<0.4,"before ","earlier than "),IF(RAND()<0.4,"after ","later than ")) -> earlier than | G172: =IF(ISODD(K172),J172,IF(J172=12,12,MOD(J172,12))) -> 12 | H172: =RANDBETWEEN(1,11)*5 -> 40 | I172: =IF(ISODD(K172),"",IF(J172>12,"pm","am")) -> am | J172: =RANDBETWEEN(1,23) -> 12 | K172: =RANDBETWEEN(1,4) -> 2 | L172: =CONCATENATE("",C172,"",D172," hour",IF(D172=1," ","s "),E172," minutes ",F172,"",IF(ISODD(K172),TEXT(G172,"00"),G172),":",TEXT(H172,"00"),"",I172,"?") -> What time is 6 hours 11 minutes earlier than 12:40am? | M172: =IF(K172<3,TIME(J172,H172,0)-TIME(D172,E172,0)+24,TIME(J172,H172,0)+TIME(D172,E172,0)) -> 24.27013889 | Q172: =CONCATENATE("",IF(ISODD(K172),TEXT(M172,"hh:mm"),TEXT(M172,"h:mm AM/PM")),"",N172,"",O172,"",P172,"") -> 6:29 AM
A173: =IF(ISBLANK(D173)," ",ROW(B173)-7) -> 166 | B173: B | C173: What time is | D173: =RANDBETWEEN(2,8) -> 2 | E173: =RANDBETWEEN(11,59) -> 18 | F173: =IF(K173<3,IF(RAND()<0.4,"before ","earlier than "),IF(RAND()<0.4,"after ","later than ")) -> before | G173: =IF(ISODD(K173),J173,IF(J173=12,12,MOD(J173,12))) -> 13 | H173: =RANDBETWEEN(1,11)*5 -> 55 | I173: =IF(ISODD(K173),"",IF(J173>12,"pm","am")) ->  | J173: =RANDBETWEEN(1,23) -> 13 | K173: =RANDBETWEEN(1,4) -> 1 | L173: =CONCATENATE("",C173,"",D173," hour",IF(D173=1," ","s "),E173," minutes ",F173,"",IF(ISODD(K173),TEXT(G173,"00"),G173),":",TEXT(H173,"00"),"",I173,"?") -> What time is 2 hours 18 minutes before 13:55? | M173: =IF(K173<3,TIME(J173,H173,0)-TIME(D173,E173,0)+24,TIME(J173,H173,0)+TIME(D173,E173,0)) -> 24.48402778 | Q173: =CONCATENATE("",IF(ISODD(K173),TEXT(M173,"hh:mm"),TEXT(M173,"h:mm AM/PM")),"",N173,"",O173,"",P173,"") -> 11:37
A174: =IF(ISBLANK(D174)," ",ROW(B174)-7) -> 167 | B174: B | C174: Express (a) | D174: =IF($K174=1,100,1)*RANDBETWEEN(1,19)*0.05 -> 65 | E174: =IF(K174=1," centimetres and "," metres and ") -> centimetres and | F174: =IF($K174=1,100,1)*RANDBETWEEN(1,19)*0.05 -> 65 | G174: =IF(K174=1," centimetres in metres"," metres in centimetres") -> centimetres in metres | K174: =RANDBETWEEN(1,2) -> 1 | L174: =CONCATENATE("",C174,"",D174,"",E174," (b) ",F174,"",G174,"",H174,"",I174,"",J174,"") -> Express (a) 65 centimetres and (b) 65 centimetres in metres | M174: =IF(K174=1,D174/100,D174*100) -> 0.65 | N174: =IF(K174=1," metres and "," cm and ") -> metres and | O174: =IF(K174=1,F174/100,F174*100) -> 0.65 | P174: =IF(K174=1," metres"," cm") -> metres | Q174: =CONCATENATE("",M174,"",N174,"",O174,"",P174,"") -> 0.65 metres and 0.65 metres
A175: =IF(ISBLANK(D175)," ",ROW(B175)-7) -> 168 | B175: B | C175: Express (a) | D175: =IF($K175=1,1000,1)*RANDBETWEEN(1,99)*0.1 -> 9.1 | E175: =IF(K175=1," grams and "," kilograms and ") -> kilograms and | F175: =IF($K175=1,1000,1)*RANDBETWEEN(1,199)*0.01 -> 1.72 | G175: =IF(K175=1," grams in kilograms"," kilograms in grams") -> kilograms in grams | K175: =RANDBETWEEN(1,2) -> 2 | L175: =CONCATENATE("",C175,"",D175,"",E175," (b) ",F175,"",G175,"",H175,"",I175,"",J175,"") -> Express (a) 9.1 kilograms and (b) 1.72 kilograms in grams | M175: =IF(K175=1,D175/1000,D175*1000) -> 9100 | N175: =IF(K175=1," kg and "," grams and ") -> grams and | O175: =IF(K175=1,F175/1000,F175*1000) -> 1720 | P175: =IF(K175=1," kg"," grams") -> grams | Q175: =CONCATENATE("",M175,"",N175,"",O175,"",P175,"") -> 9100 grams and 1720 grams
A176: =IF(ISBLANK(D176)," ",ROW(B176)-7) -> 169 | B176: B | C176: Express (a) | D176: =IF($K176=1,1000,1)*RANDBETWEEN(1,99)*0.1 -> 100 | E176: =IF(K176=1," metres and "," kilometres and ") -> metres and | F176: =IF($K176=1,1000,1)*RANDBETWEEN(1,199)*0.01 -> 1120 | G176: =IF(K176=1," metres in kilometres"," kilometres in metres") -> metres in kilometres | K176: =RANDBETWEEN(1,2) -> 1 | L176: =CONCATENATE("",C176,"",D176,"",E176," (b) ",F176,"",G176,"",H176,"",I176,"",J176,"") -> Express (a) 100 metres and (b) 1120 metres in kilometres | M176: =IF(K176=1,D176/1000,D176*1000) -> 0.1 | N176: =IF(K176=1," km and "," metres and ") -> km and | O176: =IF(K176=1,F176/1000,F176*1000) -> 1.12 | P176: =IF(K176=1," km"," metres") -> km | Q176: =CONCATENATE("",M176,"",N176,"",O176,"",P176,"") -> 0.1 km and 1.12 km
A177: =IF(ISBLANK(D177)," ",ROW(B177)-7) -> 170 | B177: B | C177: Express (a) | D177: =IF($K177=1,1000,1)*RANDBETWEEN(1,99)*0.1 -> 1.9 | E177: =IF(K177=1," millilitres and "," litres and ") -> litres and | F177: =IF($K177=1,1000,1)*RANDBETWEEN(1,299)*0.01 -> 2.65 | G177: =IF(K177=1," millilitres in litres"," litres in millilitres") -> litres in millilitres | K177: =RANDBETWEEN(1,2) -> 2 | L177: =CONCATENATE("",C177,"",D177,"",E177," (b) ",F177,"",G177,"",H177,"",I177,"",J177,"") -> Express (a) 1.9 litres and (b) 2.65 litres in millilitres | M177: =IF(K177=1,D177/1000,D177*1000) -> 1900 | N177: =IF(K177=1," litres and "," ml and ") -> ml and | O177: =IF(K177=1,F177/1000,F177*1000) -> 2650 | P177: =IF(K177=1," litres"," ml") -> ml | Q177: =CONCATENATE("",M177,"",N177,"",O177,"",P177,"") -> 1900 ml and 2650 ml
A178: =IF(ISBLANK(D178)," ",ROW(B178)-7) -> 171 | B178: B | C178: Express (a) | D178: =IF($K178=1,10,1)*(RANDBETWEEN(1,19)+RANDBETWEEN(1,9)*0.1) -> 194 | E178: =IF(K178=1," millimetres and "," centimetres and ") -> millimetres and | F178: =IF($K178=1,10,1)*(RANDBETWEEN(1,19)+RANDBETWEEN(1,9)*0.1) -> 168 | G178: =IF(K178=1," millimetres in centimetres"," centimetres in millimetres") -> millimetres in centimetres | K178: =RANDBETWEEN(1,2) -> 1 | L178: =CONCATENATE("",C178,"",D178,"",E178," (b) ",F178,"",G178,"",H178,"",I178,"",J178,"") -> Express (a) 194 millimetres and (b) 168 millimetres in centimetres | M178: =IF(K178=1,D178/10,D178*10) -> 19.4 | N178: =IF(K178=1," cm and "," mm and ") -> cm and | O178: =IF(K178=1,F178/10,F178*10) -> 16.8 | P178: =IF(K178=1," cm"," mm") -> cm | Q178: =CONCATENATE("",M178,"",N178,"",O178,"",P178,"") -> 19.4 cm and 16.8 cm
A179: =IF(ISBLANK(D179)," ",ROW(B179)-7) -> 172 | B179: B | C179: Express | D179: =RANDBETWEEN(0,9)+RANDBETWEEN(1,4)*0.1+0.5*RANDBETWEEN(0,1) -> 9.8 | E179: hours in hours and minutes | L179: =CONCATENATE("",C179,"",D179,"",E179,"",F179,"",G179,"",H179,"",I179,"",J179,"") -> Express 9.8 hours in hours and minutes | M179: =INT(D179) -> 9 | N179: =CONCATENATE(" hour",IF(M179=1," ","s ")) -> hours | O179: =(D179-INT(D179))*60 -> 48 | P179: minutes | Q179: =CONCATENATE("",M179,"",N179,"",O179,"",P179,"") -> 9 hours 48 minutes
A180: =IF(ISBLANK(D180)," ",ROW(B180)-7) -> 173 | B180: B | C180: Express | D180: =RANDBETWEEN(2,9) -> 7 | E180: hours | F180: =6*RANDBETWEEN(1,9) -> 36 | G180: minutes in hours (using a decimal point) | L180: =CONCATENATE("",C180,"",D180,"",E180,"",F180,"",G180,"",H180,"",I180,"",J180,"") -> Express 7 hours 36 minutes in hours (using a decimal point) | M180: =D180+F180/60 -> 7.6 | N180: =CONCATENATE(" hour",IF(M180=1," ","s ")) -> hours | Q180: =CONCATENATE("",M180,"",N180,"",O180,"",P180,"") -> 7.6 hours
A181: =IF(ISBLANK(D181)," ",ROW(B181)-7) -> 174 | B181: B | C181: Express | D181: =RANDBETWEEN(0,9)+RANDBETWEEN(1,4)*0.1+0.5*RANDBETWEEN(0,1) -> 7.8 | E181: minutes in minutes and seconds | L181: =CONCATENATE("",C181,"",D181,"",E181,"",F181,"",G181,"",H181,"",I181,"",J181,"") -> Express 7.8 minutes in minutes and seconds | M181: =INT(D181) -> 7 | N181: =CONCATENATE(" minute",IF(M181=1," ","s ")) -> minutes | O181: =(D181-INT(D181))*60 -> 48 | P181: seconds | Q181: =CONCATENATE("",M181,"",N181,"",O181,"",P181,"") -> 7 minutes 48 seconds
A182: =IF(ISBLANK(D182)," ",ROW(B182)-7) -> 175 | B182: B | C182: Express | D182: =RANDBETWEEN(2,9) -> 5 | E182: minutes | F182: =6*RANDBETWEEN(1,9) -> 42 | G182: seconds in minutes (using a decimal point) | L182: =CONCATENATE("",C182,"",D182," ",E182," ",F182," ",G182,"",H182,"",I182,"",J182,"") -> Express 5 minutes 42 seconds in minutes (using a decimal point) | M182: =D182+F182/60 -> 5.7 | N182: =CONCATENATE(" minute",IF(M182=1," ","s ")) -> minutes | Q182: =CONCATENATE("",M182,"",N182,"",O182,"",P182,"") -> 5.7 minutes
A183: =IF(ISBLANK(D183)," ",ROW(B183)-7) -> 176 | B183: B | C183: Express | D183: =IF(K183=7,RANDBETWEEN(2,6),IF(K183=8,CHOOSE(RANDBETWEEN(1,3),3,5,7),CHOOSE(RANDBETWEEN(1,2),1,5))) -> 3 | E183: / | F183: =K183 -> 7 | G183: as a decimal fraction. Round your answer to | H183: =IF(K183=8,2,3) -> 3 | I183: decimal places | K183: =RANDBETWEEN(6,8) -> 7 | L183: =CONCATENATE("",C183,"",D183,"",E183,"",F183,"",G183,"",H183,"",I183,"",J183,"") -> Express 3/7 as a decimal fraction. Round your answer to 3 decimal places | M183: =MROUND(D183/F183,IF(H183=2,0.01,0.001)) -> 0.429 | Q183: =CONCATENATE("",M183,"",N183,"",O183,"",P183,"") -> 0.429
A184: =IF(ISBLANK(D184)," ",ROW(B184)-7) -> 177 | B184: B | C184: Express | D184: =RANDBETWEEN(1,99)*2 -> 180 | E184: out of 200 as a percentage | L184: =CONCATENATE("",C184,"",D184,"",E184,"",F184,"",G184,"",H184,"",I184,"",J184,"") -> Express 180 out of 200 as a percentage | M184: =D184/2 -> 90 | N184: % | Q184: =CONCATENATE("",M184,"",N184,"",O184,"",P184,"") -> 90%
A185: =IF(ISBLANK(D185)," ",ROW(B185)-7) -> 178 | B185: B | C185: Express | D185: =RANDBETWEEN(1,19) -> 2 | E185: out of 20 as a percentage | L185: =CONCATENATE("",C185,"",D185,"",E185,"",F185,"",G185,"",H185,"",I185,"",J185,"") -> Express 2 out of 20 as a percentage | M185: =D185*5 -> 10 | N185: % | Q185: =CONCATENATE("",M185,"",N185,"",O185,"",P185,"") -> 10%
A186: =IF(ISBLANK(D186)," ",ROW(B186)-7) -> 179 | B186: B | C186: Express | D186: =J186*K186 -> 400 | E186: out of | F186: =J186*10 -> 4000 | G186: as a percentage | J186: =2^RANDBETWEEN(1,3)*5^RANDBETWEEN(0,2)*10 -> 400 | K186: =CHOOSE(RANDBETWEEN(1,8),1,2,3,4,6,7,8,9) -> 1 | L186: =CONCATENATE("",C186,"",D186,"",E186,"",F186,"",G186,"",H186,"",I186,"") -> Express 400 out of 4000 as a percentage | M186: =D186/F186*100 -> 10 | N186: % | Q186: =CONCATENATE("",M186,"",N186,"",O186,"",P186,"") -> 10%
A187: =IF(ISBLANK(D187)," ",ROW(B187)-7) -> 180 | B187: B | C187: Express | D187: =J187*K187 -> 180 | E187: out of | F187: =J187*10 -> 900 | G187: as a percentage | J187: =3^RANDBETWEEN(1,2)*2^RANDBETWEEN(0,1)*10 -> 90 | K187: =CHOOSE(RANDBETWEEN(1,8),1,2,3,4,6,7,8,9) -> 2 | L187: =CONCATENATE("",C187,"",D187,"",E187,"",F187,"",G187,"",H187,"",I187,"") -> Express 180 out of 900 as a percentage | M187: =D187/F187*100 -> 20 | N187: % | Q187: =CONCATENATE("",M187,"",N187,"",O187,"",P187,"") -> 20%
A188: =IF(ISBLANK(C188)," ",ROW(B188)-7) -> 181 | B188: B | C188: A shop offers a discount of | D188: 1 | E188: / | F188: =RANDBETWEEN(5,9) -> 6 | G188: on a price of | H188: =CHOOSE(K188,"£","£","$","€","","","","","","","") -> £ | I188: =TEXT(F188*RANDBETWEEN(501,999)/100,"#.00") -> 45.60 | J188: . What is the new price? | K188: =RANDBETWEEN(1,4) -> 2 | L188: =CONCATENATE("",C188,"",D188,"",E188,"",F188,"",G188,"",H188,"",I188,"",J188,"") -> A shop offers a discount of 1/6 on a price of £45.60. What is the new price? | M188: =H188 -> £ | N188: =TEXT(I188/F188*(F188-1),"#.00") -> 38.00 | Q188: =CONCATENATE("",M188,"",N188,"",O188,"",P188,"") -> £38.00
A189: =IF(ISBLANK(C189)," ",ROW(B189)-7) -> 182 | B189: B | C189: Add the fractions: | D189: =CHOOSE(F189,1,1,2,3,RANDBETWEEN(2,4),5,RANDBETWEEN(1,6),2*RANDBETWEEN(1,3)+1,2*RANDBETWEEN(1,2)) -> 5 | E189: / | F189: =CHOOSE(K189,5,5,5,4,3,6,6,8,9) -> 6 | G189: + | H189: =CHOOSE(J189,1,1,2,3,RANDBETWEEN(2,4),5,RANDBETWEEN(1,6),2*RANDBETWEEN(1,3)+1,2*RANDBETWEEN(1,2)) -> 4 | I189: / | J189: =CHOOSE(K189,3,7,8,7,8,5,7,9,4) -> 5 | K189: =RANDBETWEEN(1,9) -> 6 | L189: =CONCATENATE("",C189,"",D189,"",E189,"",F189,"",G189,"",H189,"",I189,"",J189,". Express your answer as a fraction in its simplest form.") -> Add the fractions: 5/6 + 4/5. Express your answer as a fraction in its simplest form. | M189: =R189/GCD(R189,S189) -> 49 | N189: / | O189: =S189/GCD(R189,S189) -> 30 | Q189: =CONCATENATE("",M189,"",N189,"",O189,"",IF(M189/O189>1,CONCATENATE(" or ",INT(M189/O189)," ",MOD(M189,O189),"/",O189),"")) -> 49/30 or 1 19/30 | R189: =D189*J189+F189*H189 -> 49 | S189: =F189*J189 -> 30
A190: =IF(ISBLANK(C190)," ",ROW(B190)-7) -> 183 | B190: B | C190: Calculate | D190: =RANDBETWEEN(2,4)*20 -> 60 | E190: % of | F190: =CHOOSE(K190,"£","£","$","€","","","","","","","") ->  | G190: =10^RANDBETWEEN(1,2)*RANDBETWEEN(2,9)+5 -> 205 | H190: =CHOOSE(K190,"","","","","km","m","kg"," litres"," miles","","") -> kg | K190: =RANDBETWEEN(1,11) -> 7 | L190: =CONCATENATE("",C190,"",D190,"",E190,"",F190,"",G190,"",H190,"",I190,"",J190,"") -> Calculate 60% of 205kg | M190: =F190 ->  | N190: =G190/100*D190 -> 123 | O190: =H190 -> kg | Q190: =CONCATENATE("",M190,"",N190,"",O190,"",P190,"") -> 123kg
A191: =IF(ISBLANK(C191)," ",ROW(B191)-7) -> 184 | B191: B | C191: Calculate | D191: =2.5*CHOOSE(RANDBETWEEN(1,2),1,3) -> 7.5 | E191: % of | F191: =CHOOSE(K191,"£","£","$","€","","","","","","","") -> £ | G191: =10^RANDBETWEEN(2,3)*(10*RANDBETWEEN(2,9)+RANDBETWEEN(1,4)*2) -> 48000 | H191: =CHOOSE(K191,"","","","","km","m","kg"," litres"," miles","","") ->  | K191: =RANDBETWEEN(1,11) -> 1 | L191: =CONCATENATE("",C191,"",D191,"",E191,"",F191,"",G191,"",H191,"",I191,"",J191,"") -> Calculate 7.5% of £48000 | M191: =F191 -> £ | N191: =G191/100*D191 -> 3600 | O191: =H191 ->  | Q191: =CONCATENATE("",M191,"",N191,"",O191,"",P191,"") -> £3600
A192: =IF(ISBLANK(C192)," ",ROW(B192)-7) -> 185 | B192: B | C192: Calculate | D192: =RANDBETWEEN(2,4)*20 -> 60 | E192: % of | F192: £ | G192: =10*RANDBETWEEN(3,9)+RANDBETWEEN(0,9)+RANDBETWEEN(1,4)*0.2 -> 48.6 | H192: 0 | K192: =RANDBETWEEN(1,11) -> 11 | L192: =CONCATENATE("",C192,"",D192,"",E192,"",F192,"",G192,"",H192,"",I192,"",J192,"") -> Calculate 60% of £48.60 | M192: £ | N192: =G192/100*D192 -> 29.16 | Q192: =CONCATENATE("",M192,"",N192,"",O192,"",P192,"") -> £29.16
A193: =IF(ISBLANK(D193)," ",ROW(B193)-7) -> 186 | B193: B | C193: Calculate | D193: =RANDBETWEEN(1,9)+0.5 -> 3.5 | E193: % of | F193: =CHOOSE(K193,"£","£","$","€","","","","","","","") ->  | G193: =RANDBETWEEN(2,9)*10^RANDBETWEEN(2,3) -> 400 | H193: =CHOOSE(K193,"","","","","km","mm","g"," tonnes"," miles","ml","") -> miles | K193: =RANDBETWEEN(1,11) -> 9 | L193: =CONCATENATE("",C193,"",D193,"",E193,"",F193,"",G193,"",H193,"",I193,"",J193,"") -> Calculate 3.5% of 400 miles | M193: =F193 ->  | N193: =G193/100*D193 -> 14 | O193: =H193 -> miles | Q193: =CONCATENATE("",M193,"",N193,"",O193,"",P193,"") -> 14 miles
A194: =IF(ISBLANK(D194)," ",ROW(B194)-7) -> 187 | B194: B | C194: Calculate | D194: 15 | E194: % of | F194: =CHOOSE(K194,"£","£","$","€","","","","","","","") -> £ | G194: =10*RANDBETWEEN(11,99) -> 830 | H194: =CHOOSE(K194,"","","","","km","mm","g"," tonnes"," miles","ml","") ->  | K194: =RANDBETWEEN(1,11) -> 1 | L194: =CONCATENATE("",C194,"",D194,"",E194,"",F194,"",G194,"",H194,"",I194,"",J194,"") -> Calculate 15% of £830 | M194: =F194 -> £ | N194: =G194/100*D194 -> 124.5 | O194: =H194 ->  | Q194: =CONCATENATE("",M194,"",N194,"",O194,"",P194,"") -> £124.5
A195: =IF(ISBLANK(D195)," ",ROW(B195)-7) -> 188 | B195: B | C195: Calculate | D195: =CHOOSE(K195,6,7,8,9,11,12,13,14,15) -> 9 | E195: ² | K195: =RANDBETWEEN(1,9) -> 4 | L195: =CONCATENATE("",C195,"",D195,"",E195,"",F195,"",G195,"",H195,"",I195,"",J195,"") -> Calculate 9² | M195: =D195^2 -> 81 | Q195: =CONCATENATE("",M195,"",N195,"",O195,"",P195,"") -> 81
A196: =IF(ISBLANK(D196)," ",ROW(B196)-7) -> 189 | B196: B | C196: Calculate | D196: =RANDBETWEEN(2,9)*10^RANDBETWEEN(1,2) -> 20 | E196: ² | K196: =RANDBETWEEN(1,9) -> 9 | L196: =CONCATENATE("",C196,"",D196,"",E196,"",F196,"",G196,"",H196,"",I196,"",J196,"") -> Calculate 20² | M196: =D196^2 -> 400 | Q196: =CONCATENATE("",M196,"",N196,"",O196,"",P196,"") -> 400
A197: =IF(ISBLANK(C197)," ",ROW(B197)-7) -> 190 | B197: B | C197: Calculate the fraction: | D197: =IF(F197=5,RANDBETWEEN(2,4),IF(F197=7,RANDBETWEEN(2,6),IF(F197=6,5,IF(F197=8,RANDBETWEEN(1,3)*2+1,CHOOSE(INT(RAND()*5+1),2,4,5,7,8))))) -> 5 | E197: / | F197: =RANDBETWEEN(5,9) -> 6 | G197: of | H197: =CHOOSE(K197,"£","£","$","€","","","","","","","") ->  | I197: =F197*RANDBETWEEN(501,999) -> 5514 | J197: =CHOOSE(K197,"","","","","km","mm","g"," tonnes"," miles"," litres","") ->  | K197: =RANDBETWEEN(1,11) -> 11 | L197: =CONCATENATE("",C197,"",D197,"",E197,"",F197,"",G197,"",H197,"",I197,"",J197,"") -> Calculate the fraction: 5/6 of 5514 | M197: =I197/F197*D197 -> 4595 | Q197: =CONCATENATE("",M197,"",N197,"",O197,"",P197,"") -> 4595
A198: =IF(ISBLANK(C198)," ",ROW(B198)-7) -> 191 | B198: B | C198: Calculate the fraction: | D198: =IF(F198=5,RANDBETWEEN(2,4),IF(F198=7,RANDBETWEEN(2,6),IF(F198=6,5,IF(F198=8,RANDBETWEEN(1,3)*2+1,CHOOSE(INT(RAND()*5+1),2,4,5,7,8))))) -> 5 | E198: / | F198: =RANDBETWEEN(5,9) -> 7 | G198: of | H198: =CHOOSE(K198,"£","£","$","€","","","","","","","") -> € | I198: =TEXT(F198*RANDBETWEEN(501,999)/100,"#.00") -> 37.17 | K198: =RANDBETWEEN(1,4) -> 4 | L198: =CONCATENATE("",C198,"",D198,"",E198,"",F198,"",G198,"",H198,"",I198,"",J198,"") -> Calculate the fraction: 5/7 of €37.17 | M198: =H198 -> € | N198: =TEXT(I198/F198*D198,"#.00") -> 26.55 | Q198: =CONCATENATE("",M198,"",N198,"",O198,"",P198,"") -> €26.55
A199: =IF(ISBLANK(C199)," ",ROW(B199)-7) -> 192 | B199: B | C199: Calculate the mean: | D199: =RANDBETWEEN(1001,9999) -> 2292 | E199: =RANDBETWEEN(1001,9999) -> 2322 | F199: =RANDBETWEEN(1001,9999) -> 9316 | G199: =2*RANDBETWEEN(501,4999)+MOD(D199+E199+F199,2) -> 9526 | H199: =IF(K199=5,5*RANDBETWEEN(200,1999),"") -> 3000 | K199: =RANDBETWEEN(4,5) -> 5 | L199: =CONCATENATE("",C199," ",D199,", ",E199,", ",F199,", ",G199,IF(K199=5,", ",""),H199,"",I199,"",J199,"") -> Calculate the mean: 2292, 2322, 9316, 9526, 3000 | M199: =IF(K199=4,AVERAGE(D199:G199),AVERAGE(D199:H199)) -> 5291.2 | Q199: =CONCATENATE("",M199,"",N199,"",O199,"",P199,"") -> 5291.2
A200: =IF(ISBLANK(C200)," ",ROW(B200)-7) -> 193 | B200: B | C200: Calculate the mean: | D200: =RANDBETWEEN(10001,99999) -> 56316 | E200: =RANDBETWEEN(10001,99999) -> 76299 | F200: =RANDBETWEEN(10001,99999) -> 95084 | G200: =2*RANDBETWEEN(5001,49999)+MOD(D200+E200+F200,2) -> 87329 | H200: =IF(K200=5,5*RANDBETWEEN(200,1999),"") -> 4805 | K200: =RANDBETWEEN(4,5) -> 5 | L200: =CONCATENATE("",C200," ",D200,", ",E200,", ",F200,", ",G200,IF(K200=5,", ",""),H200,"",I200,"",J200,"") -> Calculate the mean: 56316, 76299, 95084, 87329, 4805 | M200: =IF(K200=4,AVERAGE(D200:G200),AVERAGE(D200:H200)) -> 63966.6 | Q200: =CONCATENATE("",M200,"",N200,"",O200,"",P200,"") -> 63966.6
... 122 more rows
